Workbook

Sheet Simple
A1: 振幅 | B1: A | C1: Amplitude | D1: 1 | E1: Relative
A2: 振動数 | B2: ω | C2: Frequency | D2: =D4/D3*2*PI() -> 3.769911184e+15 | E2: [rad/s]
A3: 波長 | B3: λ | C3: Wavelength | D3: 500 | E3: [nm]
A4: 速度 | B4: c | C4: Velocity | D4: =300000000*1000000000 -> 3e+17 | E4: [nm/s]
A6: 距離 | B6: L | C6: Distance | D6: 100 | E6: [nm]
A7: 位相 | B7: P | C7: Initial Phase Delay | D7: 4 | E7: [rad]
A8: 位相ずれ | B8: Δ | C8: Phase shift by Ligth Path | D8: =(D6/D3)*2*PI()+D7 -> 5.256637061 | E8: [rad]
A10: A・sin(ωt+P+Δ）
A11: ↓
A12: 複素数表示
A13: ↓
A14: 観察時間 | B14: T | C14: Time | D14: 0 | E14: [sec]
A15: 観察時位相 | B15: ωt+P+Δ | C15: Final Phase | D15: =D2*D14+D7+D8 -> 9.256637061 | E15: [rad]
B16: j | C16: Complex uit | D16: =IMSQRT(-1) -> 6.1257422745431E-17+i
B17: j[ωt+P+Δ] | C17: Product | D17: =IMPRODUCT(D15,D16) -> 5.67037729673404E-16+9.25663706143592i
B18: exp(j[ωt+P+Δ]) | D18: =IMEXP(D17) -> -0.985897590530507+0.167349756456775i
B19: A・exp(j[ωt+P+Δ]) | D19: =IMPRODUCT(D18,D1) -> -0.985897590530507+0.167349756456775i | F19: I
B20: |I{^2 | C20: Magnitude | D20: =IMABS(D19)^2 -> 1

Sheet 5points
I1: Δx | J1: 0 | X1: I
B2: 波長 | I2: Δy | J2: 50 | X2: =IMSQRT(-1) -> 6.1257422745431E-17+i
B3: Wavelength | D3: 0.5 | E3: [um] | I3: 観測点 | L3: 光源からの距離 | R3: 位相の遅れ | X3: 複素数表示 | AD3: 合計 | AF3: 光強度
L4: Distance from | R4: Phase shift (Path / Wavelength) | X4: Complex value | AD4: Sum | AF4: Power
B5: 光源 | C5: [um] | D5: [um] | E5: [rad] | F5: [relative] | H5: 観察地点 | I5: [um] | J5: [um] | L5: N | R5: [rad]
B6: N | C6: X | D6: Y | E6: Phase | F6: Amplitude | H6: ｎ | I6: x | J6: y | L6: 1 | M6: 2 | N6: 3 | O6: 4 | P6: 5 | R6: 1 | S6: 2 | T6: 3 | U6: 4 | V6: 5 | X6: 1 | Y6: 2 | Z6: 3 | AA6: 4 | AB6: 5 | AD6: 1-5 | AF6: (Sum)^2
B7: 1 | C7: 0 | D7: 14 | E7: 0 | F7: 1 | H7: 1 | I7: 100000 | J7: 0 | L7: =SQRT(($C$7-$I7)^2+($D$7-$J7)^2) -> 100000.001 | M7: =SQRT(($C$8-$I7)^2+($D$8-$J7)^2) -> 100000.0002 | N7: =SQRT(($C$9-$I7)^2+($D$9-$J7)^2) -> 100000 | O7: =SQRT(($C$10-$I7)^2+($D$10-$J7)^2) -> 100000.0002 | P7: =SQRT(($C$11-$I7)^2+($D$11-$J7)^2) -> 100000.001 | R7: =L7/$D$3*2*PI()+$E$7 -> 1256637.074 | S7: =M7/$D$3*2*PI()+$E$8 -> 1256637.065 | T7: =N7/$D$3*2*PI()+$E$9 -> 1256637.061 | U7: =O7/$D$3*2*PI()+$E$10 -> 1256637.065 | V7: =P7/$D$3*2*PI()+$E$11 -> 1256637.074 | X7: =IMPRODUCT($F$7,R7,$X$2) -> 7.69783484643439E-11+1256637.07375096i | Y7: =IMPRODUCT($F$8,S7,$X$2) -> 7.69783478985531E-11+1256637.06451468i | Z7: =IMPRODUCT($F$9,T7,$X$2) -> 7.69783477099561E-11+1256637.06143592i | AA7: =IMPRODUCT($F$10,U7,$X$2) -> 7.69783478985531E-11+1256637.06451468i | AB7: =IMPRODUCT($F$11,V7,$X$2) -> 7.69783484643439E-11+1256637.07375096i | AD7: =IMSUM(IMEXP(X7),IMEXP(Y7),IMEXP(Z7),IMEXP(AA7),IMEXP(AB7)) -> 4.9998388632535+0.0307869812067442i | AF7: =(IMABS(AD7))^2 -> 24.9993365
B8: 2 | C8: 0 | D8: 7 | E8: 0 | F8: 1 | H8: 2 | I8: =I7-$J$1 -> 100000 | J8: =J7-$J$2 -> -50 | L8: 100000.0205 | M8: 100000.0162 | N8: 100000.0125 | O8: 100000.0092 | P8: 100000.0065 | R8: 1256637.319 | S8: 1256637.266 | T8: 1256637.219 | U8: 1256637.178 | V8: 1256637.143 | X8: =IMPRODUCT($F$7,R8,$X$2) -> 7.69783634751201E-11+1256637.31879516i | Y8: =IMPRODUCT($F$8,S8,$X$2) -> 7.69783602150877E-11+1256637.26557659i | Z8: =IMPRODUCT($F$9,T8,$X$2) -> 7.6978357332249E-11+1256637.21851554i | AA8: =IMPRODUCT($F$10,U8,$X$2) -> 7.69783548266041E-11+1256637.17761201i | AB8: =IMPRODUCT($F$11,V8,$X$2) -> 7.69783526981529E-11+1256637.142866i | AD8: =IMSUM(IMEXP(X8),IMEXP(Y8),IMEXP(Z8),IMEXP(AA8),IMEXP(AB8)) -> 4.92393493844087+0.810942917134652i | AF8: =(IMABS(AD8))^2 -> 24.90276369
B9: 3 | C9: 0 | D9: 0 | E9: 0 | F9: 1 | H9: 3 | I9: =I8-$J$1 -> 100000 | J9: =J8-$J$2 -> -100 | L9: 100000.065 | M9: 100000.0572 | N9: 100000.05 | O9: 100000.0432 | P9: 100000.037 | R9: 1256637.878 | S9: 1256637.781 | T9: 1256637.69 | U9: 1256637.605 | V9: 1256637.526 | X9: 7.69783977304702E-11+1256637.87799841i | Y9: 7.69783917761987E-11+1256637.7807976i | Z9: 7.69783861991204E-11+1256637.68975429i | AA9: 7.69783809992354E-11+1256637.6048685i | AB9: 7.69783761765439E-11+1256637.52614022i | AD9: 3.99586699224184+2.94072174020869i | AF9: 24.61479737
B10: 4 | C10: 0 | D10: -7 | E10: 0 | F10: 1 | H10: 4 | I10: 100000 | J10: -150 | L10: 100000.1345 | M10: 100000.1232 | N10: 100000.1125 | O10: 100000.1022 | P10: 100000.0925 | R10: 1256638.751 | S10: 1256638.61 | T10: 1256638.475 | U10: 1256638.346 | V10: 1256638.224 | X10: 7.69784512303685E-11+1256638.7513603i | Y10: 7.69784425818623E-11+1256638.61017731i | Z10: 7.69784343105486E-11+1256638.47515182i | AA10: 7.69784264164275E-11+1256638.34628382i | AB10: 7.69784188994992E-11+1256638.22357333i | AD10: 0.739088427530629+4.85740678966666i | AF10: 24.14065242
B11: 5 | C11: 0 | D11: -14 | E11: 0 | F11: 1 | H11: 5 | I11: 100000 | J11: -200 | L11: 100000.229 | M11: 100000.2142 | N11: 100000.2 | O11: 100000.1862 | P11: 100000.173 | R11: 1256639.939 | S11: 1256639.754 | T11: 1256639.575 | U11: 1256639.402 | V11: 1256639.235 | X11: 7.69785239747749E-11+1256639.93888017i | Y11: 7.69785126320405E-11+1256639.75371511i | Z11: 7.69785016664976E-11+1256639.57470753i | AA11: 7.69784910781463E-11+1256639.40185743i | AB11: 7.69784808669868E-11+1256639.23516483i | AD11: -3.93800273912548+2.82506957029593i | AF11: 23.48888365
H12: 6 | I12: 100000 | J12: -250 | L12: 100000.3485 | M12: 100000.3302 | N12: 100000.3125 | O12: 100000.2952 | P12: 100000.2785 | R12: 1256641.441 | S12: 1256641.211 | T12: 1256640.988 | U12: 1256640.772 | V12: 1256640.561 | X12: 7.69786159636348E-11+1256641.44055712i | Y12: 7.69786019266808E-11+1256641.21141013i | Z12: 7.69785882669169E-11+1256640.9884206i | AA12: 7.69785749843433E-11+1256640.77158853i | AB12: 7.69785620789603E-11+1256640.56091393i | AD12: -3.34679129778238-3.38676426746353i | AF12: 22.67118419
H13: 7 | I13: 100000 | J13: -300 | L13: 100000.493 | M13: 100000.4712 | N13: 100000.45 | O13: 100000.4292 | P13: 100000.409 | R13: 1256643.256 | S13: 1256642.983 | T13: 1256642.716 | U13: 1256642.455 | V13: 1256642.201 | X13: 7.69787271968793E-11+1256643.25639003i | Y13: 7.69787104657161E-11+1256642.98326128i | Z13: 7.69786941117414E-11+1256642.71628997i | AA13: 7.69786781349556E-11+1256642.45547609i | AB13: 7.69786625353588E-11+1256642.20081966i | AD13: 3.78474990774285-2.71620682371347i | AF13: 21.70211137
H14: 8 | I14: 100000 | J14: -350 | L14: 100000.6625 | M14: 100000.6372 | N14: 100000.6125 | O14: 100000.5882 | P14: 100000.5645 | R14: 1256645.386 | S14: 1256645.069 | T14: 1256644.758 | U14: 1256644.454 | V14: 1256644.155 | X14: 7.69788576744248E-11+1256645.38637755i | Y14: 7.6978838249065E-11+1256645.06926724i | Z14: 7.69788192008919E-11+1256644.75831435i | AA14: 7.69788005299058E-11+1256644.45351886i | AB14: 7.69787822361069E-11+1256644.15488078i | AD14: 0.684431335814303+4.48668029877156i | AF14: 20.59874636
H15: 9 | I15: 100000 | J15: -400 | L15: 100000.857 | M15: 100000.8282 | N15: 100000.8 | O15: 100000.7722 | P15: 100000.745 | R15: 1256647.831 | S15: 1256647.469 | T15: 1256647.114 | U15: 1256646.766 | V15: 1256646.423 | X15: 7.69790073961736E-11+1256647.83051806i | Y15: 7.69789852766318E-11+1256647.46942645i | Z15: 7.69789635342745E-11+1256647.1144922i | AA15: 7.69789421691021E-11+1256646.76571532i | AB15: 7.69789211811148E-11+1256646.42309583i | AD15: -3.54715473519773-2.60729571932043i | AF15: 19.38029768
H16: 10 | I16: 100000 | J16: -450 | L16: 100001.0765 | M16: 100001.0442 | N16: 100001.0125 | O16: 100000.9812 | P16: 100000.9505 | R16: 1256650.589 | S16: 1256650.184 | T16: 1256649.785 | U16: 1256649.392 | V16: 1256649.005 | X16: 7.69791763620134E-11+1256650.58880975i | Y16: 7.69791515483062E-11+1256650.18373709i | Z16: 7.6979127111781E-11+1256649.78482175i | AA16: 7.69791030524383E-11+1256649.39206375i | AB16: 7.69790793702783E-11+1256649.0054631i | AD16: 4.19466173441774+0.687365200166191i | AF16: 18.06765798
H17: 11 | I17: 100000 | J17: -500 | L17: 100001.321 | M17: 100001.2852 | N17: 100001.25 | O17: 100001.2152 | P17: 100001.181 | R17: 1256653.661 | S17: 1256653.212 | T17: 1256652.769 | U17: 1256652.333 | V17: 1256651.902 | X17: 7.69793645718175E-11+1256653.66125053i | Y17: 7.69793370639634E-11+1256653.21219713i | Z17: 7.69793099332887E-11+1256652.76930101i | AA17: 7.69792831797937E-11+1256652.33256218i | AB17: 7.69792568034788E-11+1256651.90198065i | AD17: -4.08442054884251-0.0208693288358818i | AF17: 16.68292675
H18: 12 | I18: 100000 | J18: -550 | L18: 100001.5905 | M18: 100001.5512 | N18: 100001.5125 | O18: 100001.4742 | P18: 100001.4365 | R18: 1256657.048 | S18: 1256656.555 | T18: 1256656.068 | U18: 1256655.587 | V18: 1256655.113 | X18: 7.69795720254446E-11+1256657.04783811i | Y18: 7.69795418234643E-11+1256656.55480431i | Z18: 7.69795119986604E-11+1256656.06792774i | AA18: 7.69794825510332E-11+1256655.58720841i | AB18: 7.69794534805833E-11+1256655.11264633i | AD18: 3.85391306662571+0.629495482372936i | AF18: 15.24891049
H19: 13 | I19: 100000 | J19: -600 | L19: 100001.885 | M19: 100001.8422 | N19: 100001.8 | O19: 100001.7582 | P19: 100001.717 | R19: 1256660.749 | S19: 1256660.212 | T19: 1256659.681 | U19: 1256659.156 | V19: 1256658.637 | X19: 7.69797987227393E-11+1256660.74856995i | Y19: 7.69797658266554E-11+1256660.21155611i | Z19: 7.69797333077446E-11+1256659.68069945i | AA19: 7.69797011660074E-11+1256659.15599998i | AB19: 7.69796694014441E-11+1256658.63745771i | AD19: -2.99427896936273-2.19611187031948i | AF19: 13.78861389
H20: 14 | I20: 100000 | J20: -650 | L20: 100002.2045 | M20: 100002.1582 | N20: 100002.1125 | O20: 100002.0672 | P20: 100002.0225 | R20: 1256664.763 | S20: 1256664.182 | T20: 1256663.608 | U20: 1256663.039 | V20: 1256662.476 | X20: 7.69800446635314E-11+1256664.76344327i | Y20: 7.69800090733687E-11+1256664.1824498i | Z20: 7.69799738603755E-11+1256663.60761345i | AA20: 7.69799390245522E-11+1256663.03893423i | AB20: 7.69799045658995E-11+1256662.47641215i | AD20: 0.534961689424877+3.46966159749354i | AF20: 12.32473561
H21: 15 | I21: 100000 | J21: -700 | L21: 100002.5489 | M21: 100002.4992 | N21: 100002.45 | O21: 100002.4012 | P21: 100002.353 | R21: 1256669.092 | S21: 1256668.467 | T21: 1256667.849 | U21: 1256667.236 | V21: 1256666.63 | X21: 7.69803098476367E-11+1256669.09245506i | Y21: 7.69802715634218E-11+1256668.46748239i | Z21: 7.69802336563725E-11+1256667.84866678i | AA21: 7.69801961264894E-11+1256667.23600824i | AB21: 7.6980158973773E-11+1256666.62950678i | AD21: 2.67545333111855-1.92902299269755i | AF21: 10.87918023
H22: 16 | I22: 100000 | J22: -750 | L22: 100002.9184 | M22: 100002.8652 | N22: 100002.8125 | O22: 100002.7602 | P22: 100002.7084 | R22: 1256673.736 | S22: 1256673.067 | T22: 1256672.404 | U22: 1256671.747 | V22: 1256671.097 | X22: 7.69805942748561E-11+1256673.73560207i | Y22: 7.69805532966177E-11+1256673.06665068i | Z22: 7.69805126955408E-11+1256672.40385627i | AA22: 7.6980472471626E-11+1256671.74721887i | AB22: 7.69804326248738E-11+1256671.09673849i | AD22: -2.16960403297789-2.18298374742034i | AF22: 9.472599701
H23: 17 | I23: 100000 | J23: -800 | L23: 100003.3129 | M23: 100003.2562 | N23: 100003.1999 | O23: 100003.1442 | P23: 100003.0889 | R23: 1256678.693 | S23: 1256677.98 | T23: 1256677.273 | U23: 1256676.573 | V23: 1256675.878 | X23: 7.69808979449764E-11+1256678.69288083i | Y23: 7.69808542727453E-11+1256677.97995121i | Z23: 7.69808109776712E-11+1256677.27317851i | AA23: 7.69807680597548E-11+1256676.57256274i | AB23: 7.69807255189968E-11+1256675.87810391i | AD23: -2.30993741416522+1.6697797019475i | AF23: 8.12397511
H24: 18 | I24: 100000 | J24: -850 | L24: 100003.7324 | M24: 100003.6722 | N24: 100003.6124 | O24: 100003.5532 | P24: 100003.4944 | R24: 1256683.964 | S24: 1256683.207 | T24: 1256682.457 | U24: 1256681.712 | V24: 1256680.974 | X24: 7.69812208577699E-11+1256683.9642876i | Y24: 7.69811744915788E-11+1256683.20738029i | Z24: 7.698112850254E-11+1256682.45662983i | AA24: 7.69810828906542E-11+1256681.71203621i | AB24: 7.69810376559222E-11+1256680.97359946i | AD24: 0.40526209889378+2.5857324585452i | AF24: 6.850249716
H25: 19 | I25: 100000 | J25: -900 | L25: 100004.1769 | M25: 100004.1132 | N25: 100004.0499 | O25: 100003.9872 | P25: 100003.9249 | R25: 1256689.55 | S25: 1256688.749 | T25: 1256687.954 | U25: 1256687.166 | V25: 1256686.383 | X25: 7.69815630129944E-11+1256689.54981845i | Y25: 7.69815139528781E-11+1256688.74893402i | Z25: 7.69814652699091E-11+1256687.95420635i | AA25: 7.69814169640882E-11+1256687.16563545i | AB25: 7.6981369035416E-11+1256686.38322134i | AD25: 1.92481538811058+1.40039498021896i | AF25: 5.666020379
H26: 20 | I26: 100000 | J26: -950 | L26: 100004.6464 | M26: 100004.5791 | N26: 100004.5124 | O26: 100004.4461 | P26: 100004.3804 | R26: 1256695.449 | S26: 1256694.605 | T26: 1256693.766 | U26: 1256692.933 | V26: 1256692.107 | X26: 7.69819244103934E-11+1256695.44946919i | Y26: 7.69818726563886E-11+1256694.60460823i | Z26: 7.69818212795259E-11+1256693.76590395i | AA26: 7.6981770279806E-11+1256692.93335636i | AB26: 7.69817196572298E-11+1256692.10696546i | AD26: 2.11467423478444+0.333838794356134i | AF26: 4.58329546
H27: 21 | I27: 100000 | J27: -1000 | L27: 100005.1408 | M27: 100005.0701 | N27: 100004.9999 | O27: 100004.9301 | P27: 100004.8609 | R27: 1256701.663 | S27: 1256700.774 | T27: 1256699.892 | U27: 1256699.015 | V27: 1256698.145 | X27: 7.69823050496958E-11+1256701.66323538i | Y27: 7.69822506018414E-11+1256700.77439853i | Z27: 7.69821965311235E-11+1256699.89171827i | AA27: 7.69821428375429E-11+1256699.01519461i | AB27: 7.69820895211005E-11+1256698.14482756i | AD27: 1.90034489653571-0.00367262688249648i | AF27: 3.611324214
H28: 22 | I28: 100000 | J28: -1050 | L28: =SQRT(($C$7-$I28)^2+($D$7-$J28)^2) -> 100005.6603 | M28: =SQRT(($C$8-$I28)^2+($D$8-$J28)^2) -> 100005.5861 | N28: =SQRT(($C$9-$I28)^2+($D$9-$J28)^2) -> 100005.5123 | O28: =SQRT(($C$10-$I28)^2+($D$10-$J28)^2) -> 100005.4391 | P28: =SQRT(($C$11-$I28)^2+($D$11-$J28)^2) -> 100005.3663 | R28: 1256708.191 | S28: 1256707.258 | T28: 1256706.332 | U28: 1256705.411 | V28: 1256704.497 | X28: 7.69827049306163E-11+1256708.19111237i | Y28: 7.6982647788953E-11+1256707.2583003i | Z28: 7.69825910244205E-11+1256706.33164472i | AA28: 7.69825346370195E-11+1256705.41114565i | AB28: 7.69824786267509E-11+1256704.49680309i | AD28: 1.64078499500271+0.253621076662549i | AF28: 2.75649905
H29: 23 | I29: 100000 | J29: -1100 | L29: 100006.2048 | M29: 100006.1271 | N29: 100006.0498 | O29: 100005.9731 | P29: 100005.8968 | R29: 1256715.033 | S29: 1256714.056 | T29: 1256713.086 | U29: 1256712.121 | V29: 1256711.163 | X29: 7.69831240528549E-11+1256715.03309526i | Y29: 7.69830642174257E-11+1256714.05630867i | Z29: 7.69830047591211E-11+1256713.08567847i | AA29: 7.6982945677942E-11+1256712.12120467i | AB29: 7.69828869738891E-11+1256711.16288729i | AD29: 1.15549890782906+0.828948734851548i | AF29: 2.022333731
H30: 24 | I30: 100000 | J30: -1150 | L30: 100006.7743 | M30: 100006.693 | N30: 100006.6123 | O30: 100006.532 | P30: 100006.4523 | R30: 1256722.189 | S30: 1256721.168 | T30: 1256720.154 | U30: 1256719.145 | V30: 1256718.143 | X30: 7.69835624160975E-11+1256722.18917893i | Y30: 7.69834998869472E-11+1256721.16841855i | Z30: 7.69834377349151E-11+1256720.15381445i | AA30: 7.69833759600021E-11+1256719.14536666i | AB30: 7.6983314562209E-11+1256718.14307518i | AD30: 0.196339515429386+1.17088230172277i | AF30: 1.40951457
H31: 25 | I31: 100000 | J31: -1200 | L31: 100007.3687 | M31: 100007.284 | N31: 100007.1997 | O31: 100007.116 | P31: 100007.0327 | R31: 1256729.659 | S31: 1256728.595 | T31: 1256727.536 | U31: 1256726.484 | V31: 1256725.437 | X31: 7.69840200200152E-11+1256729.65935801i | Y31: 7.69839547971907E-11+1256728.5946246i | Z31: 7.69838899514777E-11+1256727.53604737i | AA31: 7.69838254828772E-11+1256726.48362633i | AB31: 7.698376139139E-11+1256725.4373615i | AD31: -0.766740756434237+0.572826791968376i | AF31: 0.9160219212
H32: 26 | I32: 100000 | J32: -1250 | L32: 100007.9882 | M32: 100007.8999 | N32: 100007.8122 | O32: 100007.7249 | P32: 100007.6382 | R32: 1256737.444 | S32: 1256736.335 | T32: 1256735.232 | U32: 1256734.136 | V32: 1256733.046 | X32: 7.69844968642651E-11+1256737.4436269i | Y32: 7.69844289478153E-11+1256736.33492126i | Z32: 7.69843614084701E-11+1256735.23237169i | AA32: 7.69842942462303E-11+1256734.1359782i | AB32: 7.69842274610971E-11+1256733.0457408i | AD32: -0.528464294578143-0.507979156732922i | AF32: 0.5373173343
H33: 27 | I33: 100000 | J33: -1300 | L33: 100008.6326 | M33: 100008.5409 | N33: 100008.4496 | O33: 100008.3589 | P33: 100008.2686 | R33: 1256745.542 | S33: 1256744.389 | T33: 1256743.243 | U33: 1256742.102 | V33: 1256740.968 | X33: 7.69849929484896E-11+1256745.54197975i | Y33: 7.69849223384654E-11+1256744.38930272i | Z33: 7.69848521055385E-11+1256743.24278164i | AA33: 7.69847822497099E-11+1256742.10241651i | AB33: 7.69847127709807E-11+1256740.96820736i | AD33: 0.408152620331014-0.316227709714583i | AF33: 0.2665885259
H34: 28 | I34: 100000 | J34: -1350 | L34: 100009.302 | M34: 100009.2068 | N34: 100009.1121 | O34: 100009.0178 | P34: 100008.9241 | R34: 1256753.954 | S34: 1256752.758 | T34: 1256751.567 | U34: 1256750.383 | V34: 1256749.205 | X34: 7.69855082723167E-11+1256753.95441051i | Y34: 7.69854349687711E-11+1256752.75776295i | Z34: 7.69853620423152E-11+1256751.56727121i | AA34: 7.69852894929502E-11+1256750.3829353i | AB34: 7.6985217320677E-11+1256749.20475526i | AD34: 0.0649800168739871+0.301367478421644i | AF34: 0.09504475964
H35: 29 | I35: 100000 | J35: -1400 | L35: 100009.9965 | M35: 100009.8978 | N35: 100009.7995 | O35: 100009.7018 | P35: 100009.6045 | R35: 1256762.681 | S35: 1256761.44 | T35: 1256760.206 | U35: 1256758.978 | V35: 1256757.755 | X35: 7.69860428353602E-11+1256762.68091286i | Y35: 7.69859668383481E-11+1256761.44029566i | Z35: 7.69858912184179E-11+1256760.20583416i | AA35: 7.69858159755708E-11+1256758.97752837i | AB35: 7.69857411098078E-11+1256757.7553783i | AD35: -0.0988360904731461-0.0498389512706078i | AF35: 0.01225249384
H36: 30 | I36: 100000 | J36: -1450 | L36: 100010.7159 | M36: 100010.6137 | N36: 100010.5119 | O36: 100010.4107 | P36: 100010.3099 | R36: 1256771.721 | S36: 1256770.437 | T36: 1256769.158 | U36: 1256767.886 | V36: 1256766.62 | X36: 7.69865966372192E-11+1256771.72148026i | Y36: 7.69865179467976E-11+1256770.43689436i | Z36: 7.69864396334498E-11+1256769.15846402i | AA36: 7.6986361697177E-11+1256767.88618926i | AB36: 7.69862841379803E-11+1256766.62007009i | AD36: -0.07476846599793-0.0301775529485079i | AF36: 0.00650100821
H37: 31 | I37: 100000 | J37: -1500 | L37: 100011.4603 | M37: 100011.3546 | N37: 100011.2494 | O37: 100011.1446 | P37: 100011.0404 | R37: 1256781.076 | S37: 1256779.748 | T37: 1256778.425 | U37: 1256777.109 | V37: 1256775.799 | X37: 7.69871696774785E-11+1256781.07610593i | Y37: 7.69870882937064E-11+1256779.74755228i | Z37: 7.69870072869997E-11+1256778.42515407i | AA37: 7.69869266573597E-11+1256777.10891129i | AB37: 7.69868464047874E-11+1256775.79882398i | AD37: 0.254680848352588+0.0180160362549273i | AF37: 0.06518691208
H38: 32 | I38: =I37-$J$1 -> 100000 | J38: =J37-$J$2 -> -1550 | L38: 100012.2297 | M38: 100012.1205 | N38: 100012.0118 | O38: 100011.9035 | P38: 100011.7958 | R38: 1256790.745 | S38: 1256789.372 | T38: 1256788.006 | U38: 1256786.646 | V38: 1256785.292 | X38: 7.69877619557086E-11+1256790.74478286i | Y38: 7.6987677878647E-11+1256789.37226247i | Z38: 7.69875941786421E-11+1256788.00589737i | AA38: 7.69875108556953E-11+1256786.64568756i | AB38: 7.69874279098077E-11+1256785.29163309i | AD38: -0.410329368125517-0.0826794254713492i | AF38: 0.1752060777
H39: 33 | I39: 100000 | J39: -1600 | L39: 100013.0241 | M39: 100012.9114 | N39: 100012.7992 | O39: 100012.6874 | P39: 100012.5762 | R39: 1256800.728 | S39: 1256799.311 | T39: 1256797.901 | U39: 1256796.497 | V39: 1256795.098 | X39: 7.69883734714655E-11+1256800.7275038i | Y39: 7.69882867011774E-11+1256799.3110177i | Z39: 7.69882003079371E-11+1256797.90068673i | AA39: 7.69881142917459E-11+1256796.49651092i | AB39: 7.69880286526051E-11+1256795.09849029i | AD39: 0.450162915976825+0.34741194753627i | AF39: 0.3233417122
H40: 34 | I40: 100000 | J40: -1650 | L40: 100013.8435 | M40: 100013.7273 | N40: 100013.6116 | O40: 100013.4963 | P40: 100013.3816 | R40: 1256811.024 | S40: 1256809.564 | T40: 1256808.11 | U40: 1256806.661 | V40: 1256805.219 | X40: 7.69890042242907E-11+1256811.02426127i | Y40: 7.69889147608412E-11+1256809.56381051i | Z40: 7.69888256744302E-11+1256808.10951474i | AA40: 7.69887369650592E-11+1256806.66137397i | AB40: 7.69886486327294E-11+1256805.21938824i | AD40: -0.0954191894162153-0.698235518058084i | AF40: 0.4966376604
H41: 35 | I41: 100000 | J41: -1700 | L41: 100014.6879 | M41: 100014.5682 | N41: 100014.449 | O41: 100014.3302 | P41: 100014.212 | R41: 1256821.635 | S41: 1256820.131 | T41: 1256818.632 | U41: 1256817.14 | V41: 1256815.654 | X41: 7.69896542137115E-11+1256821.63504755i | Y41: 7.69895620571676E-11+1256820.13063323i | Z41: 7.69894702776528E-11+1256818.63237374i | AA41: 7.69893788751684E-11+1256817.14026911i | AB41: 7.69892878497158E-11+1256815.65431935i | AD41: -0.676058136367179+0.475070602973228i | AF41: 0.6827466816
H42: 36 | I42: 100000 | J42: -1750 | L42: 100015.5573 | M42: 100015.4341 | N42: 100015.3113 | O42: 100015.1891 | P42: 100015.0673 | R42: 1256832.56 | S42: 1256831.011 | T42: 1256829.469 | U42: 1256827.933 | V42: 1256826.403 | X42: 7.69903234392407E-11+1256832.55985469i | Y42: 7.69902285896714E-11+1256831.01147793i | Z42: 7.69901341171215E-11+1256829.46925585i | AA42: 7.69900400215923E-11+1256827.93318847i | AB42: 7.69899463030851E-11+1256826.4032758i | AD42: 0.652074765065104+0.667115458050184i | AF42: 0.8702445336
H43: 37 | I43: 100000 | J43: -1800 | L43: 100016.4516 | M43: 100016.3249 | N43: 100016.1987 | O43: 100016.073 | P43: 100015.9477 | R43: 1256843.799 | S43: 1256842.206 | T43: 1256840.62 | U43: 1256839.04 | V43: 1256837.466 | X43: 7.69910119003765E-11+1256843.79867449i | Y43: 7.69909143578531E-11+1256842.20633647i | Z43: 7.69908171923389E-11+1256840.62015295i | AA43: 7.69907204038353E-11+1256839.04012396i | AB43: 7.69906239923439E-11+1256837.46624953i | AD43: 0.83312448747843-0.595655476043995i | AF43: 1.048901858
H44: 38 | I44: 100000 | J44: -1850 | L44: 100017.371 | M44: 100017.2408 | N44: 100017.111 | O44: 100016.9818 | P44: 100016.8531 | R44: 1256855.351 | S44: 1256853.715 | T44: 1256852.085 | U44: 1256850.461 | V44: 1256848.843 | X44: 7.69917195966031E-11+1256855.35149854i | Y44: 7.69916193611986E-11+1256853.71520043i | Z44: 7.69915195027929E-11+1256852.08505667i | AA44: 7.69914200213876E-11+1256850.46106727i | AB44: 7.69913209169841E-11+1256848.84323225i | AD44: -0.167552071283206-1.08712166390837i | AF44: 1.209907209
H45: 39 | I45: 100000 | J45: -1900 | L45: 100018.3153 | M45: 100018.1816 | N45: 100018.0484 | O45: 100017.9156 | P45: 100017.7834 | R45: 1256867.218 | S45: 1256865.538 | T45: 1256863.864 | U45: 1256862.196 | V45: 1256860.534 | X45: 7.69924465273899E-11+1256867.21831817i | Y45: 7.69923435991794E-11+1256865.53806121i | Z45: 7.69922410479572E-11+1256863.86395843i | AA45: 7.69921388737246E-11+1256862.19600983i | AB45: 7.69920370764834E-11+1256860.53421544i | AD45: -0.938026761025373-0.682746477736766i | AF45: 1.346036957
H46: 40 | I46: 100000 | J46: -1950 | L46: 100019.2846 | M46: 100019.1474 | N46: 100019.0107 | O46: 100018.8745 | P46: 100018.7387 | R46: 1256879.399 | S46: 1256877.675 | T46: 1256875.957 | U46: 1256874.245 | V46: 1256872.539 | X46: 7.69931926921923E-11+1256879.39912449i | Y46: 7.6993087071253E-11+1256877.67490995i | Z46: 7.69929818272909E-11+1256875.95684939i | AA46: 7.69928769603078E-11+1256874.24494284i | AB46: 7.6992772470305E-11+1256872.53919032i | AD46: -1.19050556706842-0.185646116844008i | AF46: 1.451767986
H47: 41 | I47: 100000 | J47: -2000 | L47: 100020.2789 | M47: 100020.1382 | N47: 100019.998 | O47: 100019.8583 | P47: 100019.719 | R47: 1256891.894 | S47: 1256890.126 | T47: 1256888.364 | U47: 1256886.608 | V47: 1256884.858 | X47: 7.69939580904509E-11+1256891.89390838i | Y47: 7.69938497768619E-11+1256890.12573753i | Z47: 7.6993741840239E-11+1256888.36372049i | AA47: 7.69936342805838E-11+1256886.60785727i | AB47: 7.69935270978979E-11+1256884.85814791i | AD47: -1.23421393660923+0.00696840088651945i | AF47: 1.5233326
H48: 42 | I48: 100000 | J48: -2050 | L48: 100021.2982 | M48: 100021.154 | N48: 100021.0103 | O48: 100020.8671 | P48: 100020.7243 | R48: 1256904.703 | S48: 1256902.891 | T48: 1256901.085 | U48: 1256899.285 | V48: 1256897.491 | X48: 7.69947427215923E-11+1256904.70266046i | Y48: 7.69946317154347E-11+1256902.89053464i | Z48: 7.69945210862318E-11+1256901.08456244i | AA48: 7.69944108339852E-11+1256899.28474387i | AB48: 7.69943009586964E-11+1256897.49107898i | AD48: -1.23481728124777-0.184234503609367i | AF48: 1.55871607
H49: 43 | I49: 100000 | J49: -2100 | L49: 100022.3425 | M49: 100022.1948 | N49: 100022.0476 | O49: 100021.9008 | P49: 100021.7546 | R49: 1256917.825 | S49: 1256915.969 | T49: 1256914.119 | U49: 1256912.276 | V49: 1256910.438 | X49: 7.69955465850283E-11+1256917.82537115i | Y49: 7.69954328863854E-11+1256915.96929171i | Z49: 7.69953195646854E-11+1256914.11936569i | AA49: 7.699520661993E-11+1256912.27559313i | AB49: 7.69950940521207E-11+1256910.43797404i | AD49: -1.01870677447962-0.720995898380604i | AF49: 1.557598578
H50: 44 | I50: 100000 | J50: -2150 | L50: 100023.4117 | M50: 100023.2605 | N50: 100023.1098 | O50: 100022.9596 | P50: 100022.8099 | R50: 1256931.262 | S50: 1256929.362 | T50: 1256927.468 | U50: 1256925.58 | V50: 1256923.699 | X50: 7.69963696801566E-11+1256931.2620306i | Y50: 7.69962532891137E-11+1256929.36199894i | Z50: 7.69961372750015E-11+1256927.4681205i | AA50: 7.69960216378218E-11+1256925.58039531i | AB50: 7.69959063775764E-11+1256923.69882341i | AD50: -0.212386057332668-1.21496428528051i | AF50: 1.521246052
H51: 45 | I51: 100000 | J51: -2200 | L51: 100024.506 | M51: 100024.3513 | N51: 100024.1971 | O51: 100024.0434 | P51: 100023.8901 | R51: 1256945.013 | S51: 1256943.069 | T51: 1256941.131 | U51: 1256939.199 | V51: 1256937.274 | X51: 7.69972120063606E-11+1256945.01262875i | Y51: 7.69970929230047E-11+1256943.06864628i | Z51: 7.69969742165673E-11+1256941.13081684i | AA51: 7.69968558870501E-11+1256939.19914045i | AB51: 7.69967379344549E-11+1256937.27361714i | AD51: 0.960816303927212-0.727452156640277i | AF51: 1.45235461
H52: 46 | I52: 100000 | J52: -2250 | L52: 100025.6252 | M52: 100025.467 | N52: 100025.3093 | O52: 100025.1521 | P52: 100024.9954 | R52: 1256959.077 | S52: 1256957.089 | T52: 1256955.107 | U52: 1256953.132 | V52: 1256951.162 | X52: 7.6998073563009E-11+1256959.0771553i | Y52: 7.69979517874294E-11+1256957.08922348i | Z52: 7.69978303887557E-11+1256955.10744449i | AA52: 7.69977093669896E-11+1256953.13181834i | AB52: 7.6997588722133E-11+1256951.16234507i | AD52: 0.842302204893698+0.803357422985169i | AF52: 1.354856153
H53: 47 | I53: 100000 | J53: -2300 | L53: 100026.7694 | M53: 100026.6077 | N53: 100026.4465 | O53: 100026.2858 | P53: 100026.1256 | R53: 1256973.456 | S53: 1256971.424 | T53: 1256969.398 | U53: 1256967.378 | V53: 1256965.365 | X53: 7.69989543494563E-11+1256973.4555997i | Y53: 7.69988298817442E-11+1256971.42372003i | Z53: 7.69987057909252E-11+1256969.39799297i | AA53: 7.69985820770009E-11+1256967.37841854i | AB53: 7.69984587399733E-11+1256965.36499679i | AD53: -0.880082171025682+0.677604012636939i | AF53: 1.233691826
H54: 48 | I54: 100000 | J54: -2350 | L54: 100027.9386 | M54: 100027.7734 | N54: 100027.6087 | O54: 100027.4445 | P54: 100027.2808 | R54: 1256988.148 | S54: 1256986.072 | T54: 1256984.002 | U54: 1256981.939 | V54: 1256979.882 | X54: 7.69998543650426E-11+1256988.14795119i | Y54: 7.69997272052914E-11+1256986.07212519i | Z54: 7.69996004224199E-11+1256984.00245157i | AA54: 7.69994740164301E-11+1256981.93893039i | AB54: 7.69993479873239E-11+1256979.88156165i | AD54: -0.196866979853609-1.02752419662309i | AF54: 1.094562582
H55: 49 | I55: 100000 | J55: -2400 | L55: 100029.1327 | M55: 100028.9641 | N55: 100028.7959 | O55: 100028.6281 | P55: 100028.4609 | R55: 1257003.154 | S55: 1257001.034 | T55: 1256998.921 | U55: 1256996.813 | V55: 1256994.712 | X55: 7.70007736090937E-11+1257003.15419876i | Y55: 7.70006437573985E-11+1257001.03442797i | Z55: 7.70005142825697E-11+1256998.92080936i | AA55: 7.70003851846091E-11+1256996.81334296i | AB55: 7.70002564635186E-11+1256994.71202879i | AD55: 0.806425462507701+0.541612252671369i | AF55: 0.9436658588
H56: 50 | I56: 100000 | J56: -2450 | L56: 100030.3519 | M56: 100030.1797 | N56: 100030.008 | O56: 100029.8368 | P56: 100029.6661 | R56: 1257018.474 | S56: 1257016.311 | T56: 1257014.153 | U56: 1257012.002 | V56: 1257009.856 | X56: 7.70017120809208E-11+1257018.47433116i | Y56: 7.7001579537379E-11+1257016.31061719i | Z56: 7.70014473706898E-11+1257014.15305516i | AA56: 7.70013155808551E-11+1257012.00164511i | AB56: 7.70011841678769E-11+1257009.85638708i | AD56: -0.881488405674519-0.10200627474055i | AF56: 0.7874270894
H57: 51 | I57: =I56-$J$1 -> 100000 | J57: =J56-$J$2 -> -2500 | L57: 100031.596 | M57: 100031.4203 | N57: 100031.2451 | O57: 100031.0704 | P57: 100030.8962 | R57: 1257034.108 | S57: 1257031.901 | T57: 1257029.699 | U57: 1257027.504 | V57: 1257025.315 | X57: =IMPRODUCT($F$7,R57,$X$2) -> 7.70026697798211E-11+1257034.10833693i | Y57: =IMPRODUCT($F$8,S57,$X$2) -> 7.70025345445319E-11+1257031.90068138i | Z57: =IMPRODUCT($F$9,T57,$X$2) -> 7.70023996860812E-11+1257029.69917755i | AA57: =IMPRODUCT($F$10,U57,$X$2) -> 7.70022652044712E-11+1257027.50382548i | AB57: =IMPRODUCT($F$11,V57,$X$2) -> 7.70021310997036E-11+1257025.31462519i | AD57: =IMSUM(IMEXP(X57),IMEXP(Y57),IMEXP(Z57),IMEXP(AA57),IMEXP(AB57)) -> 0.794247151484455-0.0375107457870079i | AF57: =(IMABS(AD57))^2 -> 0.6322355937
H58: 52 | I58: 100000 | J58: -2550 | L58: 100032.8651 | M58: 100032.6859 | N58: 100032.5072 | O58: 100032.329 | P58: 100032.1513 | R58: 1257050.056 | S58: 1257047.805 | T58: 1257045.559 | U58: 1257043.32 | V58: 1257041.087 | X58: 7.7003646705077E-11+1257050.05620434i | Y58: 7.70035087781418E-11+1257047.80460887i | Z58: 7.70033712280307E-11+1257045.5591649i | AA58: 7.7003234054746E-11+1257043.31987244i | AB58: 7.70030972582896E-11+1257041.08673153i | AD58: -0.692068672594184-0.0723516807337112i | AF58: 0.4841938133
H59: 53 | I59: 100000 | J59: -2600 | L59: 100034.1591 | M59: 100033.9765 | N59: 100033.7943 | O59: 100033.6126 | P59: 100033.4314 | R59: 1257066.318 | S59: 1257064.022 | T59: 1257061.733 | U59: 1257059.45 | V59: 1257057.173 | X59: 7.70046428559569E-11+1257066.31792146i | Y59: 7.70045022374789E-11+1257064.02238776i | Z59: 7.70043619958105E-11+1257061.73300531i | AA59: 7.70042221309539E-11+1257059.44977415i | AB59: 7.70040826429111E-11+1257057.1726943i | AD59: 0.49753890001038+0.318343178309932i | AF59: 0.3488873362
H60: 54 | I60: 100000 | J60: -2650 | L60: 100035.4782 | M60: 100035.292 | N60: 100035.1063 | O60: 100034.9211 | P60: 100034.7364 | R60: 1257082.893 | S60: 1257080.554 | T60: 1257078.221 | U60: 1257075.894 | V60: 1257073.573 | X60: 7.70056582317147E-11+1257082.89347609i | Y60: 7.70055149217992E-11+1257080.55400589i | Z60: 7.70053719886785E-11+1257078.22068669i | AA60: 7.70052294323548E-11+1257075.89351853i | AB60: 7.700508725283E-11+1257073.57250144i | AD60: -0.106360695170079-0.468903946859135i | AF60: 0.2311835089
H61: 55 | I61: 100000 | J61: -2700 | L61: 100036.8222 | M61: 100036.6325 | N61: 100036.4434 | O61: 100036.2547 | P61: 100036.0665 | R61: 1257099.783 | S61: 1257097.399 | T61: 1257095.022 | U61: 1257092.651 | V61: 1257090.286 | X61: 7.70066928315898E-11+1257099.78285584i | Y61: 7.70065468303442E-11+1257097.39945087i | Z61: 7.70064012058782E-11+1257095.02219667i | AA61: 7.70062559581941E-11+1257092.65109326i | AB61: 7.7006111087294E-11+1257090.28614067i | AD61: -0.28058344064128+0.237354980180073i | AF61: 0.1350644538
H62: 56 | I62: 100000 | J62: -2750 | L62: 100038.1912 | M62: 100037.998 | N62: 100037.8054 | O62: 100037.6132 | P62: 100037.4215 | R62: 1257116.986 | S62: 1257114.559 | T62: 1257112.138 | U62: 1257109.722 | V62: 1257107.314 | X62: 7.70077466548074E-11+1257116.98604805i | Y62: 7.7007597962341E-11+1257114.55871011i | Z62: 7.70074496466389E-11+1257112.13752268i | AA62: 7.70073017077032E-11+1257109.72248579i | AB62: 7.70071541455361E-11+1257107.31359947i | AD62: 0.192435653850313+0.162689527345388i | AF62: 0.06349936318
H63: 57 | I63: 100000 | J63: -2800 | L63: 100039.5851 | M63: 100039.3885 | N63: 100039.1923 | O63: 100038.9966 | P63: 100038.8015 | R63: 1257134.503 | S63: 1257132.032 | T63: 1257129.567 | U63: 1257127.108 | V63: 1257124.655 | X63: 7.70088197005784E-11+1257134.50303983i | Y63: 7.70086683170026E-11+1257132.03177074i | Z63: 7.70085173101753E-11+1257129.56665189i | AA63: 7.70083666800988E-11+1257127.10768333i | AB63: 7.70082164267753E-11+1257124.6548651i | AD63: 0.10117831219941-0.0901230131255559i | AF63: 0.01835920835
H64: 58 | I64: 100000 | J64: -2850 | L64: 100041.0041 | M64: 100040.8039 | N64: 100040.6043 | O64: 100040.4051 | P64: 100040.2064 | R64: 1257152.334 | S64: 1257149.819 | T64: 1257147.31 | U64: 1257144.807 | V64: 1257142.31 | X64: 7.70099119680992E-11+1257152.33381808i | Y64: 7.70097578935274E-11+1257149.81861968i | Z64: 7.7009604195688E-11+1257147.30957126i | AA64: 7.70094508745835E-11+1257144.80667288i | AB64: 7.7009297930216E-11+1257142.30992455i | AD64: -0.00719353939700196-0.0180042904115966i | AF64: 0.0003759014823
H65: 59 | I65: 100000 | J65: -2900 | L65: 100042.448 | M65: 100042.2443 | N65: 100042.0412 | O65: 100041.8385 | P65: 100041.6363 | R65: 1257170.478 | S65: 1257167.919 | T65: 1257165.366 | U65: 1257162.819 | V65: 1257160.279 | X65: 7.7011023456552E-11+1257170.47836943i | Y65: 7.70108666910994E-11+1257167.91924361i | Z65: 7.70107103023631E-11+1257165.3662675i | AA65: 7.70105542903454E-11+1257162.81944116i | AB65: 7.70103986550485E-11+1257160.27876462i | AD65: 0.08097247225555+0.0508875921136589i | AF65: 0.009146088294
H66: 60 | I66: 100000 | J66: -2950 | L66: 100043.9168 | M66: 100043.7097 | N66: 100043.503 | O66: 100043.2969 | P66: 100043.0912 | R66: 1257188.937 | S66: 1257186.334 | T66: 1257183.737 | U66: 1257181.146 | V66: 1257178.561 | X66: 7.70121541651045E-11+1257188.93668031i | Y66: 7.70119947088885E-11+1257186.33362897i | Z66: 7.70118356293724E-11+1257183.7367271i | AA66: 7.70116769265582E-11+1257181.14597471i | AB66: 7.70115186004485E-11+1257178.56137186i | AD66: 0.207326376116486+0.0139271304083709i | AF66: 0.0431781912
H67: 61 | I67: 100000 | J67: -3000 | L67: 100045.4107 | M67: 100045.2 | N67: 100044.9899 | O67: 100044.7802 | P67: 100044.571 | R67: 1257207.709 | S67: 1257205.062 | T67: 1257202.421 | U67: 1257199.786 | V67: 1257197.158 | X67: 7.70133040929101E-11+1257207.70873689i | Y67: 7.70131419460502E-11+1257205.06176199i | Z67: 7.70129801758733E-11+1257202.42093628i | AA67: 7.70128187823816E-11+1257199.78625979i | AB67: 7.70126577655775E-11+1257197.15773256i | AD67: 0.314530845289008-0.0324102472952421i | AF67: 0.09998007677
H68: 62 | I68: 100000 | J68: -3050 | L68: 100046.9295 | M68: 100046.7153 | N68: 100046.5017 | O68: 100046.2885 | P68: 100046.0759 | R68: 1257226.795 | S68: 1257224.104 | T68: 1257221.419 | U68: 1257218.74 | V68: 1257216.068 | X68: 7.70144732391079E-11+1257226.79452511i | Y68: 7.70143084017255E-11+1257224.10362865i | Z68: 7.70141439410089E-11+1257221.41888108i | AA68: 7.70139798569604E-11+1257218.74028245i | AB68: 7.70138161495826E-11+1257216.06783281i | AD68: 0.419343008498314+0.0182917767137853i | AF68: 0.1761831479
H69: 63 | I69: 100000 | J69: -3100 | L69: 100048.4732 | M69: 100048.2556 | N69: 100048.0385 | O69: 100047.8218 | P69: 100047.6056 | R69: 1257246.194 | S69: 1257243.459 | T69: 1257240.731 | U69: 1257238.008 | V69: 1257235.292 | X69: 7.70156616028228E-11+1257246.1940307i | Y69: 7.70154940750412E-11+1257243.45921467i | Z69: 7.7015326923908E-11+1257240.73054726i | AA69: 7.70151601494257E-11+1257238.0080285i | AB69: 7.70149937515966E-11+1257235.29165845i | AD69: 0.452945368626154+0.250076231004608i | AF69: 0.2676976283
H70: 64 | I70: 100000 | J70: -3150 | L70: 100050.042 | M70: 100049.8208 | N70: 100049.6002 | O70: 100049.3801 | P70: 100049.1604 | R70: 1257265.907 | S70: 1257263.129 | T70: 1257260.356 | U70: 1257257.589 | V70: 1257254.829 | X70: 7.7016869183165E-11+1257265.90723913i | Y70: 7.70166989651097E-11+1257263.12850558i | Z70: 7.70165291236851E-11+1257260.35592037i | AA70: 7.70163596588937E-11+1257257.58948352i | AB70: 7.7016190570738E-11+1257254.82919509i | AD70: 0.17468547985627+0.582561188402166i | AF70: 0.3698925551
H71: 65 | I71: 100000 | J71: -3200 | L71: 100051.6356 | M71: 100051.411 | N71: 100051.1869 | O71: 100050.9633 | P71: 100050.7401 | R71: =L71/$D$3*2*PI()+$E$7 -> 1257285.934 | S71: =M71/$D$3*2*PI()+$E$8 -> 1257283.111 | T71: =N71/$D$3*2*PI()+$E$9 -> 1257280.295 | U71: =O71/$D$3*2*PI()+$E$10 -> 1257277.485 | V71: =P71/$D$3*2*PI()+$E$11 -> 1257274.68 | X71: 7.70180959792308E-11+1257285.93413564i | Y71: 7.70179230710292E-11+1257283.11148666i | Z71: 7.70177505394403E-11+1257280.29498572i | AA71: 7.70175783844666E-11+1257277.48463285i | AB71: 7.70174066061108E-11+1257274.6804281i | AD71: -0.494707222179009+0.482761189902882i | AF71: 0.4777936022
H72: 66 | I72: 100000 | J72: -3250 | L72: 100053.2543 | M72: 100053.0262 | N72: 100052.7986 | O72: 100052.5714 | P72: 100052.3448 | R72: 1257306.275 | S72: 1257303.408 | T72: 1257300.548 | U72: 1257297.693 | V72: 1257294.845 | X72: 7.70193419901019E-11+1257306.27470524i | Y72: 7.70191663918833E-11+1257303.40814294i | Z72: 7.70189911702592E-11+1257300.54772838i | AA72: 7.70188163252323E-11+1257297.6934616i | AB72: 7.70186418568049E-11+1257294.84534263i | AD72: -0.618883832200931-0.450858911569181i | AF72: 0.5862909559
H73: 67 | I73: 100000 | J73: -3300 | L73: 100054.8979 | M73: 100054.6663 | N73: 100054.4352 | O73: 100054.2046 | P73: 100053.9744 | R73: 1257326.929 | S73: 1257324.018 | T73: 1257321.114 | U73: 1257318.216 | V73: 1257315.324 | X73: 7.70206072148457E-11+1257326.92893271i | Y73: 7.70204289267416E-11+1257324.01845924i | Z73: 7.70202510152135E-11+1257321.1141332i | AA73: 7.7020073480264E-11+1257318.21595463i | AB73: 7.70198963218957E-11+1257315.32392359i | AD73: 0.581583305366372-0.593388808420839i | AF73: 0.690349419
H74: 68 | I74: 100000 | J74: -3350 | L74: 100056.5665 | M74: 100056.3314 | N74: 100056.0968 | O74: 100055.8626 | P74: 100055.629 | R74: 1257347.897 | S74: 1257344.942 | T74: 1257341.994 | U74: 1257339.052 | V74: 1257336.116 | X74: 7.70218916525154E-11+1257347.8968026i | Y74: 7.70217106746592E-11+1257344.94242013i | Z74: 7.70215300733603E-11+1257341.99418478i | AA74: 7.70213498486211E-11+1257339.0520966i | AB74: 7.70211700004444E-11+1257336.11615564i | AD74: 0.29214175273414+0.836580017468269i | AF74: 0.7852129293
H75: 69 | I75: 100000 | J75: -3400 | L75: 100058.26 | M75: 100058.0214 | N75: 100057.7833 | O75: 100057.5457 | P75: 100057.3086 | R75: 1257369.178 | S75: 1257366.18 | T75: 1257363.188 | U75: 1257360.202 | V75: 1257357.222 | X75: 7.70231953021498E-11+1257369.17829921i | Y75: 7.7023011634677E-11+1257366.18000995i | Z75: 7.70228283437422E-11+1257363.1878675i | AA75: 7.70226454293483E-11+1257360.20187191i | AB75: 7.70224628914978E-11+1257357.22202323i | AD75: -0.843352196639734-0.394148218222368i | AF75: 0.8665957455
H76: 70 | I76: 100000 | J76: -3450 | L76: 100059.9785 | M76: 100059.7364 | N76: 100059.4948 | O76: 100059.2537 | P76: 100059.0131 | R76: 1257390.773 | S76: 1257387.731 | T76: 1257384.695 | U76: 1257381.665 | V76: 1257378.642 | X76: 7.70245181627734E-11+1257390.77340661i | Y76: 7.70243318058213E-11+1257387.73121281i | Z76: 7.7024145825388E-11+1257384.6951655i | AA76: 7.70239602214762E-11+1257381.66526474i | AB76: 7.70237749940885E-11+1257378.64151057i | AD76: 0.963752443143334-0.0451082523365699i | AF76: 0.9308535261
H77: 71 | I77: 100000 | J77: -3500 | L77: 100061.7219 | M77: 100061.4763 | N77: 100061.2313 | O77: 100060.9866 | P77: 100060.7425 | R77: 1257412.682 | S77: 1257409.596 | T77: 1257406.516 | U77: 1257403.442 | V77: 1257400.375 | X77: 7.70258602333964E-11+1257412.68210866i | Y77: 7.70256711871045E-11+1257409.59601258i | Z77: 7.70254825173117E-11+1257406.51606269i | AA77: 7.70252942240209E-11+1257403.44225902i | AB77: 7.70251063072346E-11+1257400.37460162i | AD77: -0.964306491804821+0.212698962643067i | AF77: 0.9751278588
H78: 72 | I78: 100000 | J78: -3550 | L78: 100063.4903 | M78: 100063.2412 | N78: 100062.9927 | O78: 100062.7446 | P78: 100062.497 | R78: 1257434.904 | S78: 1257431.774 | T78: 1257428.651 | U78: 1257425.533 | V78: 1257422.421 | X78: 7.70272215130146E-11+1257434.90438895i | Y78: 7.70270297775244E-11+1257431.77439292i | Z78: 7.70268384185134E-11+1257428.65054274i | AA78: 7.70266474359843E-11+1257425.53283846i | AB78: 7.70264568299401E-11+1257422.42128013i | AD78: 0.99601015222237-0.0736395596845796i | AF78: 0.9974590081
H79: 73 | I79: 100000 | J79: -3600 | L79: 100065.2837 | M79: 100065.0311 | N79: 100064.779 | O79: 100064.5274 | P79: 100064.2763 | R79: 1257457.44 | S79: 1257454.266 | T79: 1257451.099 | U79: 1257447.937 | V79: 1257444.782 | X79: 7.70286020006097E-11+1257457.44023087i | Y79: 7.70284075760646E-11+1257454.26633722i | Z79: 7.70282135279785E-11+1257451.09858909i | AA79: 7.70280198563541E-11+1257447.93698653i | AB79: 7.70278265611945E-11+1257444.78152959i | AD79: -0.926055303003852-0.373208390204874i | AF79: 0.9968629267
H80: 74 | I80: 100000 | J80: -3650 | L80: 100067.102 | M80: 100066.8459 | N80: 100066.5903 | O80: 100066.3352 | P80: 100066.0806 | R80: 1257480.29 | S80: 1257477.072 | T80: 1257473.86 | U80: 1257470.655 | V80: 1257467.455 | X80: 7.70300016951491E-11+1257480.28961755i | Y80: 7.70298045816945E-11+1257477.07182865i | Z80: 7.70296078446783E-11+1257473.86018495i | AA80: 7.70294114841036E-11+1257470.65468648i | AB80: 7.70292154999731E-11+1257467.4553333i | AD80: 0.399784653945764+0.901965540491877i | AF80: 0.9733696058
H81: 75 | I81: 100000 | J81: -3700 | L81: 100068.9452 | M81: 100068.6857 | N81: 100068.4266 | O81: 100068.168 | P81: 100067.9099 | R81: 1257503.453 | S81: 1257500.191 | T81: 1257496.935 | U81: 1257493.686 | V81: 1257490.443 | X81: 7.70314205955856E-11+1257503.4525319i | Y81: 7.70312207933689E-11+1257500.19085017i | Z81: 7.703102136757E-11+1257496.93531329i | AA81: 7.70308223181917E-11+1257493.68592131i | AB81: 7.7030623645237E-11+1257490.44267427i | AD81: 0.595829098005876-0.756973705903051i | AF81: 0.9280215055
H82: 76 | I82: 100000 | J82: -3750 | L82: 100070.8134 | M82: 100070.5504 | N82: 100070.2878 | O82: 100070.0257 | P82: 100069.7641 | R82: 1257526.929 | S82: 1257523.623 | T82: 1257520.324 | U82: 1257517.031 | V82: 1257513.744 | X82: 7.7032858700858E-11+1257526.9289566i | Y82: 7.70326562100287E-11+1257523.62338447i | Z82: 7.70324540955962E-11+1257520.32395685i | AA82: 7.70322523575632E-11+1257517.03067379i | AB82: 7.70320509959329E-11+1257513.74353533i | AD82: -0.817985941788395-0.440148967398437i | AF82: 0.8628321145
H83: 77 | I83: 100000 | J83: -3800 | L83: 100072.7065 | M83: 100072.44 | N83: 100072.174 | O83: 100071.9084 | P83: 100071.6433 | R83: 1257550.719 | S83: 1257547.369 | T83: 1257544.026 | U83: 1257540.689 | V83: 1257537.358 | X83: 7.70343160098907E-11+1257550.71887409i | Y83: 7.70341108306003E-11+1257547.36941404i | Z83: 7.70339060276852E-11+1257544.02609814i | AA83: 7.70337016011485E-11+1257540.68892646i | AB83: 7.70334975509932E-11+1257537.35789903i | AD83: -0.52341543397937+0.711858425849768i | AF83: 0.780706135
H84: 78 | I84: 100000 | J84: -3850 | L84: 100074.6246 | M84: 100074.3546 | N84: 100074.0851 | O84: 100073.816 | P84: 100073.5474 | R84: 1257574.822 | S84: 1257571.429 | T84: 1257568.042 | U84: 1257564.661 | V84: 1257561.286 | X84: 7.70357925215939E-11+1257574.82226658i | Y84: 7.70355846539958E-11+1257571.4289211i | Z84: 7.70353771627514E-11+1257568.04171944i | AA84: 7.70351700478638E-11+1257564.66066163i | AB84: 7.70349633093361E-11+1257561.28574772i | AD84: 0.38439430689793+0.733188441390641i | AF84: 0.6853242738
H85: 79 | I85: 100000 | J85: -3900 | L85: 100076.5677 | M85: 100076.2941 | N85: 100076.0211 | O85: 100075.7486 | P85: 100075.4765 | R85: 1257599.239 | S85: 1257595.802 | T85: 1257592.371 | U85: 1257588.946 | V85: 1257585.527 | X85: 7.70372882348634E-11+1257599.23911604i | Y85: 7.7037077679113E-11+1257595.80188768i | Z85: 7.70368674996945E-11+1257592.37080278i | AA85: 7.70366576966109E-11+1257588.94586137i | AB85: 7.70364482698653E-11+1257585.52706351i | AD85: 0.731578075701949+0.213986755131146i | AF85: 0.5809968122
H86: 80 | I86: 100000 | J86: -3950 | L86: 100078.5356 | M86: 100078.2586 | N86: 100077.9821 | O86: 100077.7061 | P86: 100077.4305 | R86: 1257623.969 | S86: 1257620.488 | T86: 1257617.013 | U86: 1257613.545 | V86: 1257610.082 | X86: 7.70388031485809E-11+1257623.96940421i | Y86: 7.70385899048357E-11+1257620.48829555i | Z86: 7.70383770374001E-11+1257617.01332997i | AA86: 7.70381645462774E-11+1257613.54450753i | AB86: 7.70379524314706E-11+1257610.08182827i | AD86: 0.672953369668201-0.140089301146437i | AF86: 0.47249125
H87: 81 | I87: 100000 | J87: -4000 | L87: 100080.5286 | M87: 100080.248 | N87: 100079.968 | O87: 100079.6885 | P87: 100079.4095 | R87: 1257649.013 | S87: 1257645.488 | T87: 1257641.969 | U87: 1257638.457 | V87: 1257634.95 | X87: 7.70403372616138E-11+1257649.01311262i | Y87: 7.7040121330033E-11+1257645.48812624i | Z87: 7.70399057747396E-11+1257641.96928258i | AA87: 7.70396905957366E-11+1257638.4565817i | AB87: 7.70394757930272E-11+1257634.95002364i | AD87: 0.560605000923394-0.224861043244506i | AF87: 0.3648404558
H88: 82 | I88: 100000 | J88: -4050 | L88: 100082.5464 | M88: 100082.2624 | N88: 100081.9789 | O88: 100081.6959 | P88: 100081.4133 | R88: 1257674.37 | S88: 1257670.801 | T88: 1257667.239 | U88: 1257663.682 | V88: 1257660.132 | X88: 7.70418905728149E-11+1257674.37022252i | Y88: 7.70416719535602E-11+1257670.80136107i | Z88: 7.704145371057E-11+1257667.23864197i | AA88: 7.70412358438477E-11+1257663.68206527i | AB88: 7.70410183533962E-11+1257660.13163103i | AD88: 0.497773342955968-0.123935755408078i | AF88: 0.2631383724
H89: 83 | I89: 100000 | J89: -4100 | L89: 100084.5892 | M89: 100084.3017 | N89: 100084.0147 | O89: 100083.7282 | P89: 100083.4422 | R89: 1257700.041 | S89: 1257696.428 | T89: 1257692.821 | U89: 1257689.221 | V89: 1257685.627 | X89: 7.70434630810232E-11+1257700.04071498i | Y89: 7.70432417742579E-11+1257696.42798112i | Z89: 7.70430208437342E-11+1257692.82138924i | AA89: 7.70428002894553E-11+1257689.22093938i | AB89: 7.70425801114244E-11+1257685.6266316i | AD89: 0.406243814922038+0.0854204357468811i | AF89: 0.172330688
H90: 84 | I90: 100000 | J90: -4150 | L90: 100086.6569 | M90: 100086.3659 | N90: 100086.0755 | O90: 100085.7854 | P90: 100085.4959 | R90: 1257726.025 | S90: 1257722.368 | T90: 1257718.718 | U90: 1257715.073 | V90: 1257711.435 | X90: 7.70450547850632E-11+1257726.02457079i | Y90: 7.70448307909528E-11+1257722.36796722i | Z90: 7.70446071730607E-11+1257718.71750525i | AA90: 7.70443839313901E-11+1257715.07318493i | AB90: 7.70441610659444E-11+1257711.43500631i | AD90: 0.175351342342236+0.257411206928036i | AF90: 0.09700862271
H91: 85 | I91: 100000 | J91: -4200 | L91: 100088.7496 | M91: 100088.4551 | N91: 100088.1611 | O91: 100087.8676 | P91: 100087.5746 | R91: 1257752.322 | S91: 1257748.621 | T91: 1257744.927 | U91: 1257741.239 | V91: 1257737.557 | X91: 7.70466656837453E-11+1257752.32177054i | Y91: 7.70464390024571E-11+1257748.6213i | Z91: 7.70462126973637E-11+1257744.92697067i | AA91: 7.70459867684683E-11+1257741.23878261i | AB91: 7.70457612157743E-11+1257737.55673586i | AD91: -0.0943381076460675+0.179759728435456i | AF91: 0.04121323852
H92: 86 | I92: 100000 | J92: -4250 | L92: =SQRT(($C$7-$I92)^2+($D$7-$J92)^2) -> 100090.8672 | M92: =SQRT(($C$8-$I92)^2+($D$8-$J92)^2) -> 100090.5692 | N92: =SQRT(($C$9-$I92)^2+($D$9-$J92)^2) -> 100090.2718 | O92: =SQRT(($C$10-$I92)^2+($D$10-$J92)^2) -> 100089.9748 | P92: =SQRT(($C$11-$I92)^2+($D$11-$J92)^2) -> 100089.6783 | R92: 1257778.932 | S92: 1257775.188 | T92: 1257771.45 | U92: 1257767.718 | V92: 1257763.992 | X92: 7.70482957758654E-11+1257778.93229457i | Y92: 7.70480664075689E-11+1257775.18795982i | Z92: 7.70478374154433E-11+1257771.4497659i | AA92: 7.7047608799492E-11+1257767.71771285i | AB92: 7.70473805597182E-11+1257763.99180073i | AD92: -0.0863017690760618-0.0284629935440059i | AF92: 0.008258137347
H93: 87 | I93: 100000 | J93: -4300 | L93: 100093.0097 | M93: 100092.7083 | N93: 100092.4073 | O93: 100092.1068 | P93: 100091.8068 | R93: 1257805.856 | S93: 1257802.068 | T93: 1257798.286 | U93: 1257794.51 | V93: 1257790.74 | X93: 7.70499450602054E-11+1257805.856123i | Y93: 7.7049713005072E-11+1257802.06792684i | Z93: 7.70494813260854E-11+1257798.28587112i | AA93: 7.70492500232489E-11+1257794.50995587i | AB93: 7.7049019096566E-11+1257790.74018116i | AD93: -0.00739828159853895+0.0228592527895299i | AF93: 0.0005772800087
H94: 88 | I94: 100000 | J94: -4350 | L94: 100095.1772 | M94: 100094.8722 | N94: 100094.5678 | O94: 100094.2638 | P94: 100093.9603 | R94: 1257833.093 | S94: 1257829.261 | T94: 1257825.435 | U94: 1257821.615 | V94: 1257817.802 | X94: 7.70516135355328E-11+1257833.09323571i | Y94: 7.70513787937359E-11+1257829.26118097i | Z94: 7.70511444280614E-11+1257825.43526627i | AA94: 7.70509104385127E-11+1257821.61549165i | AB94: 7.70506768250932E-11+1257817.80185717i | AD94: -0.0924496797259866-0.105153446534861i | AF94: 0.0196041906
H95: 89 | I95: 100000 | J95: -4400 | L95: 100097.3696 | M95: 100097.0611 | N95: 100096.7532 | O95: 100096.4457 | P95: 100096.1388 | R95: 1257860.644 | S95: 1257856.768 | T95: 1257852.898 | U95: 1257849.034 | V95: 1257845.177 | X95: 7.70533012006011E-11+1257860.64361234i | Y95: 7.70530637723161E-11+1257856.76770189i | Z95: 7.70528267201287E-11+1257852.89793107i | AA95: 7.70525900440426E-11+1257849.03429992i | AB95: 7.7052353744061E-11+1257845.17680852i | AD95: 0.256018482764855+0.0119240218734695i | AF95: 0.06568764581
H96: 90 | I96: 100000 | J96: -4450 | L96: 100099.5869 | M96: 100099.275 | N96: 100098.9635 | O96: 100098.6526 | P96: 100098.3421 | R96: 1257888.507 | S96: 1257884.587 | T96: 1257880.674 | U96: 1257876.766 | V96: 1257872.865 | X96: 7.70550080541493E-11+1257888.50723232i | Y96: 7.70547679395535E-11+1257884.58746905i | Z96: 7.70545282010305E-11+1257880.67384499i | AA96: 7.70542888385837E-11+1257876.76636022i | AB96: 7.70540498522167E-11+1257872.86501478i | AD96: -0.334788421491802+0.161135108837524i | AF96: 0.1380478105
H97: 91 | I97: 100000 | J97: -4500 | L97: 100101.8291 | M97: 100101.5137 | N97: 100101.1988 | O97: 100100.8844 | P97: 100100.5704 | R97: 1257916.684 | S97: 1257912.72 | T97: 1257908.763 | U97: 1257904.812 | V97: 1257900.866 | X97: 7.70567340949023E-11+1257916.68407482i | Y97: 7.70564912941751E-11+1257912.72046166i | Z97: 7.70562488694955E-11+1257908.7629873i | AA97: 7.70560068208669E-11+1257904.81165181i | AB97: 7.70557651482929E-11+1257900.86645525i | AD97: 0.390950869274437-0.286239027312234i | AF97: 0.2347753629
H98: 92 | I98: 100000 | J98: -4550 | L98: 100104.0963 | M98: 100103.7774 | N98: 100103.459 | O98: 100103.1411 | P98: 100102.8236 | R98: 1257945.174 | S98: 1257941.167 | T98: 1257937.165 | U98: 1257933.17 | V98: 1257929.181 | X98: 7.70584793215708E-11+1257945.17411881i | Y98: 7.70582338348936E-11+1257941.16665872i | Z98: 7.70579887242384E-11+1257937.16533701i | AA98: 7.70577439896088E-11+1257933.17015376i | AB98: 7.70574996310084E-11+1257929.18110901i | AD98: -0.520508068740145+0.286262387493175i | AF98: 0.3528748041
H99: 93 | I99: 100000 | J99: -4600 | L99: 100106.3884 | M99: 100106.066 | N99: 100105.7441 | O99: 100105.4227 | P99: 100105.1017 | R99: 1257973.977 | S99: 1257969.926 | T99: 1257965.881 | U99: 1257961.842 | V99: 1257957.809 | X99: 7.70602437328512E-11+1257973.977343i | Y99: 7.70599955604073E-11+1257969.92603896i | Z99: 7.70597477639597E-11+1257965.8808729i | AA99: 7.70595003435119E-11+1257961.84184486i | AB99: 7.70592532990676E-11+1257957.80895492i | AD99: 0.697530934438302-0.0424495984569738i | AF99: 0.4883513729
H100: 94 | I100: 100000 | J100: -4650 | L100: 100108.7054 | M100: 100108.3795 | N100: 100108.0541 | O100: 100107.7292 | P100: 100107.4048 | R100: 1258003.094 | S100: 1257998.999 | T100: 1257994.91 | U100: 1257990.827 | V100: 1257986.75 | X100: 7.70620273274258E-11+1258003.09372587i | Y100: 7.70617764694006E-11+1257998.99858093i | Z100: 7.70615259873456E-11+1257994.90957352i | AA100: 7.70612758812644E-11+1257990.82670373i | AB100: 7.70610261511606E-11+1257986.74997159i | AD100: -0.613070544065849-0.510376729880352i | AF100: 0.6363398984
H101: 95 | I101: 100000 | J101: -4700 | L101: 100111.0473 | M101: 100110.718 | N101: 100110.3891 | O101: 100110.0607 | P101: 100109.7328 | R101: 1258032.523 | S101: 1258028.384 | T101: 1258024.251 | U101: 1258020.125 | V101: 1258016.004 | X101: 7.70638301039626E-11+1258032.52324569i | Y101: 7.70635765605435E-11+1258028.38426289i | Z101: 7.70633233930681E-11+1258024.2514172i | AA101: 7.70630706015402E-11+1258020.12470869i | AB101: 7.70628181859636E-11+1258016.00413742i | AD101: -0.169314820807582+0.873272240272433i | AF101: 0.7912719142
H102: 96 | I102: 100000 | J102: -4750 | L102: 100113.4142 | M102: 100113.0813 | N102: 100112.7489 | O102: 100112.4171 | P102: 100112.0857 | R102: 1258062.266 | S102: 1258058.083 | T102: 1258053.906 | U102: 1258049.736 | V102: 1258045.571 | X102: 7.70656520611156E-11+1258062.26588048i | Y102: 7.70653958324917E-11+1258058.08306292i | Z102: 7.7065139979785E-11+1258053.90638203i | AA102: 7.70648845029993E-11+1258049.73583789i | AB102: 7.70646294021382E-11+1258045.57143054i | AD102: 0.97317686706839+0.00178873092477949i | AF102: 0.9470764142
H103: 97 | I103: 100000 | J103: -4800 | L103: 100115.8059 | M103: 100115.4696 | N103: 100115.1337 | O103: 100114.7984 | P103: 100114.4635 | R103: 1258092.322 | S103: 1258088.095 | T103: 1258083.874 | U103: 1258079.66 | V103: 1258075.452 | X103: 7.70674931975242E-11+1258092.32160804i | Y103: 7.7067234283887E-11+1258088.09495883i | Z103: 7.706697574614E-11+1258083.87444586i | AA103: 7.70667175842871E-11+1258079.6600692i | AB103: 7.7066459798332E-11+1258075.4518289i | AD103: 0.13084887570275-1.03936829536124i | AF103: 1.097407882
H104: 98 | I104: 100000 | J104: -4850 | L104: 100118.2226 | M104: 100117.8828 | N104: 100117.5434 | O104: 100117.2046 | P104: 100116.8662 | R104: 1258122.69 | S104: 1258118.42 | T104: 1258114.156 | U104: 1258109.897 | V104: 1258105.645 | X104: 7.7069353511814E-11+1258122.69040591i | Y104: 7.70690919133567E-11+1258118.41992822i | Z104: 7.70688306907625E-11+1258114.15558632i | AA104: 7.70685698440351E-11+1258109.89738029i | AB104: 7.70683093731786E-11+1258105.64531017i | AD104: -0.940898286064289-0.592119333466368i | AF104: 1.23589489
H105: 99 | I105: 100000 | J105: -4900 | L105: 100120.6642 | M105: 100120.3209 | N105: 100119.978 | O105: 100119.6357 | P105: 100119.2938 | R105: 1258153.372 | S105: 1258149.058 | T105: 1258144.75 | U105: 1258140.448 | V105: 1258136.152 | X105: 7.70712330025963E-11+1258153.37225144i | Y105: 7.70709687195142E-11+1258149.05794845i | Z105: 7.70707048122676E-11+1258144.74978081i | AA105: 7.70704412808606E-11+1258140.44774858i | AB105: 7.7070178125297E-11+1258136.15185182i | AD105: -1.1256273505649+0.298937901980635i | AF105: 1.356400802
H106: 100 | I106: 100000 | J106: -4950 | L106: 100123.1307 | M106: 100122.7839 | N106: 100122.4375 | O106: 100122.0917 | P106: 100121.7464 | R106: 1258184.367 | S106: 1258180.009 | T106: 1258175.657 | U106: 1258171.311 | V106: 1258166.971 | X106: 7.70731316684682E-11+1258184.36712173i | Y106: 7.70728647009584E-11+1258180.00899666i | Z106: 7.70725981092567E-11+1258175.65700649i | AA106: 7.70723318933666E-11+1258171.31115127i | AB106: 7.70720660532924E-11+1258166.97143108i | AD106: -0.867294703346699+0.83731000325142i | AF106: 1.453288144
H107: 101 | I107: 100000 | J107: -5000 | L107: 100125.6221 | M107: 100125.2718 | N107: 100124.922 | O107: 100124.5727 | P107: 100124.2238 | R107: 1258215.675 | S107: 1258211.273 | T107: 1258206.877 | U107: 1258202.488 | V107: 1258198.104 | X107: 7.70750495080125E-11+1258215.67499363i | Y107: 7.70747798562745E-11+1258211.27304973i | Z107: 7.70745105803163E-11+1258206.87724028i | AA107: 7.7074241680142E-11+1258202.48756533i | AB107: 7.70739731557555E-11+1258198.10402494i | AD107: -0.704442744591474+1.01263920550965i | AF107: 1.521677741
H108: 102 | I108: 100000 | J108: -5050 | L108: 100128.1384 | M108: 100127.7846 | N108: 100127.4313 | O108: 100127.0785 | P108: 100126.7262 | R108: 1258247.296 | S108: 1258242.85 | T108: 1258238.41 | U108: 1258233.977 | V108: 1258229.55 | X108: 7.7076986519798E-11+1258247.29584378i | Y108: 7.70767141840329E-11+1258242.85008435i | Z108: 7.70764422240194E-11+1258238.41045889i | AA108: 7.70761706397615E-11+1258233.97696748i | AB108: 7.70758994312632E-11+1258229.54961017i | AD108: -0.828248406633136+0.933647584834497i | AF108: 1.557693236
H109: 103 | I109: 100000 | J109: -5100 | L109: 100130.6796 | M109: 100130.3223 | N109: 100129.9655 | O109: 100129.6093 | P109: 100129.2534 | R109: 1258279.23 | S109: 1258274.74 | T109: 1258270.257 | U109: 1258265.779 | V109: 1258261.308 | X109: 7.70789427023794E-11+1258279.2296486i | Y109: 7.70786676827905E-11+1258274.74007694i | Z109: 7.70783930389245E-11+1258270.25663879i | AA109: 7.70781187707856E-11+1258265.77933422i | AB109: 7.70778448783778E-11+1258261.30816329i | AD109: -1.14286280962338+0.502541012049314i | AF109: 1.55868287
H110: 104 | I110: 100000 | J110: -5150 | L110: 100133.2457 | M110: 100132.885 | N110: 100132.5247 | O110: 100132.1649 | P110: 100131.8056 | R110: 1258311.476 | S110: 1258306.943 | T110: 1258302.416 | U110: 1258297.895 | V110: 1258293.38 | X110: 7.70809180542971E-11+1258311.47638424i | Y110: 7.70806403510894E-11+1258306.94300371i | Z110: 7.7080363023576E-11+1258302.41575622i | AA110: 7.70800860717607E-11+1258297.89464184i | AB110: 7.70798094956478E-11+1258293.37966062i | AD110: -1.16781498928196-0.399521553486154i | AF110: 1.523409321
H111: 105 | I111: 100000 | J111: -5200 | L111: 100135.8367 | M111: 100135.4725 | N111: 100135.1087 | O111: 100134.7455 | P111: 100134.3827 | R111: 1258344.036 | S111: 1258339.459 | T111: 1258334.888 | U111: 1258330.323 | V111: 1258325.764 | X111: 7.70829125740773E-11+1258344.03602667i | Y111: 7.70826321874581E-11+1258339.45884064i | Z111: 7.7082352176504E-11+1258334.88778718i | AA111: 7.70820725412191E-11+1258330.32286636i | AB111: 7.70817932816074E-11+1258325.76407823i | AD111: -0.22075896535657-1.18467986608938i | AF111: 1.452200906
H112: 106 | I112: 100000 | J112: -5250 | L112: 100138.4526 | M112: 100138.0849 | N112: 100137.7177 | O112: 100137.3509 | P112: 100136.9847 | R112: 1258376.909 | S112: 1258372.288 | T112: 1258367.673 | U112: 1258363.064 | V112: 1258358.461 | X112: 7.70849262602322E-11+1258376.90855157i | Y112: 7.70846431904106E-11+1258372.28756347i | Z112: 7.70843604962248E-11+1258367.67270746i | AA112: 7.70840781776787E-11+1258363.06398359i | AB112: 7.70837962347766E-11+1258358.46139195i | AD112: 1.07565022694124-0.435928889664398i | AF112: 1.347057408
H113: 107 | I113: 100000 | J113: -5300 | L113: 100141.0934 | M113: 100140.7222 | N113: 100140.3515 | O113: 100139.9813 | P113: 100139.6115 | R113: 1258410.094 | S113: 1258405.429 | T113: 1258400.77 | U113: 1258396.118 | V113: 1258391.472 | X113: 7.70869591112597E-11+1258410.09393444i | Y113: 7.70866733584469E-11+1258405.42914771i | Z113: 7.70863879812402E-11+1258400.77049258i | AA113: 7.70861029796436E-11+1258396.11796912i | AB113: 7.70858183536613E-11+1258391.47157739i | AD113: 0.296541515866411+1.06007948315028i | AF113: 1.211705381
H114: 108 | I114: 100000 | J114: -5350 | L114: 100143.7591 | M114: 100143.3844 | N114: 100143.0102 | O114: 100142.6365 | P114: 100142.2633 | R114: 1258443.592 | S114: 1258438.884 | T114: 1258434.181 | U114: 1258429.485 | V114: 1258424.795 | X114: 7.70890111256437E-11+1258443.59215053i | Y114: 7.70887226900529E-11+1258438.88356865i | Z114: 7.7088434630038E-11+1258434.18111788i | AA114: 7.70881469456035E-11+1258429.48479828i | AB114: 7.70878596367533E-11+1258424.79460994i | AD114: -1.01354715815577-0.155952744924975i | AF114: 1.0515991
H115: 109 | I115: 100000 | J115: -5400 | L115: 100146.4497 | M115: 100146.0716 | N115: 100145.6939 | O115: 100145.3167 | P115: 100144.9399 | R115: 1258477.403 | S115: 1258472.651 | T115: 1258467.905 | U115: 1258463.164 | V115: 1258458.43 | X115: 7.7091082301854E-11+1258477.40317485i | Y115: 7.70907911837002E-11+1258472.65080133i | Z115: 7.70905004410921E-11+1258467.90455842i | AA115: 7.7090210074034E-11+1258463.1644462i | AB115: 7.70899200825303E-11+1258458.43046474i | AD115: 0.727227164535432-0.587372349763536i | AF115: 0.8738656261
H116: 110 | I116: 100000 | J116: -5450 | L116: 100149.1652 | M116: 100148.7836 | N116: 100148.4024 | O116: 100148.0217 | P116: 100147.6415 | R116: 1258511.527 | S116: 1258506.731 | T116: 1258501.941 | U116: 1258497.157 | V116: 1258492.379 | X116: 7.70931726383462E-11+1258511.52698219i | Y116: 7.70928788378464E-11+1258506.73082058i | Z116: 7.70925854128618E-11+1258501.94078908i | AA116: 7.70922923633968E-11+1258497.15688777i | AB116: 7.70919996894557E-11+1258492.37911671i | AD116: -0.301944521482344+0.772024845348486i | AF116: 0.6871928559
H117: 111 | I117: 100000 | J117: -5500 | L117: 100151.9056 | M117: 100151.5205 | N117: 100151.1358 | O117: 100150.7516 | P117: 100150.3679 | R117: 1258545.964 | S117: 1258541.124 | T117: 1258536.29 | U117: 1258531.462 | V117: 1258526.641 | X117: 7.70952821335617E-11+1258545.96354712i | Y117: 7.70949856509349E-11+1258541.12360098i | Z117: 7.70946895437927E-11+1258536.28978446i | AA117: 7.70943938121393E-11+1258531.46209762i | AB117: 7.7094098455979E-11+1258526.64054054i | AD117: 0.118588918426758-0.69828307516181i | AF117: 0.5016625846
H118: 112 | I118: 100000 | J118: -5550 | L118: 100154.6709 | M118: 100154.2822 | N118: 100153.8941 | O118: 100153.5064 | P118: 100153.1193 | R118: 1258580.713 | S118: 1258575.829 | T118: 1258570.952 | U118: 1258566.08 | V118: 1258561.215 | X118: 7.70974107859279E-11+1258580.71284395i | Y118: 7.70971116213952E-11+1258575.8291169i | Z118: 7.7096812832316E-11+1258570.95151896i | AA118: 7.70965144186946E-11+1258566.08005019i | AB118: 7.70962163805354E-11+1258561.21471068i | AD118: -0.157646427243447+0.551070843379461i | AF118: 0.3285314704
H119: 113 | I119: 100000 | J119: -5600 | L119: 100157.461 | M119: 100157.0689 | N119: 100156.6773 | O119: 100156.2861 | P119: 100155.8955 | R119: 1258615.775 | S119: 1258610.847 | T119: 1258605.926 | U119: 1258601.011 | V119: 1258596.102 | X119: 7.70995585938581E-11+1258615.77484679i | Y119: 7.70992567476425E-11+1258610.84734247i | Z119: 7.70989552768491E-11+1258605.92596674i | AA119: 7.70986541814821E-11+1258601.01071968i | AB119: 7.70983534615461E-11+1258596.10160136i | AD119: 0.27547681931411-0.322609877362343i | AF119: 0.179964611
H120: 114 | I120: 100000 | J120: -5650 | L120: 100160.276 | M120: 100159.8804 | N120: 100159.4853 | O120: 100159.0907 | P120: 100158.6966 | R120: 1258651.15 | S120: 1258646.178 | T120: 1258641.213 | U120: 1258636.254 | V120: 1258631.301 | X120: 7.71017255557514E-11+1258651.1495295i | Y120: 7.71014210280779E-11+1258646.17825158i | Z120: 7.71011168757949E-11+1258641.21310173i | AA120: 7.71008130989068E-11+1258636.25408004i | AB120: 7.71005096974181E-11+1258631.30118658i | AD120: -0.260631420986138+0.02827613613627i | AF120: 0.06872827748
H121: 115 | I121: =I120-$J$1 -> 100000 | J121: =J120-$J$2 -> -5700 | L121: 100163.1159 | M121: 100162.7169 | N121: 100162.3183 | O121: 100161.9202 | P121: 100161.5225 | R121: 1258686.837 | S121: 1258681.822 | T121: 1258676.813 | U121: 1258671.81 | V121: 1258666.813 | X121: =IMPRODUCT($F$7,R121,$X$2) -> 7.71039116699929E-11+1258686.83686572i | Y121: =IMPRODUCT($F$8,S121,$X$2) -> 7.71036044610884E-11+1258681.8218179i | Z121: =IMPRODUCT($F$9,T121,$X$2) -> 7.71032976275425E-11+1258676.81289764i | AA121: =IMPRODUCT($F$10,U121,$X$2) -> 7.71029911693596E-11+1258671.81010501i | AB121: =IMPRODUCT($F$11,V121,$X$2) -> 7.71026850865444E-11+1258666.81344009i | AD121: =IMSUM(IMEXP(X121),IMEXP(Y121),IMEXP(Z121),IMEXP(AA121),IMEXP(AB121)) -> 0.042557240659713+0.0777071888151969i | AF121: =(IMABS(AD121))^2 -> 0.007849525926
H122: 116 | I122: 100000 | J122: -5750 | L122: 100165.9807 | M122: 100165.5782 | N122: 100165.1761 | O122: 100164.7745 | P122: 100164.3734 | R122: 1258722.837 | S122: 1258717.778 | T122: 1258712.725 | U122: 1258707.679 | V122: 1258702.638 | X122: 7.71061169349536E-11+1258722.83682886i | Y122: 7.7105807045047E-11+1258717.77801488i | Z122: 7.71054975304668E-11+1258712.72532793i | AA122: 7.71051883912176E-11+1258707.6787681i | AB122: 7.71048796273038E-11+1258702.63833545i | AD122: -0.046044455539413+0.0901752402482701i | AF122: 0.01025166584
H123: 117 | I123: 100000 | J123: -5800 | L123: 100168.8704 | M123: 100168.4643 | N123: 100168.0588 | O123: 100167.6537 | P123: 100167.2491 | R123: 1258759.149 | S123: 1258754.047 | T123: 1258748.95 | U123: 1258743.86 | V123: 1258738.776 | X123: 7.71083413489903E-11+1258759.14939209i | Y123: 7.71080287783125E-11+1258754.04681572i | Z123: 7.71077165829287E-11+1258748.95036585i | AA123: 7.71074047628434E-11+1258743.86004257i | AB123: 7.71070933180612E-11+1258738.77584594i | AD123: 0.229905088310015+0.188465240388758i | AF123: 0.08837549647
H124: 118 | I124: 100000 | J124: -5850 | L124: 100171.7849 | M124: 100171.3754 | N124: 100170.9664 | O124: 100170.5578 | P124: 100170.1497 | R124: 1258795.775 | S124: 1258790.628 | T124: 1258785.488 | U124: 1258780.354 | V124: 1258775.226 | X124: 7.71105849104459E-11+1258795.77452836i | Y124: 7.71102696592298E-11+1258790.6281934i | Z124: 7.71099547832749E-11+1258785.48798441i | AA124: 7.71096402825858E-11+1258780.35390147i | AB124: 7.71093261571673E-11+1258775.22594466i | AD124: 0.453643259473555-0.219099727611681i | AF124: 0.2537968975
H125: 119 | I125: 100000 | J125: -5900 | L125: 100174.7243 | M125: 100174.3113 | N125: 100173.8988 | O125: 100173.4868 | P125: 100173.0752 | R125: 1258832.712 | S125: 1258827.522 | T125: 1258822.338 | U125: 1258817.16 | V125: 1258811.989 | X125: 7.71128476176492E-11+1258832.71221039i | Y125: 7.71125296861295E-11+1258827.52212067i | Z125: 7.71122121298381E-11+1258822.33815639i | AA125: 7.71118949487795E-11+1258817.16031762i | AB125: 7.71115781429586E-11+1258811.98860444i | AD125: 0.200539657281624-0.69038800683139i | AF125: 0.5168517541
H126: 120 | I126: 100000 | J126: -5950 | L126: 100177.6886 | M126: 100177.2721 | N126: 100176.8561 | O126: 100176.4406 | P126: 100176.0256 | R126: 1258869.962 | S126: 1258864.729 | T126: 1258859.501 | U126: 1258854.279 | V126: 1258849.064 | X126: 7.71151294689147E-11+1258869.96241066i | Y126: 7.71148088573283E-11+1258864.72857006i | Z126: 7.71144886209369E-11+1258859.50085434i | AA126: 7.71141687597451E-11+1258854.2792636i | AB126: 7.71138492737577E-11+1258849.0637979i | AD126: -0.230826717985061-0.912687348575445i | AF126: 0.88627917
H127: 121 | I127: 100000 | J127: -6000 | L127: 100180.6778 | M127: 100180.2578 | N127: 100179.8383 | O127: 100179.4193 | P127: 100179.0008 | R127: 1258907.525 | S127: 1258902.248 | T127: 1258896.976 | U127: 1258891.711 | V127: 1258886.451 | X127: 7.71174304625432E-11+1258907.52510144i | Y127: 7.71171071711288E-11+1258902.24751384i | Z127: 7.71167842548758E-11+1258896.97605059i | AA127: 7.71164617137891E-11+1258891.71071176i | AB127: 7.71161395478732E-11+1258886.45149742i | AD127: -0.527588996489051-1.04429092647385i | AF127: 1.368893688
H128: 122 | I128: 100000 | J128: -6050 | L128: 100183.6918 | M128: 100183.2683 | N128: 100182.8453 | O128: 100182.4229 | P128: 100182.0009 | R128: 1258945.4 | S128: 1258940.079 | T128: 1258934.764 | U128: 1258929.455 | V128: 1258924.152 | X128: 7.71197505968212E-11+1258945.40025475i | Y128: 7.71194246258195E-11+1258940.07892409i | Z128: 7.71190990299455E-11+1258934.76371723i | AA128: 7.71187738092038E-11+1258929.45463423i | AB128: 7.71184489635994E-11+1258924.15167518i | AD128: -0.516103814466023-1.30496492245302i | AF128: 1.969296596
H129: 123 | I129: 100000 | J129: -6100 | L129: 100186.7306 | M129: 100186.3037 | N129: 100185.8772 | O129: 100185.4513 | P129: 100185.0258 | R129: 1258983.588 | S129: 1258978.223 | T129: 1258972.864 | U129: 1258967.511 | V129: 1258962.164 | X129: 7.71220898700212E-11+1258983.5878424i | Y129: 7.7121761219675E-11+1258978.22277264i | Z129: 7.71214329444223E-11+1258972.86382612i | AA129: 7.71211050442679E-11+1258967.5110029i | AB129: 7.71207775192167E-11+1258962.16430308i | AD129: 0.0431447981163207-1.63944329959639i | AF129: 2.689635806
H130: 124 | I130: 100000 | J130: -6150 | L130: 100189.7944 | M130: 100189.364 | N130: 100188.934 | O130: 100188.5046 | P130: 100188.0756 | R130: 1259022.088 | S130: 1259016.679 | T130: 1259011.276 | U130: 1259005.88 | V130: 1259000.489 | X130: 7.71244482804017E-11+1259022.08783595i | Y130: 7.71241169509556E-11+1259016.67903108i | Z130: 7.71237859965686E-11+1259011.27634889i | AA130: 7.71234554172456E-11+1259005.87978945i | AB130: 7.71231252129915E-11+1259000.48935284i | AD130: 1.26841509175078-1.38583716770973i | AF130: 3.5294215
H131: 125 | I131: 100000 | J131: -6200 | L131: 100192.883 | M131: 100192.4491 | N131: 100192.0156 | O131: 100191.5827 | P131: 100191.1503 | R131: 1259060.9 | S131: 1259055.448 | T131: 1259050.001 | U131: 1259044.561 | V131: 1259039.127 | X131: 7.71268258262072E-11+1259060.90020674i | Y131: 7.71264918179078E-11+1259055.44767079i | Z131: 7.71261581846328E-11+1259050.00125696i | AA131: 7.71258249263873E-11+1259044.56096531i | AB131: 7.71254920431761E-11+1259039.12679592i | AD131: 2.07677435972621+0.415227459947061i | AF131: 4.485405585
H132: 126 | I132: 100000 | J132: -6250 | L132: 100195.9964 | M132: 100195.559 | N132: 100195.1221 | O132: 100194.6857 | P132: 100194.2498 | R132: 1259100.025 | S132: 1259094.529 | T132: 1259089.039 | U132: 1259083.555 | V132: 1259078.077 | X132: 7.7129222505668E-11+1259100.02492589i | Y132: 7.71288858187639E-11+1259094.52866292i | Z132: 7.71285495068494E-11+1259089.03852149i | AA132: 7.71282135699294E-11+1259083.55450168i | AB132: 7.71278780080088E-11+1259078.07660357i | AD132: 0.0810025080023509+2.35477535545617i | AF132: 5.551528381
H133: 127 | I133: 100000 | J133: -6300 | L133: 100199.1347 | M133: 100198.6938 | N133: 100198.2535 | O133: 100197.8136 | P133: 100197.3742 | R133: 1259139.462 | S133: 1259133.922 | T133: 1259128.388 | U133: 1259122.86 | V133: 1259117.339 | X133: 7.71316383170007E-11+1259139.46196428i | Y133: 7.71312989517424E-11+1259133.92197838i | Z133: 7.71309599614385E-11+1259128.38811345i | AA133: 7.7130621346094E-11+1259122.86036955i | AB133: 7.71302831057138E-11+1259117.33874678i | AD133: -2.5893431818326-0.119324911532844i | AF133: 6.718936548
H134: 128 | I134: 100000 | J134: -6350 | L134: 100202.2979 | M134: 100201.8535 | N134: 100201.4097 | O134: 100200.9663 | P134: 100200.5234 | R134: 1259179.211 | S134: 1259173.628 | T134: 1259168.05 | U134: 1259162.479 | V134: 1259156.913 | X134: 7.71340732584075E-11+1259179.21129257i | Y134: 7.71337312150475E-11+1259173.62758786i | Z134: 7.71333895466065E-11+1259168.05000353i | AA134: 7.71330482530895E-11+1259162.47853967i | AB134: 7.71327073345013E-11+1259156.91319636i | AD134: 1.19949970592088-2.55680925279584i | AF134: 7.9760731
H135: 129 | I135: 100000 | J135: -6400 | L135: 100205.4859 | M135: 100205.038 | N135: 100204.5907 | O135: 100204.1439 | P135: 100203.6975 | R135: =L135/$D$3*2*PI()+$E$7 -> 1259219.273 | S135: =M135/$D$3*2*PI()+$E$8 -> 1259213.645 | T135: =N135/$D$3*2*PI()+$E$9 -> 1259208.024 | U135: =O135/$D$3*2*PI()+$E$10 -> 1259202.409 | V135: =P135/$D$3*2*PI()+$E$11 -> 1259196.8 | X135: 7.71365273280768E-11+1259219.27288118i | Y135: 7.71361826068697E-11+1259213.64546182i | Z135: 7.71358382605458E-11+1259208.02416225i | AA135: 7.71354942891101E-11+1259202.40898257i | AB135: 7.71351506925677E-11+1259196.79992285i | AD135: 1.26458528163315+2.77662804693792i | AF135: 9.308839246
H136: 130 | I136: 100000 | J136: -6450 | L136: 100208.6987 | M136: 100208.2474 | N136: 100207.7966 | O136: 100207.3463 | P136: 100206.8964 | R136: 1259259.647 | S136: 1259253.976 | T136: 1259248.311 | U136: 1259242.652 | V136: 1259236.999 | X136: 7.71390005241831E-11+1259259.64670031i | Y136: 7.71386531253852E-11+1259253.97557048i | Z136: 7.71383061014346E-11+1259248.31055985i | AA136: 7.71379594523361E-11+1259242.65166852i | AB136: 7.7137613178095E-11+1259236.99889657i | AD136: -2.71897826019903-1.8187858251402i | AF136: 10.70082466
H137: 131 | I137: 100000 | J137: -6500 | L137: 100211.9364 | M137: 100211.4816 | N137: 100211.0273 | O137: 100210.5735 | P137: 100210.1202 | R137: 1259300.333 | S137: 1259294.618 | T137: 1259288.909 | U137: 1259283.207 | V137: 1259277.51 | X137: 7.71414928448867E-11+1259300.33271993i | Y137: 7.71411427687565E-11+1259294.61788384i | Z137: 7.71407930674372E-11+1259288.90916637i | AA137: 7.71404437409338E-11+1259283.20656761i | AB137: 7.71400947892516E-11+1259277.51008763i | AD137: 3.27471914321046+1.18735669882093i | AF137: 12.1336014
H138: 132 | I138: 100000 | J138: -6550 | L138: 100215.1989 | M138: 100214.7407 | N138: 100214.2829 | O138: 100213.8256 | P138: 100213.3688 | R138: 1259341.331 | S138: 1259335.572 | T138: 1259329.82 | U138: 1259324.074 | V138: 1259318.333 | X138: 7.71440042883341E-11+1259341.33090978i | Y138: 7.71436515351318E-11+1259335.57237169i | Z138: 7.71432991567039E-11+1259329.81995162i | AA138: 7.71429471530555E-11+1259324.07364966i | AB138: 7.71425955241917E-11+1259318.33346589i | AD138: -3.3683429216292-1.49711131449387i | AF138: 13.58707633
H139: 133 | I139: 100000 | J139: -6600 | L139: 100218.4863 | M139: 100218.0246 | N139: 100217.5633 | O139: 100217.1026 | P139: 100216.6423 | R139: 1259382.641 | S139: 1259376.839 | T139: 1259371.043 | U139: 1259365.253 | V139: 1259359.469 | X139: 7.71465348526576E-11+1259382.64123937i | Y139: 7.71461794226456E-11+1259376.83900356i | Z139: 7.71458243673712E-11+1259371.04288517i | AA139: 7.71454696868394E-11+1259365.25288429i | AB139: 7.71451153810554E-11+1259359.46900099i | AD139: 2.69984398723095+2.78401400856654i | AF139: 15.03989156
H140: 134 | I140: 100000 | J140: -6650 | L140: 100221.7985 | M140: 100221.3333 | N140: 100220.8686 | O140: 100220.4044 | P140: 100219.9406 | R140: 1259424.264 | S140: 1259418.418 | T140: 1259412.578 | U140: 1259406.744 | V140: 1259400.917 | X140: 7.71490845359757E-11+1259424.26367799i | Y140: 7.71487264294183E-11+1259418.41774877i | Z140: 7.71483686975613E-11+1259412.57793637i | AA140: 7.71480113404098E-11+1259406.74424087i | AB140: 7.71476543579692E-11+1259400.91666235i | AD140: -0.305982685410409-4.04675676427115i | AF140: 16.46986571
H141: 135 | I141: 100000 | J141: -6700 | L141: 100225.1355 | M141: 100224.6669 | N141: 100224.1987 | O141: 100223.731 | P141: 100223.2637 | R141: 1259466.198 | S141: 1259460.309 | T141: 1259454.425 | U141: 1259448.548 | V141: 1259442.676 | X141: 7.71516533363929E-11+1259466.19819469i | Y141: 7.71512925535563E-11+1259460.30857641i | Z141: 7.71509321453826E-11+1259454.42507434i | AA141: 7.71505721118772E-11+1259448.54768856i | AB141: 7.71502124530453E-11+1259442.67641916i | AD141: -3.39015439388346+2.52216505854387i | AF141: 17.8544634
H142: 136 | I142: 100000 | J142: -6750 | L142: 100228.4974 | M142: 100228.0253 | N142: 100227.5536 | O142: 100227.0824 | P142: 100226.6117 | R142: 1259508.445 | S142: 1259502.511 | T142: 1259496.584 | U142: 1259490.663 | V142: 1259484.748 | X142: 7.71542412519997E-11+1259508.4447583i | Y142: 7.7153877793152E-11+1259502.51145534i | Z142: 7.71535147089296E-11+1259496.58426797i | AA142: 7.71531519993378E-11+1259490.66319628i | AB142: 7.71527896643819E-11+1259484.74824035i | AD142: 3.4072669423089+2.74987537360654i | AF142: 19.17128259
H143: 137 | I143: 100000 | J143: -6800 | L143: 100231.8841 | M143: 100231.4085 | N143: 100230.9333 | O143: 100230.4587 | P143: 100229.9845 | R143: 1259551.003 | S143: 1259545.026 | T143: 1259539.055 | U143: 1259533.091 | V143: 1259527.132 | X143: 7.71568482808727E-11+1259551.00333743i | Y143: 7.7156482146284E-11+1259545.0263542i | Z143: 7.71561163862827E-11+1259539.05548593i | AA143: 7.71557510008742E-11+1259533.09073273i | AB143: 7.71553859900637E-11+1259527.13209467i | AD143: 3.04171786945227-3.33863721510836i | AF143: 20.39854605
H144: 138 | I144: 100000 | J144: -6850 | L144: 100235.2957 | M144: 100234.8166 | N144: 100234.3379 | O144: 100233.8598 | P144: 100233.3821 | R144: 1259593.874 | S144: 1259587.853 | T144: 1259581.839 | U144: 1259575.83 | V144: 1259569.828 | X144: 7.71594744210745E-11+1259593.87390044i | Y144: 7.7159105611017E-11+1259587.85324138i | Z144: 7.71587371755086E-11+1259581.83869666i | AA144: 7.71583691145548E-11+1259575.83026638i | AB144: 7.71580014281609E-11+1259569.82795062i | AD144: -2.05953530870725-4.15618819730416i | AF144: 21.51558602
H145: 139 | I145: 100000 | J145: -6900 | L145: 100238.732 | M145: 100238.2494 | N145: 100237.7673 | O145: 100237.2857 | P145: 100236.8046 | R145: 1259637.056 | S145: 1259630.992 | T145: 1259624.934 | U145: 1259618.882 | V145: 1259612.836 | X145: 7.71621196706539E-11+1259637.05641549i | Y145: 7.71617481854014E-11+1259630.99208506i | Z145: 7.71613770746597E-11+1259624.93386836i | AA145: 7.71610063384341E-11+1259618.88176546i | AB145: 7.716063597673E-11+1259612.83577646i | AD145: -4.62556366017539-1.05236392002172i | AF145: 22.50330899
H146: 140 | I146: 100000 | J146: -6950 | L146: 100242.1932 | M146: 100241.7071 | N146: 100241.2216 | O146: 100240.7365 | P146: 100240.2519 | R146: 1259680.551 | S146: 1259674.443 | T146: 1259668.341 | U146: 1259662.245 | V146: 1259656.156 | X146: 7.71647840276455E-11+1259680.55085048i | Y146: 7.71644098674741E-11+1259674.44285321i | Z146: 7.71640360817748E-11+1259668.34096902i | AA146: 7.71636626705528E-11+1259662.245198i | AB146: 7.71632896338137E-11+1259656.15554025i | AD146: -4.53635372230937+1.66316646508453i | AF146: 23.34462778
H147: 141 | I147: 100000 | J147: -7000 | L147: 100245.6792 | M147: 100245.1897 | N147: 100244.7006 | O147: 100244.212 | P147: 100243.724 | R147: 1259724.357 | S147: 1259718.206 | T147: 1259712.06 | U147: 1259705.921 | V147: 1259699.787 | X147: 7.71674674900702E-11+1259724.35717312i | Y147: 7.71670906552579E-11+1259718.20551353i | Z147: 7.71667141948785E-11+1259712.05996638i | AA147: 7.71663381089376E-11+1259705.92053178i | AB147: 7.71659623974405E-11+1259699.78720981i | AD147: -4.0044152455409+2.82657214941772i | AF147: 24.02485157
H148: 142 | I148: 100000 | J148: -7050 | L148: 100249.19 | M148: 100248.697 | N148: 100248.2045 | O148: 100247.7124 | P148: 100247.2209 | R148: 1259768.475 | S148: 1259762.28 | T148: 1259756.091 | U148: 1259749.908 | V148: 1259743.731 | X148: 7.71701700559349E-11+1259768.47535086i | Y148: 7.71697905467615E-11+1259762.28003352i | Z148: 7.71694114119818E-11+1259756.09082799i | AA148: 7.71690326516012E-11+1259749.90773436i | AB148: 7.71686542656252E-11+1259743.73075271i | AD148: -4.18046697761742+2.65626014641351i | AF148: 24.53202212
H149: 143 | I149: 100000 | J149: -7100 | L149: 100252.7256 | M149: 100252.2291 | N149: 100251.7332 | O149: 100251.2376 | P149: 100250.7426 | R149: 1259812.905 | S149: 1259806.666 | T149: 1259800.434 | U149: 1259794.207 | V149: 1259787.986 | X149: 7.71728917232327E-11+1259812.90535095i | Y149: 7.717250953998E-11+1259806.66638046i | Z149: 7.71721277310814E-11+1259800.43352114i | AA149: 7.71717462965424E-11+1259794.20677306i | AB149: 7.71713652363686E-11+1259787.98613633i | AD149: -4.88067468785508+1.01794047995715i | AF149: 24.85718823
H150: 144 | I150: 100000 | J150: -7150 | L150: 100256.2861 | M150: 100255.7861 | N150: 100255.2866 | O150: 100254.7877 | P150: 100254.2892 | R150: 1259857.647 | S150: 1259851.365 | T150: 1259845.088 | U150: 1259838.818 | V150: 1259832.553 | X150: 7.71756324899427E-11+1259857.64714039i | Y150: 7.71752476328944E-11+1259851.36452138i | Z150: 7.71748631501605E-11+1259845.08801289i | AA150: 7.71744790417463E-11+1259838.817615i | AB150: 7.71740953076575E-11+1259832.55332781i | AD150: -4.46506075960316-2.24896503525701i | AF150: 24.99461132
H151: 145 | I151: 100000 | J151: -7200 | L151: 100259.8713 | M151: 100259.3679 | N151: 100258.8649 | O151: 100258.3625 | P151: 100257.8605 | R151: 1259902.701 | S151: 1259896.374 | T151: 1259890.054 | U151: 1259883.74 | V151: 1259877.432 | X151: 7.717839235403E-11+1259902.70068596i | Y151: 7.7178004823472E-11+1259896.37442311i | Z151: 7.7177617667188E-11+1259890.05427011i | AA151: 7.71772308851839E-11+1259883.74022706i | AB151: 7.7176844477465E-11+1259877.43229405i | AD151: -0.599122361361556-4.95811950799067i | AF151: 24.94189666
H152: 146 | I152: 100000 | J152: -7250 | L152: 100263.4814 | M152: 100262.9745 | N152: 100262.4681 | O152: 100261.9621 | P152: 100261.4567 | R152: 1259948.066 | S152: 1259941.696 | T152: 1259935.332 | U152: 1259928.975 | V152: 1259922.623 | X152: 7.7181171313446E-11+1259948.06595422i | Y152: 7.71807811096658E-11+1259941.69605221i | Z152: 7.71803912801193E-11+1259935.3322594i | AA152: 7.71800018248123E-11+1259928.97457588i | AB152: 7.71796127437502E-11+1259922.62300175i | AD152: 4.58648793940486-1.91420355071336i | AF152: 24.70004685
H153: 147 | I153: 100000 | J153: -7300 | L153: 100267.1162 | M153: 100266.6059 | N153: 100266.096 | O153: 100265.5866 | P153: 100265.0776 | R153: 1259993.743 | S153: 1259987.329 | T153: 1259980.922 | U153: 1259974.521 | V153: 1259968.125 | X153: 7.71839693661282E-11+1259993.74291151i | Y153: 7.71835764894155E-11+1259987.32937507i | Z153: 7.71831839868957E-11+1259980.92194717i | AA153: 7.71827918585748E-11+1259974.5206279i | AB153: 7.71824001044583E-11+1259968.12541734i | AD153: 1.73016034866773+4.61302302005478i | AF153: 24.27343622
H154: 148 | I154: 100000 | J154: -7350 | L154: 100270.7759 | M154: 100270.262 | N154: 100269.7487 | O154: 100269.2358 | P154: 100268.7234 | R154: 1260039.732 | S154: 1260033.274 | T154: 1260026.823 | U154: 1260020.378 | V154: 1260013.94 | X154: 7.71867865100002E-11+1260039.73152392i | Y154: 7.71863909606464E-11+1260033.27435782i | Z154: 7.71859957854447E-11+1260026.82329958i | AA154: 7.71856009844008E-11+1260020.3783493i | AB154: 7.71852065575206E-11+1260013.93950707i | AD154: -4.86487798527565+0.0516658846466472i | AF154: 23.66970718
H155: 149 | I155: 100000 | J155: -7400 | L155: 100274.4603 | M155: 100273.943 | N155: 100273.4262 | O155: 100272.9098 | P155: 100272.394 | R155: 1260086.032 | S155: 1260079.531 | T155: 1260073.036 | U155: 1260066.548 | V155: 1260060.065 | X155: 7.71896227429716E-11+1260086.03175733i | Y155: 7.71892245212702E-11+1260079.53096635i | Z155: 7.71888266736797E-11+1260073.03628256i | AA155: 7.7188429200206E-11+1260066.54770606i | AB155: 7.71880321008547E-11+1260060.06523694i | AD155: 2.89296689936352-3.81186745348035i | AF155: 22.89959096
H156: 150 | I156: 100000 | J156: -7450 | L156: =SQRT(($C$7-$I156)^2+($D$7-$J156)^2) -> 100278.1696 | M156: =SQRT(($C$8-$I156)^2+($D$8-$J156)^2) -> 100277.6488 | N156: =SQRT(($C$9-$I156)^2+($D$9-$J156)^2) -> 100277.1285 | O156: =SQRT(($C$10-$I156)^2+($D$10-$J156)^2) -> 100276.6087 | P156: =SQRT(($C$11-$I156)^2+($D$11-$J156)^2) -> 100276.0894 | R156: 1260132.644 | S156: 1260126.099 | T156: 1260119.561 | U156: 1260113.029 | V156: 1260106.503 | X156: 7.71924780629384E-11+1260132.6435774i | Y156: 7.71920771691848E-11+1260126.09916636i | Z156: 7.71916766495007E-11+1260119.56086184i | AA156: 7.71912765038919E-11+1260113.02866393i | AB156: 7.71908767323641E-11+1260106.50257273i | AD156: -0.233329877268863+4.68211648614424i | AF156: 21.97665762
H157: 151 | I157: 100000 | J157: -7500 | L157: 100281.9036 | M157: 100281.3794 | N157: 100280.8556 | O157: 100280.3323 | P157: 100279.8095 | R157: 1260179.567 | S157: 1260172.979 | T157: 1260166.397 | U157: 1260159.821 | V157: 1260153.251 | X157: 7.71953524677825E-11+1260179.56694955i | Y157: 7.71949489022741E-11+1260172.97892331i | Z157: 7.71945457107935E-11+1260166.3970029i | AA157: 7.71941428933463E-11+1260159.82118843i | AB157: 7.71937404499386E-11+1260153.25147998i | AD157: -1.07855475269255-4.44451591419305i | AF157: 20.91700207
H158: 152 | I158: 100000 | J158: -7550 | L158: 100285.6625 | M158: 100285.1347 | N158: 100284.6075 | O158: 100284.0807 | P158: 100283.5545 | R158: 1260226.802 | S158: 1260220.17 | T158: 1260213.545 | U158: 1260206.925 | V158: 1260200.312 | X158: 7.71982459553721E-11+1260226.80183897i | Y158: 7.71978397184082E-11+1260220.17020241i | Z158: 7.719743385543E-11+1260213.54467101i | AA158: 7.71970283664434E-11+1260206.92524485i | AB158: 7.71966232514543E-11+1260200.31192403i | AD158: 0.945379308680088+4.34109807097847i | AF158: 19.7388745
H159: 153 | I159: 100000 | J159: -7600 | L159: 100289.4461 | M159: 100288.9149 | N159: 100288.3842 | O159: 100287.8539 | P159: 100287.3242 | R159: 1260274.348 | S159: 1260267.673 | T159: 1260261.004 | U159: 1260254.341 | V159: 1260247.684 | X159: 7.72011585235617E-11+1260274.34821064i | Y159: 7.72007496154435E-11+1260267.67296869i | Z159: 7.72003410812687E-11+1260261.00383119i | AA159: 7.71999329210432E-11+1260254.34079826i | AB159: 7.7199525134773E-11+1260247.68386997i | AD159: 0.517292041907254-4.26552140513514i | AF159: 18.46226391
H160: 154 | I160: 100000 | J160: -7650 | L160: 100293.2545 | M160: 100292.7198 | N160: 100292.1856 | O160: 100291.6519 | P160: 100291.1187 | R160: 1260322.206 | S160: 1260315.487 | T160: 1260308.774 | U160: 1260302.068 | V160: 1260295.367 | X160: 7.72040901701916E-11+1260322.20602931i | Y160: 7.72036785912223E-11+1260315.48718691i | Z160: 7.72032673861538E-11+1260308.77444827i | AA160: 7.72028565549921E-11+1260302.06781349i | AB160: 7.72024460977432E-11+1260295.36728268i | AD160: -2.87112079796255+2.97743390205084i | AF160: 17.10844728
H161: 155 | I161: 100000 | J161: -7700 | L161: 100297.0877 | M161: 100296.5495 | N161: 100296.0119 | O161: 100295.4747 | P161: 100294.938 | R161: 1260370.375 | S161: 1260363.613 | T161: 1260356.856 | U161: 1260350.106 | V161: 1260343.362 | X161: 7.72070408930886E-11+1260370.3752595i | Y161: 7.72066266435732E-11+1260363.61282163i | Z161: 7.72062127679158E-11+1260356.85648682i | AA161: 7.72057992661225E-11+1260350.10625518i | AB161: 7.72053861381992E-11+1260343.3621268i | AD161: 3.91515348349882+0.609169537496554i | AF161: 15.69951432
H162: 156 | I162: 100000 | J162: -7750 | L162: 100300.9456 | M162: 100300.404 | N162: 100299.8629 | O162: 100299.3223 | P162: 100298.7821 | R162: 1260418.856 | S162: 1260412.05 | T162: 1260405.25 | U162: 1260398.456 | V162: 1260391.668 | X162: 7.72100106900656E-11+1260418.8558655i | Y162: 7.72095937703112E-11+1260412.04983718i | Z162: 7.72091772243717E-11+1260405.24991121i | AA162: 7.72087610522532E-11+1260398.45608771i | AB162: 7.72083452539616E-11+1260391.66836676i | AD162: -0.553676765042839-3.73514700511421i | AF162: 14.25788111
H163: 157 | I163: 100000 | J163: -7800 | L163: 100304.8284 | M163: 100304.2833 | N163: 100303.7387 | O163: 100303.1946 | P163: 100302.651 | R163: 1260467.648 | S163: 1260460.798 | T163: 1260453.955 | U163: 1260447.117 | V163: 1260440.286 | X163: 7.72129995589217E-11+1260467.6478114i | Y163: 7.72125799692372E-11+1260460.79819766i | Z163: 7.72121607533243E-11+1260453.95468557i | AA163: 7.7211741911189E-11+1260447.11727524i | AB163: 7.72113234428374E-11+1260440.28596675i | AD163: -3.54480741373046+0.490045371738244i | AF163: 12.80580407
H164: 158 | I164: 100000 | J164: -7850 | L164: 100308.7359 | M164: 100308.1873 | N164: 100307.6393 | O164: 100307.0917 | P164: 100306.5446 | R164: 1260516.751 | S164: 1260509.858 | T164: 1260502.971 | U164: 1260496.09 | V164: 1260489.215 | X164: 7.72160074974422E-11+1260516.75106102i | Y164: 7.72155852381385E-11+1260509.85786694i | Z164: 7.72151633525628E-11+1260502.97077381i | AA164: 7.72147418407211E-11+1260496.08978171i | AB164: 7.72143207026195E-11+1260489.21489076i | AD164: -0.615750141356227+3.31447731567887i | AF164: 11.36490811
H165: 159 | I165: 100000 | J165: -7900 | L165: 100312.6682 | M165: 100312.1162 | N165: 100311.5646 | O165: 100311.0136 | P165: 100310.463 | R165: 1260566.166 | S165: 1260559.229 | T165: 1260552.298 | U165: 1260545.374 | V165: 1260538.455 | X165: 7.72190345033986E-11+1260566.165578i | Y165: 7.72186095747886E-11+1260559.22880869i | Z165: 7.72181850198626E-11+1260552.29813961i | AA165: 7.72177608386267E-11+1260545.37357085i | AB165: 7.72173370310872E-11+1260538.45510251i | AD165: 2.16190843437611+2.29823619005293i | AF165: 9.955737664
H166: 160 | I166: 100000 | J166: -7950 | L166: 100316.6252 | M166: 100316.0697 | N166: 100315.5148 | O166: 100314.9602 | P166: 100314.4062 | R166: 1260615.891 | S166: 1260608.911 | T166: 1260601.937 | U166: 1260594.969 | V166: 1260588.007 | X166: 7.72220805745487E-11+1260615.89132573i | Y166: 7.72216529769471E-11+1260608.91098633i | Z166: 7.72212257529853E-11+1260601.93674643i | AA166: 7.72207989026695E-11+1260594.96860614i | AB166: 7.72203724260058E-11+1260588.00656555i | AD166: 2.88013007398313+0.549723833989956i | AF166: 8.597345537
H167: 161 | I167: 100000 | J167: -8000 | L167: 100320.607 | M167: 100320.0481 | N167: 100319.4896 | O167: 100318.9317 | P167: 100318.3742 | R167: 1260665.928 | S167: 1260658.904 | T167: 1260651.887 | U167: 1260644.875 | V167: 1260637.869 | X167: 7.72251457086363E-11+1260665.92826738i | Y167: 7.72247154423598E-11+1260658.90436306i | Z167: 7.72242855496786E-11+1260651.88655751i | AA167: 7.7223856030599E-11+1260644.87485084i | AB167: 7.72234268851272E-11+1260637.86924315i | AD167: 2.68114232700823-0.344094688811587i | AF167: 7.306925333
H168: 162 | I168: 100000 | J168: -8050 | L168: 100324.6136 | M168: 100324.0512 | N168: 100323.4893 | O168: 100322.9278 | P168: 100322.3669 | R168: 1260716.276 | S168: 1260709.209 | T168: 1260702.148 | U168: 1260695.092 | V168: 1260688.043 | X168: 7.72282299033919E-11+1260716.27636591i | Y168: 7.7227796968759E-11+1260709.20890186i | Z168: 7.72273644076767E-11+1260702.14753586i | AA168: 7.72269322201514E-11+1260695.09226801i | AB168: 7.72265004061892E-11+1260688.04309841i | AD168: 2.44796176433232-0.327081807357548i | AF168: 6.099499308
H169: 163 | I169: 100000 | J169: -8100 | L169: 100328.6449 | M169: 100328.0791 | N169: 100327.5137 | O169: 100326.9488 | P169: 100326.3843 | R169: 1260766.936 | S169: 1260759.825 | T169: 1260752.72 | U169: 1260745.621 | V169: 1260738.528 | X169: 7.72313331565318E-11+1260766.93558402i | Y169: 7.7230897553863E-11+1260759.82456548i | Z169: 7.72304623247E-11+1260752.71964425i | AA169: 7.72300274690489E-11+1260745.62082045i | AB169: 7.7229592986916E-11+1260738.52809415i | AD169: 2.19998241937116+0.384373796449296i | AF169: 4.987665861
H170: 164 | I170: 100000 | J170: -8150 | L170: 100332.701 | M170: 100332.1317 | N170: 100331.5628 | O170: 100330.9945 | P170: 100330.4266 | R170: 1260817.906 | S170: 1260810.751 | T170: 1260803.603 | U170: 1260796.46 | V170: 1260789.324 | X170: 7.72344554657586E-11+1260817.90588422i | Y170: 7.72340171953766E-11+1260810.75131645i | Z170: 7.72335792984548E-11+1260803.60284526i | AA170: 7.72331417749999E-11+1260796.46047075i | AB170: 7.7232704625018E-11+1260789.32419302i | AD170: 1.4048866230248+1.41693593740044i | AF170: 3.981413874
H171: 165 | I171: 100000 | J171: -8200 | L171: 100336.7819 | M171: 100336.2091 | N171: 100335.6367 | O171: 100335.0649 | P171: 100334.4936 | R171: 1260869.187 | S171: 1260861.989 | T171: 1260854.797 | U171: 1260847.611 | V171: 1260840.431 | X171: 7.72375968287616E-11+1260869.18722878i | Y171: 7.72371558909905E-11+1260861.98911709i | Z171: 7.72367153266342E-11+1260854.79710122i | AA171: 7.72362751356992E-11+1260847.61118129i | AB171: 7.72358353181919E-11+1260840.4313574i | AD171: -0.256276833869205+1.73848437903083i | AF171: 3.088005752
H172: 166 | I172: 100000 | J172: -8250 | L172: 100340.8875 | M172: 100340.3112 | N172: 100339.7354 | O172: 100339.1601 | P172: 100338.5853 | R172: 1260920.78 | S172: 1260913.538 | T172: 1260906.302 | U172: 1260899.073 | V172: 1260891.85 | X172: 7.72407572432158E-11+1260920.77957976i | Y172: 7.72403136383819E-11+1260913.53792946i | Z172: 7.72398704069172E-11+1260906.30237424i | AA172: 7.72394275488279E-11+1260899.07291421i | AB172: 7.72389850641206E-11+1260891.84954948i | AD172: -1.49419139792839+0.281644645366833i | AF172: 2.31193164
H173: 167 | I173: 100000 | J173: -8300 | L173: 100345.0178 | M173: 100344.4381 | N173: 100343.8588 | O173: 100343.28 | P173: 100342.7018 | R173: 1260972.683 | S173: 1260965.398 | T173: 1260958.119 | U173: 1260950.846 | V173: 1260943.579 | X173: 7.72439367067828E-11+1260972.68289897i | Y173: 7.72434904352145E-11+1260965.39771543i | Z173: 7.72430445369692E-11+1260958.11862621i | AA173: 7.72425990120533E-11+1260950.84563143i | AB173: 7.72421538604733E-11+1260943.57873119i | AD173: -0.266353741357659-1.2585662126356i | AF173: 1.654933227
H174: 168 | I174: 100000 | J174: -8350 | L174: 100349.1729 | M174: 100348.5897 | N174: 100348.007 | O174: 100347.4247 | P174: 100346.843 | R174: 1261024.897 | S174: 1261017.568 | T174: 1261010.246 | U174: 1261002.929 | V174: 1260995.619 | X174: 7.72471352171105E-11+1261024.89714803i | Y174: 7.72466862791378E-11+1261017.56843662i | Z174: 7.72462377144418E-11+1261010.24581879i | AA174: 7.72457895230289E-11+1261002.92929464i | AB174: 7.72453417049057E-11+1260995.61886428i | AD174: 1.05313881959775+0.0836319129312613i | AF174: 1.11609567
H175: 169 | I175: 100000 | J175: -8400 | L175: 100353.3527 | M175: 100352.766 | N175: 100352.1798 | O175: 100351.5942 | P175: 100351.0089 | R175: 1261077.422 | S175: 1261070.05 | T175: 1261062.684 | U175: 1261055.324 | V175: 1261047.97 | X175: 7.7250352771833E-11+1261077.4222883i | Y175: 7.7249901167788E-11+1261070.05005446i | Z175: 7.7249449936973E-11+1261062.68391343i | AA175: 7.72489990793946E-11+1261055.32386532i | AB175: 7.72485485950594E-11+1261047.96991024i | AD175: -0.520741140477364+0.64871510505005i | AF175: 0.6920026229
H176: 170 | I176: 100000 | J176: -8450 | L176: 100357.5572 | M176: 100356.9671 | N176: 100356.3775 | O176: 100355.7883 | P176: 100355.1996 | R176: 1261130.258 | S176: 1261122.843 | T176: 1261115.433 | U176: 1261108.029 | V176: 1261100.632 | X176: 7.72535893685708E-11+1261130.25828095i | Y176: 7.72531350987874E-11+1261122.84253012i | Z176: 7.72526812021871E-11+1261115.43287134i | AA176: 7.72522276787767E-11+1261108.02930472i | AB176: 7.72517745285626E-11+1261100.63183036i | AD176: 0.00648574193030538-0.613927505902333i | AF176: 0.3769490474
H177: 171 | I177: 100000 | J177: -8500 | L177: 100361.7865 | M177: 100361.1929 | N177: 100360.5998 | O177: 100360.0072 | P177: 100359.4151 | R177: 1261183.405 | S177: 1261175.946 | T177: 1261168.493 | U177: 1261161.046 | V177: 1261153.605 | X177: 7.72568450049306E-11+1261183.4050869i | Y177: 7.72563880697447E-11+1261175.94582457i | Z177: 7.72559315076948E-11+1261168.49265352i | AA177: 7.72554753187876E-11+1261161.04557386i | AB177: 7.72550195030297E-11+1261153.60458569i | AD177: 0.139266194289393+0.379221624240441i | AF177: 0.1632041132
H178: 172 | I178: 100000 | J178: -8550 | L178: 100366.0406 | M178: 100365.4435 | N178: 100364.8469 | O178: 100364.2509 | P178: 100363.6553 | R178: 1261236.863 | S178: 1261229.36 | T178: 1261221.863 | U178: 1261214.373 | V178: 1261206.888 | X178: 7.72601196785055E-11+1261236.86266687i | Y178: 7.72596600782548E-11+1261229.35989855i | Z178: 7.72592008510928E-11+1261221.86322074i | AA178: 7.72587419970262E-11+1261214.37263354i | AB178: 7.72582835160615E-11+1261206.88813706i | AD178: -0.0851523969927261-0.184567004583086i | AF178: 0.04131590989
H179: 173 | I179: 100000 | J179: -8600 | L179: 100370.3193 | M179: 100369.7188 | N179: 100369.1188 | O179: 100368.5192 | P179: 100367.9202 | R179: 1261290.631 | S179: 1261283.085 | T179: 1261275.545 | U179: 1261268.01 | V179: 1261260.482 | X179: 7.72634133868748E-11+1261290.63098133i | Y179: 7.72629511218992E-11+1261283.08471257i | Z179: 7.72624892299646E-11+1261275.54453354i | AA179: 7.72620277110776E-11+1261268.01044434i | AB179: 7.72615665652449E-11+1261260.48244509i | AD179: 0.0185843355105246+0.0101463890003809i | AF179: 0.0004483267361
H180: 174 | I180: 100000 | J180: -8650 | L180: 100374.6228 | M180: 100374.0188 | N180: 100373.4153 | O180: 100372.8123 | P180: 100372.2098 | R180: 1261344.71 | S180: 1261337.12 | T180: 1261329.537 | U180: 1261321.959 | V180: 1261314.387 | X180: 7.72667261276045E-11+1261344.70999056i | Y180: 7.72662611982455E-11+1261337.12022693i | Z180: 7.72657966418795E-11+1261329.53655225i | AA180: 7.72653324585133E-11+1261321.95896662i | AB180: 7.72648686481536E-11+1261314.38747015i | AD180: -0.0984689691763824+0.137999243170237i | AF180: 0.02873992901
H181: 175 | I181: 100000 | J181: -8700 | L181: 100378.951 | M181: 100378.3435 | N181: 100377.7366 | O181: 100377.1301 | P181: 100376.5241 | R181: 1261399.1 | S181: 1261391.466 | T181: 1261383.839 | U181: 1261376.218 | V181: 1261368.603 | X181: 7.72700578982467E-11+1261399.09965458i | Y181: 7.72695903048478E-11+1261391.4664017i | Z181: 7.72691230843937E-11+1261383.83923697i | AA181: 7.72686562368912E-11+1261376.21816051i | AB181: 7.72681897623471E-11+1261368.60317243i | AD181: 0.335190308717017-0.0363574781325169i | AF181: 0.1136744093
H182: 176 | I182: 100000 | J182: -8750 | L182: 100383.3039 | M182: 100382.693 | N182: 100382.0826 | O182: 100381.4726 | P182: 100380.8632 | R182: 1261453.8 | S182: 1261446.123 | T182: 1261438.453 | U182: 1261430.788 | V182: 1261423.13 | X182: 7.72734086963397E-11+1261453.79993322i | Y182: 7.72729384392463E-11+1261446.12319672i | Z182: 7.72724685550494E-11+1261438.45254758i | AA182: 7.72719990437556E-11+1261430.78798592i | AB182: 7.72715299053717E-11+1261423.12951185i | AD182: -0.231507995750756-0.43457564501984i | AF182: 0.2424519433
H183: 177 | I183: 100000 | J183: -8800 | L183: 100387.6815 | M183: 100387.0671 | N183: 100386.4533 | O183: 100385.8399 | P183: 100385.227 | R183: 1261508.811 | S183: 1261501.091 | T183: 1261493.376 | U183: 1261485.668 | V183: 1261477.966 | X183: 7.72767785194084E-11+1261508.81078607i | Y183: 7.7276305598968E-11+1261501.09057162i | Z183: 7.72758330513752E-11+1261493.37644374i | AA183: 7.72753608766368E-11+1261485.66840254i | AB183: 7.72748890747598E-11+1261477.96644813i | AD183: -0.540178914133678+0.332502429884783i | AF183: 0.4023511252
H184: 178 | I184: 100000 | J184: -8850 | L184: 100392.0838 | M184: 100391.466 | N184: 100390.8487 | O184: 100390.2318 | P184: 100389.6155 | R184: 1261564.132 | S184: 1261556.368 | T184: 1261548.611 | U184: 1261540.859 | V184: 1261533.114 | X184: 7.72801673649642E-11+1261564.13217251i | Y184: 7.72796917815259E-11+1261556.36848581i | Z184: 7.72792165708862E-11+1261548.61088488i | AA184: 7.72787417330521E-11+1261540.85936983i | AB184: 7.72782672680302E-11+1261533.11394078i | AD184: 0.225376792976038+0.728201216185235i | AF184: 0.5810717101
H185: 179 | I185: =I184-$J$1 -> 100000 | J185: =J184-$J$2 -> -8900 | L185: 100396.5109 | M185: 100395.8896 | N185: 100395.2688 | O185: 100394.6485 | P185: 100394.0287 | R185: 1261619.764 | S185: 1261611.957 | T185: 1261604.156 | U185: 1261596.361 | V185: 1261588.572 | X185: =IMPRODUCT($F$7,R185,$X$2) -> 7.72835752305045E-11+1261619.76405168i | Y185: =IMPRODUCT($F$8,S185,$X$2) -> 7.72830969844196E-11+1261611.95689846i | Z185: =IMPRODUCT($F$9,T185,$X$2) -> 7.72826191110839E-11+1261604.15583021i | AA185: =IMPRODUCT($F$10,U185,$X$2) -> 7.72821416105045E-11+1261596.36084704i | AB185: =IMPRODUCT($F$11,V185,$X$2) -> 7.72816644826883E-11+1261588.57194906i | AD185: =IMSUM(IMEXP(X185),IMEXP(Y185),IMEXP(Z185),IMEXP(AA185),IMEXP(AB185)) -> 0.845551898632337+0.228234660470747i | AF185: =(IMABS(AD185))^2 -> 0.7670490735
H186: 180 | I186: 100000 | J186: -8950 | L186: 100400.9626 | M186: 100400.3379 | N186: 100399.7136 | O186: 100399.0899 | P186: 100398.4666 | R186: 1261675.706 | S186: 1261667.856 | T186: 1261660.011 | U186: 1261652.173 | V186: 1261644.34 | X186: 7.72870021135135E-11+1261675.70638251i | Y186: 7.72865212051349E-11+1261667.85576854i | Z186: 7.7286040669456E-11+1261660.01123873i | AA186: 7.7285560506484E-11+1261652.17279319i | AB186: 7.72850807162256E-11+1261644.34043203i | AD186: 0.885027064401626-0.407994801371812i | AF186: 0.9497326627
H187: 181 | I187: 100000 | J187: -9000 | L187: 100405.4391 | M187: 100404.8109 | N187: 100404.1832 | O187: 100403.556 | P187: 100402.9292 | R187: 1261731.959 | S187: 1261724.065 | T187: 1261716.177 | U187: 1261708.295 | V187: 1261700.419 | X187: 7.72904480114614E-11+1261731.9591237i | Y187: 7.72899644411442E-11+1261724.06505478i | Z187: 7.72894812434769E-11+1261716.1770692i | AA187: 7.72889984184665E-11+1261708.29516707i | AB187: 7.72885159661202E-11+1261700.41934852i | AD187: 0.724597085341674-0.7712201800474i | AF187: 1.119821502
H188: 182 | I188: 100000 | J188: -9050 | L188: 100409.9402 | M188: 100409.3086 | N188: 100408.6774 | O188: 100408.0467 | P188: 100407.4165 | R188: 1261788.522 | S188: 1261780.585 | T188: 1261772.653 | U188: 1261764.728 | V188: 1261756.809 | X188: 7.72939129218053E-11+1261788.52223375i | Y188: 7.72934266899062E-11+1261780.58471569i | Z188: 7.7292940830607E-11+1261772.65328016i | AA188: 7.72924553439148E-11+1261764.72792727i | AB188: 7.72919702298365E-11+1261756.80865714i | AD188: 0.708820192697886-0.875799973109408i | AF188: 1.269451658
H189: 183 | I189: 100000 | J189: -9100 | L189: 100414.4661 | M189: 100413.831 | N189: 100413.1963 | O189: 100412.5622 | P189: 100411.9286 | R189: 1261845.396 | S189: 1261837.415 | T189: 1261829.44 | U189: 1261821.471 | V189: 1261813.508 | X189: 7.72973968419884E-11+1261845.39567091i | Y189: 7.72969079488662E-11+1261837.41470958i | Z189: 7.72964194282936E-11+1261829.43982995i | AA189: 7.72959312802777E-11+1261821.47103214i | AB189: 7.72954435048254E-11+1261813.50831627i | AD189: 0.936772979882734-0.717487640941749i | AF189: 1.392332131
H190: 184 | I190: 100000 | J190: -9150 | L190: 100419.0166 | M190: 100418.378 | N190: 100417.74 | O190: 100417.1024 | P190: 100416.4653 | R190: 1261902.579 | S190: 1261894.555 | T190: 1261886.537 | U190: 1261878.524 | V190: 1261870.518 | X190: 7.73008997694403E-11+1261902.57939322i | Y190: 7.73004082154557E-11+1261894.5549945i | Z190: 7.72999170339701E-11+1261886.53667666i | AA190: 7.72994262249906E-11+1261878.52443982i | AB190: 7.72989357885242E-11+1261870.51828408i | AD190: 1.21124299602679-0.129294374900179i | AF190: 1.483826631
H191: 185 | I191: 100000 | J191: -9200 | L191: 100423.5918 | M191: 100422.9498 | N191: 100422.3083 | O191: 100421.6672 | P191: 100421.0267 | R191: 1261960.073 | S191: 1261952.006 | T191: 1261943.944 | U191: 1261935.888 | V191: 1261927.839 | X191: 7.73044217015772E-11+1261960.07335851i | Y191: 7.73039274870928E-11+1261952.00552832i | Z191: 7.73034336450564E-11+1261943.94377818i | AA191: 7.73029401754753E-11+1261935.88810821i | AB191: 7.73024470783566E-11+1261927.83851851i | AD191: 0.907174302654403+0.847358470090475i | AF191: 1.540981592
H192: 186 | I192: 100000 | J192: -9250 | L192: 100428.1917 | M192: 100427.5463 | N192: 100426.9013 | O192: 100426.2568 | P192: 100425.6127 | R192: 1262017.878 | S192: 1262009.766 | T192: 1262001.661 | U192: 1261993.562 | V192: 1261985.469 | X192: 7.73079626358017E-11+1262017.87752437i | Y192: 7.73074657611819E-11+1262009.76626866i | Z192: 7.7306969258959E-11+1262001.66109217i | AA192: 7.73064731291403E-11+1261993.561995i | AB192: 7.73059773717328E-11+1261985.46897729i | AD192: -0.426862966341211+1.17485692765536i | AF192: 1.562500792
H193: 187 | I193: 100000 | J193: -9300 | L193: 100432.8163 | M193: 100432.1674 | N193: 100431.519 | O193: 100430.871 | P193: 100430.2235 | R193: 1262075.992 | S193: 1262067.837 | T193: 1262059.689 | U193: 1262051.546 | V193: 1262043.41 | X193: 7.73115225695028E-11+1262075.99184818i | Y193: 7.7311023035114E-11+1262067.83717293i | Z193: 7.73105238730707E-11+1262059.68857606i | AA193: 7.73100250833801E-11+1262051.54605768i | AB193: 7.73095266660495E-11+1262043.40961791i | AD193: -1.20392055752835-0.315032243110933i | AF193: 1.548670023
H194: 188 | I194: 100000 | J194: -9350 | L194: 100437.4656 | M194: 100436.8132 | N194: 100436.1613 | O194: 100435.5099 | P194: 100434.859 | R194: 1262134.416 | S194: 1262126.218 | T194: 1262118.026 | U194: 1262109.84 | V194: 1262101.66 | X194: 7.73151015000562E-11+1262134.41628709i | Y194: 7.73145993062666E-11+1262126.21819832i | Z194: 7.73140974847708E-11+1262118.02618708i | AA194: 7.73135960355761E-11+1262109.84025348i | AB194: 7.73130949586898E-11+1262101.66039766i | AD194: 0.558773661006904-1.09041641890921i | AF194: 1.501235971
H195: 189 | I195: 100000 | J195: -9400 | L195: 100442.1395 | M195: 100441.4837 | N195: 100440.8284 | O195: 100440.1735 | P195: 100439.5191 | R195: 1262193.151 | S195: 1262184.909 | T195: 1262176.674 | U195: 1262168.445 | V195: 1262160.221 | X195: 7.73186994248238E-11+1262193.15079805i | Y195: 7.73181945720035E-11+1262184.90930179i | Z195: 7.73176900914251E-11+1262176.67388222i | AA195: 7.73171859830959E-11+1262168.44453945i | AB195: 7.73166822470233E-11+1262160.22127359i | AD195: 0.64328047719464+1.00470613008762i | AF195: 1.42324418
H196: 190 | I196: 100000 | J196: -9450 | L196: 100446.8382 | M196: 100446.1789 | N196: 100445.5201 | O196: 100444.8617 | P196: 100444.2039 | R196: 1262252.195 | S196: 1262243.91 | T196: 1262235.632 | U196: 1262227.359 | V196: 1262219.092 | X196: 7.73223163411542E-11+1262252.19533777i | Y196: 7.73218088296752E-11+1262243.9104401i | Z196: 7.73213016903859E-11+1262235.63161826i | AA196: 7.73207949232937E-11+1262227.35887237i | AB196: 7.73202885284059E-11+1262219.09220255i | AD196: -1.10731992018916-0.304444485460454i | AF196: 1.31884385
H197: 191 | I197: 100000 | J197: -9500 | L197: 100451.5614 | M197: 100450.8987 | N197: 100450.2364 | O197: 100449.5747 | P197: 100448.9134 | R197: 1262311.55 | S197: 1262303.222 | T197: 1262294.899 | U197: 1262286.583 | V197: 1262278.273 | X197: 7.73259522463823E-11+1262311.54986274i | Y197: 7.73254420766185E-11+1262303.22156976i | Z197: 7.73249322789921E-11+1262294.89935176i | AA197: 7.73244228535102E-11+1262286.58320885i | AB197: 7.73239138001804E-11+1262278.27314116i | AD197: 1.07923711760004-0.168263694473357i | AF197: 1.193065427
H198: 192 | I198: 100000 | J198: -9550 | L198: 100456.3094 | M198: 100455.6432 | N198: 100454.9775 | O198: 100454.3122 | P198: 100453.6475 | R198: 1262371.214 | S198: 1262362.843 | T198: 1262354.477 | U198: 1262346.118 | V198: 1262337.764 | X198: 7.73296071378296E-11+1262371.21432924i | Y198: 7.73290943101569E-11+1262362.84264709i | Z198: 7.73285818545688E-11+1262354.47703905i | AA198: 7.73280697710726E-11+1262346.11750525i | AB198: 7.73275580596758E-11+1262337.7640458i | AD198: -0.988944993785381+0.271234765147114i | AF198: 1.051580499
H199: 193 | I199: 100000 | J199: -9600 | L199: 100461.082 | M199: 100460.4123 | N199: 100459.7432 | O199: 100459.0745 | P199: 100458.4063 | R199: =L199/$D$3*2*PI()+$E$7 -> 1262431.189 | S199: =M199/$D$3*2*PI()+$E$8 -> 1262422.774 | T199: =N199/$D$3*2*PI()+$E$9 -> 1262414.365 | U199: =O199/$D$3*2*PI()+$E$10 -> 1262405.962 | V199: =P199/$D$3*2*PI()+$E$11 -> 1262397.565 | X199: 7.73332810128043E-11+1262431.18869333i | Y199: 7.73327655276003E-11+1262422.77362817i | Z199: 7.7332250414428E-11+1262414.36463626i | AA199: 7.73317356732946E-11+1262405.96171772i | AB199: 7.73312213042076E-11+1262397.56487267i | AD199: 0.946543144132483-0.0671377259082337i | AF199: 0.9004513979
H200: 194 | I200: 100000 | J200: -9650 | L200: 100465.8793 | M200: 100465.2062 | N200: 100464.5335 | O200: 100463.8614 | P200: 100463.1898 | R200: 1262491.473 | S200: 1262483.014 | T200: 1262474.562 | U200: 1262466.116 | V200: 1262457.676 | X200: 7.73369738686009E-11+1262491.47291084i | Y200: 7.73364557262452E-11+1262483.01446886i | Z200: 7.73359379558679E-11+1262474.56209927i | AA200: 7.73354205574763E-11+1262466.11580218i | AB200: 7.7334903531078E-11+1262457.67557771i | AD200: -0.782887458177393-0.364645818004298i | AF200: 0.7458793448
... 307 more rows

Sheet 50points
I1: Δx | J1: 0 | O1: I | U1: =IMPRODUCT(((SQRT(($C$7-$I7)^2+($D$7-$J7)^2))/$D$3*2*PI()+$E$7),$O$2,$F$7) -> 1.92445884670636E-11+314159.290491845i | BO1: X position | BQ1: =I7 -> 25000
B2: 波長 | I2: Δy | J2: 50 | O2: =IMSQRT(-1) -> 6.1257422745431E-17+i | U2: =(SQRT(($C$7-$I7)^2+($D$7-$J7)^2))/$D$3*2*PI()+$E$7 -> 314159.2905 | BO2: Y position | BQ2: =J7 -> 0
B3: Wavelength | D3: 0.5 | E3: [um] | I3: 観測点 | L3: 光源からの距離 | U3: =IMPRODUCT(((SQRT(($C$7-$I7)^2+($D$7-$J7)^2))/$D$3*2*PI()+$E$7),$O$2,$F$7) -> 1.92445884670636E-11+314159.290491845i | BO3: 合計 | BQ3: 光強度
L4: Distance from | BO4: Sum | BQ4: Power
B5: 光源 | C5: [um] | D5: [um] | E5: [rad] | F5: [relative] | H5: 観察地点 | I5: [um] | J5: [um] | L5: N
B6: N | C6: X | D6: Y | E6: Phase | F6: Amplitude | H6: ｎ | I6: x | J6: y | L6: 7 | M6: 8 | N6: 9 | O6: 10 | P6: 11 | Q6: 12 | R6: 13 | S6: 14 | T6: 15 | U6: 16 | V6: 17 | W6: 18 | X6: 19 | Y6: 20 | Z6: 21 | AA6: 22 | AB6: 23 | AC6: 24 | AD6: 25 | AE6: 26 | AF6: 27 | AG6: 28 | AH6: 29 | AI6: 30 | AJ6: 31 | AK6: 32 | AL6: 33 | AM6: 34 | AN6: 35 | AO6: 36 | AP6: 37 | AQ6: 38 | AR6: 39 | AS6: 40 | AT6: 41 | AU6: 42 | AV6: 43 | AW6: 44 | AX6: 45 | AY6: 46 | AZ6: 47 | BA6: 48 | BB6: 49 | BC6: 50 | BD6: 51 | BE6: 52 | BF6: 53 | BG6: 54 | BH6: 55 | BI6: 56 | BO6: 1-5 | BQ6: (Sum)^2
A7: ΔY | B7: 1 | C7: 0 | D7: 10 | E7: 0 | F7: 1 | H7: 1 | I7: 25000 | J7: 0 | L7: =IMPRODUCT(((SQRT(($C$7-$I7)^2+($D$7-$J7)^2))/$D$3*2*PI()+$E$7),$O$2,$F$7) -> 1.92445884670636E-11+314159.290491845i | M7: =IMPRODUCT(((SQRT(($C$8-$I7)^2+($D$8-$J8)^2))/$D$3*2*PI()+$E$8),$O$2,$F$8) -> 1.92446301738839E-11+314159.971337013i | N7: =IMPRODUCT(((SQRT(($C$9-$I7)^2+($D$9-$J7)^2))/$D$3*2*PI()+$E$9),$O$2,$F$9) -> 1.92445871738274E-11+314159.269380344i | O7: =IMPRODUCT(((SQRT(($C$10-$I7)^2+($D$10-$J7)^2))/$D$3*2*PI()+$E$10),$O$2,$F$10) -> 1.92445887903727E-11+314159.29576972i | P7: =IMPRODUCT(((SQRT(($C$11-$I7)^2+($D$11-$J7)^2))/$D$3*2*PI()+$E$11),$O$2,$F$11) -> 1.9244591915693E-11+314159.346789176i | Q7: =IMPRODUCT(((SQRT(($C$12-$I7)^2+($D$12-$J7)^2))/$D$3*2*PI()+$E$12),$O$2,$F$12) -> 1.92445965497878E-11+314159.422438698i | R7: =IMPRODUCT(((SQRT(($C$13-$I7)^2+($D$13-$J7)^2))/$D$3*2*PI()+$E$13),$O$2,$F$13) -> 1.92446026926559E-11+314159.52271827i | S7: =IMPRODUCT(((SQRT(($C$14-$I7)^2+($D$14-$J7)^2))/$D$3*2*PI()+$E$14),$O$2,$F$14) -> 1.92446103442959E-11+314159.647627866i | T7: =IMPRODUCT(((SQRT(($C$15-$I7)^2+($D$15-$J7)^2))/$D$3*2*PI()+$E$15),$O$2,$F$15) -> 1.92446195047059E-11+314159.797167459i | U7: =IMPRODUCT(((SQRT(($C$16-$I7)^2+($D$16-$J7)^2))/$D$3*2*PI()+$E$16),$O$2,$F$16) -> 1.92446301738839E-11+314159.971337013i | V7: =IMPRODUCT(((SQRT(($C$17-$I7)^2+($D$17-$J7)^2))/$D$3*2*PI()+$E$17),$O$2,$F$17) -> 1.92446423518273E-11+314160.170136486i | W7: =IMPRODUCT(((SQRT(($C$18-$I7)^2+($D$18-$J7)^2))/$D$3*2*PI()+$E$18),$O$2,$F$18) -> 1.92446560385332E-11+314160.393565833i | X7: =IMPRODUCT(((SQRT(($C$19-$I7)^2+($D$19-$J7)^2))/$D$3*2*PI()+$E$19),$O$2,$F$19) -> 1.92446712339985E-11+314160.641625i | Y7: =IMPRODUCT(((SQRT(($C$20-$I7)^2+($D$20-$J7)^2))/$D$3*2*PI()+$E$20),$O$2,$F$20) -> 1.92446879382195E-11+314160.91431393i | Z7: =IMPRODUCT(((SQRT(($C$21-$I7)^2+($D$21-$J7)^2))/$D$3*2*PI()+$E$21),$O$2,$F$21) -> 1.92447061511924E-11+314161.211632557i | AA7: =IMPRODUCT(((SQRT(($C$22-$I7)^2+($D$22-$J7)^2))/$D$3*2*PI()+$E$22),$O$2,$F$22) -> 1.92447258729128E-11+314161.533580813i | AB7: =IMPRODUCT(((SQRT(($C$23-$I7)^2+($D$23-$J7)^2))/$D$3*2*PI()+$E$23),$O$2,$F$23) -> 1.92447471033761E-11+314161.880158621i | AC7: =IMPRODUCT(((SQRT(($C$24-$I7)^2+($D$24-$J7)^2))/$D$3*2*PI()+$E$24),$O$2,$F$24) -> 1.92447698425773E-11+314162.2513659i | AD7: =IMPRODUCT(((SQRT(($C$25-$I7)^2+($D$25-$J7)^2))/$D$3*2*PI()+$E$25),$O$2,$F$25) -> 1.92447940905111E-11+314162.647202562i | AE7: =IMPRODUCT(((SQRT(($C$26-$I7)^2+($D$26-$J7)^2))/$D$3*2*PI()+$E$26),$O$2,$F$26) -> 1.92448198471717E-11+314163.067668516i | AF7: =IMPRODUCT(((SQRT(($C$27-$I7)^2+($D$27-$J7)^2))/$D$3*2*PI()+$E$27),$O$2,$F$27) -> 1.92448471125532E-11+314163.51276366i | AG7: =IMPRODUCT(((SQRT(($C$28-$I7)^2+($D$28-$J7)^2))/$D$3*2*PI()+$E$28),$O$2,$F$28) -> 1.9244875886649E-11+314163.982487892i | AH7: =IMPRODUCT(((SQRT(($C$29-$I7)^2+($D$29-$J7)^2))/$D$3*2*PI()+$E$29),$O$2,$F$29) -> 1.92449061694525E-11+314164.4768411i | AI7: =IMPRODUCT(((SQRT(($C$30-$I7)^2+($D$30-$J7)^2))/$D$3*2*PI()+$E$30),$O$2,$F$30) -> 1.92449379609564E-11+314164.995823169i | AJ7: =IMPRODUCT(((SQRT(($C$31-$I7)^2+($D$31-$J7)^2))/$D$3*2*PI()+$E$31),$O$2,$F$31) -> 1.92449712611534E-11+314165.539433976i | AK7: =IMPRODUCT(((SQRT(($C$32-$I7)^2+($D$32-$J7)^2))/$D$3*2*PI()+$E$32),$O$2,$F$32) -> 1.92450060700356E-11+314166.107673393i | AL7: =IMPRODUCT(((SQRT(($C$33-$I7)^2+($D$33-$J7)^2))/$D$3*2*PI()+$E$33),$O$2,$F$33) -> 1.92450423875948E-11+314166.700541286i | AM7: =IMPRODUCT(((SQRT(($C$34-$I7)^2+($D$34-$J7)^2))/$D$3*2*PI()+$E$34),$O$2,$F$34) -> 1.92450802138225E-11+314167.318037517i | AN7: =IMPRODUCT(((SQRT(($C$35-$I7)^2+($D$35-$J7)^2))/$D$3*2*PI()+$E$35),$O$2,$F$35) -> 1.92451195487097E-11+314167.96016194i | AO7: =IMPRODUCT(((SQRT(($C$36-$I7)^2+($D$36-$J7)^2))/$D$3*2*PI()+$E$36),$O$2,$F$36) -> 1.92451603922472E-11+314168.626914404i | AP7: =IMPRODUCT(((SQRT(($C$37-$I7)^2+($D$37-$J7)^2))/$D$3*2*PI()+$E$37),$O$2,$F$37) -> 1.92452027444255E-11+314169.318294752i | AQ7: =IMPRODUCT(((SQRT(($C$38-$I7)^2+($D$38-$J7)^2))/$D$3*2*PI()+$E$38),$O$2,$F$38) -> 1.92452466052345E-11+314170.034302822i | AR7: =IMPRODUCT(((SQRT(($C$39-$I7)^2+($D$39-$J7)^2))/$D$3*2*PI()+$E$39),$O$2,$F$39) -> 1.9245291974664E-11+314170.774938445i | AS7: =IMPRODUCT(((SQRT(($C$40-$I7)^2+($D$40-$J7)^2))/$D$3*2*PI()+$E$40),$O$2,$F$40) -> 1.92453388527032E-11+314171.540201447i | AT7: =IMPRODUCT(((SQRT(($C$41-$I7)^2+($D$41-$J7)^2))/$D$3*2*PI()+$E$41),$O$2,$F$41) -> 1.92453872393412E-11+314172.330091648i | AU7: =IMPRODUCT(((SQRT(($C$42-$I7)^2+($D$42-$J7)^2))/$D$3*2*PI()+$E$42),$O$2,$F$42) -> 1.92454371345665E-11+314173.144608863i | AV7: =IMPRODUCT(((SQRT(($C$43-$I7)^2+($D$43-$J7)^2))/$D$3*2*PI()+$E$43),$O$2,$F$43) -> 1.92454885383675E-11+314173.983752899i | AW7: =IMPRODUCT(((SQRT(($C$44-$I7)^2+($D$44-$J7)^2))/$D$3*2*PI()+$E$44),$O$2,$F$44) -> 1.9245541450732E-11+314174.84752356i | AX7: =IMPRODUCT(((SQRT(($C$45-$I7)^2+($D$45-$J7)^2))/$D$3*2*PI()+$E$45),$O$2,$F$45) -> 1.92455958716477E-11+314175.735920642i | AY7: =IMPRODUCT(((SQRT(($C$46-$I7)^2+($D$46-$J7)^2))/$D$3*2*PI()+$E$46),$O$2,$F$46) -> 1.92456518011016E-11+314176.648943937i | AZ7: =IMPRODUCT(((SQRT(($C$47-$I7)^2+($D$47-$J7)^2))/$D$3*2*PI()+$E$47),$O$2,$F$47) -> 1.92457092390807E-11+314177.586593229i | BA7: =IMPRODUCT(((SQRT(($C$48-$I7)^2+($D$48-$J7)^2))/$D$3*2*PI()+$E$48),$O$2,$F$48) -> 1.92457681855714E-11+314178.548868299i | BB7: =IMPRODUCT(((SQRT(($C$49-$I7)^2+($D$49-$J7)^2))/$D$3*2*PI()+$E$49),$O$2,$F$49) -> 1.924582864056E-11+314179.535768919i | BC7: =IMPRODUCT(((SQRT(($C$50-$I7)^2+($D$50-$J7)^2))/$D$3*2*PI()+$E$50),$O$2,$F$50) -> 1.92458906040321E-11+314180.547294859i | BD7: =IMPRODUCT(((SQRT(($C$51-$I7)^2+($D$51-$J7)^2))/$D$3*2*PI()+$E$51),$O$2,$F$51) -> 1.92459540759732E-11+314181.58344588i | BE7: =IMPRODUCT(((SQRT(($C$52-$I7)^2+($D$52-$J7)^2))/$D$3*2*PI()+$E$52),$O$2,$F$52) -> 1.92460190563683E-11+314182.644221738i | BF7: =IMPRODUCT(((SQRT(($C$53-$I7)^2+($D$53-$J7)^2))/$D$3*2*PI()+$E$53),$O$2,$F$53) -> 1.92460855452023E-11+314183.729622184i | BG7: =IMPRODUCT(((SQRT(($C$54-$I7)^2+($D$54-$J7)^2))/$D$3*2*PI()+$E$54),$O$2,$F$54) -> 1.92461535424595E-11+314184.839646963i | BH7: =IMPRODUCT(((SQRT(($C$55-$I7)^2+($D$55-$J7)^2))/$D$3*2*PI()+$E$55),$O$2,$F$55) -> 1.92462230481238E-11+314185.974295814i | BI7: =IMPRODUCT(((SQRT(($C$56-$I7)^2+($D$56-$J7)^2))/$D$3*2*PI()+$E$56),$O$2,$F$56) -> 1.92462940621789E-11+314187.13356847i | BO7: =IMSUM(IMEXP(L7),IMEXP(M7),IMEXP(N7),IMEXP(O7),IMEXP(P7),IMEXP(Q7),IMEXP(R7),IMEXP(S7),IMEXP(T7),IMEXP(U7),IMEXP(V7),IMEXP(W7),IMEXP(X7),IMEXP(Y7),IMEXP(Z7),IMEXP(AA7),IMEXP(AB7),IMEXP(AC7),IMEXP(AD7),IMEXP(AE7),IMEXP(AF7),IMEXP(AG7),IMEXP(AH7),IMEXP(AI7),IMEXP(AJ7),IMEXP(AK7),IMEXP(AL7),IMEXP(AM7),IMEXP(AN7),IMEXP(AO7),IMEXP(AP7),IMEXP(AQ7),IMEXP(AR7),IMEXP(AS7),IMEXP(AT7),IMEXP(AU7),IMEXP(AV7),IMEXP(AW7),IMEXP(AX7),IMEXP(AY7),IMEXP(AZ7),IMEXP(BA7),IMEXP(BB7),IMEXP(BC7),IMEXP(BD7),IMEXP(BE7),IMEXP(BF7),IMEXP(BG7),IMEXP(BH7),IMEXP(BI7)) -> 7.18808793683622+7.20402721271093i | BQ7: =(IMABS(BO7))^2 -> 103.5666163
A8: 7 | B8: 2 | C8: 0 | D8: =D7-$A$8 -> 3 | E8: =E7 -> 0 | F8: =F7 -> 1 | H8: 2 | I8: =I7 -> 25000 | J8: =J7-$J$2 -> -50 | L8: =IMPRODUCT(((SQRT(($C$7-$I8)^2+($D$7-$J8)^2))/$D$3*2*PI()+$E$7),$O$2,$F$7) -> 1.92446423518273E-11+314160.170136486i | M8: =IMPRODUCT(((SQRT(($C$8-$I8)^2+($D$8-$J9)^2))/$D$3*2*PI()+$E$8),$O$2,$F$8) -> 1.92447502594618E-11+314161.931680307i | N8: =IMPRODUCT(((SQRT(($C$9-$I8)^2+($D$9-$J8)^2))/$D$3*2*PI()+$E$9),$O$2,$F$9) -> 1.92446195047059E-11+314159.797167459i | O8: =IMPRODUCT(((SQRT(($C$10-$I8)^2+($D$10-$J8)^2))/$D$3*2*PI()+$E$10),$O$2,$F$10) -> 1.92446103442959E-11+314159.647627866i | P8: =IMPRODUCT(((SQRT(($C$11-$I8)^2+($D$11-$J8)^2))/$D$3*2*PI()+$E$11),$O$2,$F$11) -> 1.92446026926559E-11+314159.52271827i | Q8: =IMPRODUCT(((SQRT(($C$12-$I8)^2+($D$12-$J8)^2))/$D$3*2*PI()+$E$12),$O$2,$F$12) -> 1.92445965497878E-11+314159.422438698i | R8: =IMPRODUCT(((SQRT(($C$13-$I8)^2+($D$13-$J8)^2))/$D$3*2*PI()+$E$13),$O$2,$F$13) -> 1.9244591915693E-11+314159.346789176i | S8: =IMPRODUCT(((SQRT(($C$14-$I8)^2+($D$14-$J8)^2))/$D$3*2*PI()+$E$14),$O$2,$F$14) -> 1.92445887903727E-11+314159.29576972i | T8: =IMPRODUCT(((SQRT(($C$15-$I8)^2+($D$15-$J8)^2))/$D$3*2*PI()+$E$15),$O$2,$F$15) -> 1.92445871738274E-11+314159.269380344i | U8: =IMPRODUCT(((SQRT(($C$16-$I8)^2+($D$16-$J8)^2))/$D$3*2*PI()+$E$16),$O$2,$F$16) -> 1.92445870660578E-11+314159.267621052i | V8: =IMPRODUCT(((SQRT(($C$17-$I8)^2+($D$17-$J8)^2))/$D$3*2*PI()+$E$17),$O$2,$F$17) -> 1.92445884670636E-11+314159.290491845i | W8: =IMPRODUCT(((SQRT(($C$18-$I8)^2+($D$18-$J8)^2))/$D$3*2*PI()+$E$18),$O$2,$F$18) -> 1.92445913768447E-11+314159.337992719i | X8: =IMPRODUCT(((SQRT(($C$19-$I8)^2+($D$19-$J8)^2))/$D$3*2*PI()+$E$19),$O$2,$F$19) -> 1.92445957954003E-11+314159.410123661i | Y8: =IMPRODUCT(((SQRT(($C$20-$I8)^2+($D$20-$J8)^2))/$D$3*2*PI()+$E$20),$O$2,$F$20) -> 1.92446017227295E-11+314159.506884655i | Z8: =IMPRODUCT(((SQRT(($C$21-$I8)^2+($D$21-$J8)^2))/$D$3*2*PI()+$E$21),$O$2,$F$21) -> 1.92446091588307E-11+314159.628275679i | AA8: =IMPRODUCT(((SQRT(($C$22-$I8)^2+($D$22-$J8)^2))/$D$3*2*PI()+$E$22),$O$2,$F$22) -> 1.92446181037023E-11+314159.774296703i | AB8: =IMPRODUCT(((SQRT(($C$23-$I8)^2+($D$23-$J8)^2))/$D$3*2*PI()+$E$23),$O$2,$F$23) -> 1.92446285573421E-11+314159.944947693i | AC8: =IMPRODUCT(((SQRT(($C$24-$I8)^2+($D$24-$J8)^2))/$D$3*2*PI()+$E$24),$O$2,$F$24) -> 1.92446405197478E-11+314160.140228609i | AD8: =IMPRODUCT(((SQRT(($C$25-$I8)^2+($D$25-$J8)^2))/$D$3*2*PI()+$E$25),$O$2,$F$25) -> 1.92446539909164E-11+314160.360139405i | AE8: =IMPRODUCT(((SQRT(($C$26-$I8)^2+($D$26-$J8)^2))/$D$3*2*PI()+$E$26),$O$2,$F$26) -> 1.92446689708448E-11+314160.60468003i | AF8: =IMPRODUCT(((SQRT(($C$27-$I8)^2+($D$27-$J8)^2))/$D$3*2*PI()+$E$27),$O$2,$F$27) -> 1.92446854595296E-11+314160.873850426i | AG8: =IMPRODUCT(((SQRT(($C$28-$I8)^2+($D$28-$J8)^2))/$D$3*2*PI()+$E$28),$O$2,$F$28) -> 1.92447034569667E-11+314161.167650529i | AH8: =IMPRODUCT(((SQRT(($C$29-$I8)^2+($D$29-$J8)^2))/$D$3*2*PI()+$E$29),$O$2,$F$29) -> 1.9244722963152E-11+314161.486080271i | AI8: =IMPRODUCT(((SQRT(($C$30-$I8)^2+($D$30-$J8)^2))/$D$3*2*PI()+$E$30),$O$2,$F$30) -> 1.92447439780809E-11+314161.829139577i | AJ8: =IMPRODUCT(((SQRT(($C$31-$I8)^2+($D$31-$J8)^2))/$D$3*2*PI()+$E$31),$O$2,$F$31) -> 1.92447665017485E-11+314162.196828365i | AK8: =IMPRODUCT(((SQRT(($C$32-$I8)^2+($D$32-$J8)^2))/$D$3*2*PI()+$E$32),$O$2,$F$32) -> 1.92447905341494E-11+314162.58914655i | AL8: =IMPRODUCT(((SQRT(($C$33-$I8)^2+($D$33-$J8)^2))/$D$3*2*PI()+$E$33),$O$2,$F$33) -> 1.9244816075278E-11+314163.006094039i | AM8: =IMPRODUCT(((SQRT(($C$34-$I8)^2+($D$34-$J8)^2))/$D$3*2*PI()+$E$34),$O$2,$F$34) -> 1.92448431251282E-11+314163.447670734i | AN8: =IMPRODUCT(((SQRT(($C$35-$I8)^2+($D$35-$J8)^2))/$D$3*2*PI()+$E$35),$O$2,$F$35) -> 1.92448716836939E-11+314163.913876531i | AO8: =IMPRODUCT(((SQRT(($C$36-$I8)^2+($D$36-$J8)^2))/$D$3*2*PI()+$E$36),$O$2,$F$36) -> 1.92449017509681E-11+314164.404711321i | AP8: =IMPRODUCT(((SQRT(($C$37-$I8)^2+($D$37-$J8)^2))/$D$3*2*PI()+$E$37),$O$2,$F$37) -> 1.92449333269439E-11+314164.920174989i | AQ8: =IMPRODUCT(((SQRT(($C$38-$I8)^2+($D$38-$J8)^2))/$D$3*2*PI()+$E$38),$O$2,$F$38) -> 1.92449664116137E-11+314165.460267412i | AR8: =IMPRODUCT(((SQRT(($C$39-$I8)^2+($D$39-$J8)^2))/$D$3*2*PI()+$E$39),$O$2,$F$39) -> 1.924500100497E-11+314166.024988464i | AS8: =IMPRODUCT(((SQRT(($C$40-$I8)^2+($D$40-$J8)^2))/$D$3*2*PI()+$E$40),$O$2,$F$40) -> 1.92450371070044E-11+314166.614338012i | AT8: =IMPRODUCT(((SQRT(($C$41-$I8)^2+($D$41-$J8)^2))/$D$3*2*PI()+$E$41),$O$2,$F$41) -> 1.92450747177085E-11+314167.228315918i | AU8: =IMPRODUCT(((SQRT(($C$42-$I8)^2+($D$42-$J8)^2))/$D$3*2*PI()+$E$42),$O$2,$F$42) -> 1.92451138370735E-11+314167.866922037i | AV8: =IMPRODUCT(((SQRT(($C$43-$I8)^2+($D$43-$J8)^2))/$D$3*2*PI()+$E$43),$O$2,$F$43) -> 1.92451544650902E-11+314168.530156219i | AW8: =IMPRODUCT(((SQRT(($C$44-$I8)^2+($D$44-$J8)^2))/$D$3*2*PI()+$E$44),$O$2,$F$44) -> 1.92451966017489E-11+314169.218018307i | AX8: =IMPRODUCT(((SQRT(($C$45-$I8)^2+($D$45-$J8)^2))/$D$3*2*PI()+$E$45),$O$2,$F$45) -> 1.92452402470399E-11+314169.930508141i | AY8: =IMPRODUCT(((SQRT(($C$46-$I8)^2+($D$46-$J8)^2))/$D$3*2*PI()+$E$46),$O$2,$F$46) -> 1.92452854009528E-11+314170.667625553i | AZ8: =IMPRODUCT(((SQRT(($C$47-$I8)^2+($D$47-$J8)^2))/$D$3*2*PI()+$E$47),$O$2,$F$47) -> 1.9245332063477E-11+314171.429370369i | BA8: =IMPRODUCT(((SQRT(($C$48-$I8)^2+($D$48-$J8)^2))/$D$3*2*PI()+$E$48),$O$2,$F$48) -> 1.92453802346016E-11+314172.21574241i | BB8: =IMPRODUCT(((SQRT(($C$49-$I8)^2+($D$49-$J8)^2))/$D$3*2*PI()+$E$49),$O$2,$F$49) -> 1.92454299143151E-11+314173.026741492i | BC8: =IMPRODUCT(((SQRT(($C$50-$I8)^2+($D$50-$J8)^2))/$D$3*2*PI()+$E$50),$O$2,$F$50) -> 1.9245481102606E-11+314173.862367422i | BD8: =IMPRODUCT(((SQRT(($C$51-$I8)^2+($D$51-$J8)^2))/$D$3*2*PI()+$E$51),$O$2,$F$51) -> 1.92455337994623E-11+314174.722620006i | BE8: =IMPRODUCT(((SQRT(($C$52-$I8)^2+($D$52-$J8)^2))/$D$3*2*PI()+$E$52),$O$2,$F$52) -> 1.92455880048714E-11+314175.607499041i | BF8: =IMPRODUCT(((SQRT(($C$53-$I8)^2+($D$53-$J8)^2))/$D$3*2*PI()+$E$53),$O$2,$F$53) -> 1.92456437188206E-11+314176.517004318i | BG8: =IMPRODUCT(((SQRT(($C$54-$I8)^2+($D$54-$J8)^2))/$D$3*2*PI()+$E$54),$O$2,$F$54) -> 1.92457009412969E-11+314177.451135624i | BH8: =IMPRODUCT(((SQRT(($C$55-$I8)^2+($D$55-$J8)^2))/$D$3*2*PI()+$E$55),$O$2,$F$55) -> 1.92457596722868E-11+314178.40989274i | BI8: =IMPRODUCT(((SQRT(($C$56-$I8)^2+($D$56-$J8)^2))/$D$3*2*PI()+$E$56),$O$2,$F$56) -> 1.92458199117766E-11+314179.393275438i | BO8: =IMSUM(IMEXP(L8),IMEXP(M8),IMEXP(N8),IMEXP(O8),IMEXP(P8),IMEXP(Q8),IMEXP(R8),IMEXP(S8),IMEXP(T8),IMEXP(U8),IMEXP(V8),IMEXP(W8),IMEXP(X8),IMEXP(Y8),IMEXP(Z8),IMEXP(AA8),IMEXP(AB8),IMEXP(AC8),IMEXP(AD8),IMEXP(AE8),IMEXP(AF8),IMEXP(AG8),IMEXP(AH8),IMEXP(AI8),IMEXP(AJ8),IMEXP(AK8),IMEXP(AL8),IMEXP(AM8),IMEXP(AN8),IMEXP(AO8),IMEXP(AP8),IMEXP(AQ8),IMEXP(AR8),IMEXP(AS8),IMEXP(AT8),IMEXP(AU8),IMEXP(AV8),IMEXP(AW8),IMEXP(AX8),IMEXP(AY8),IMEXP(AZ8),IMEXP(BA8),IMEXP(BB8),IMEXP(BC8),IMEXP(BD8),IMEXP(BE8),IMEXP(BF8),IMEXP(BG8),IMEXP(BH8),IMEXP(BI8)) -> 13.203910486366+8.48809949052459i | BQ8: =(IMABS(BO8))^2 -> 246.3910851
B9: 3 | C9: 0 | D9: =D8-$A$8 -> -4 | E9: 0 | F9: 1 | H9: 3 | I9: =I8 -> 25000 | J9: =J8-$J$2 -> -100 | L9: 1.92447732141966E-11+314162.306406075i | M9: 1.92449473213505E-11+314165.148627411i | N9: 1.92447288134642E-11+314161.581583998i | O9: 1.92447088762088E-11+314161.25611723i | P9: 1.92446904477003E-11+314160.95528008i | Q9: 1.92446735279431E-11+314160.679072618i | R9: 1.9244658116941E-11+314160.42749491i | S9: 1.92446442146978E-11+314160.200547014i | T9: 1.92446318212168E-11+314159.998228984i | U9: 1.92446209365007E-11+314159.820540868i | V9: 1.92446115605522E-11+314159.667482707i | W9: 1.92446036933736E-11+314159.539054538i | X9: 1.92445973349665E-11+314159.43525639i | Y9: 1.92445924853326E-11+314159.356088288i | Z9: 1.9244589144473E-11+314159.30155025i | AA9: 1.92445873123885E-11+314159.27164229i | AB9: 1.92445869890794E-11+314159.266364415i | AC9: 1.92445881745459E-11+314159.285716625i | AD9: 1.92445908687877E-11+314159.329698916i | AE9: 1.92445950718042E-11+314159.398311278i | AF9: 1.92446007835943E-11+314159.491553695i | AG9: 1.92446080041568E-11+314159.609426144i | AH9: 1.92446167334899E-11+314159.751928598i | AI9: 1.92446269715915E-11+314159.919061024i | AJ9: 1.92446387184594E-11+314160.110823382i | AK9: 1.92446519740906E-11+314160.327215627i | AL9: 1.92446667384821E-11+314160.568237709i | AM9: 1.92446830116305E-11+314160.833889569i | AN9: 1.92447007935318E-11+314161.124171147i | AO9: 1.92447200841819E-11+314161.439082374i | AP9: 1.92447408835763E-11+314161.778623175i | AQ9: 1.92447631917101E-11+314162.142793471i | AR9: 1.9244787008578E-11+314162.531593176i | AS9: 1.92448123341744E-11+314162.945022199i | AT9: 1.92448391684934E-11+314163.383080442i | AU9: 1.92448675115287E-11+314163.845767803i | AV9: 1.92448973632735E-11+314164.333084172i | AW9: 1.9244928723721E-11+314164.845029436i | AX9: 1.92449615928636E-11+314165.381603473i | AY9: 1.92449959706937E-11+314165.942806158i | AZ9: 1.92450318572032E-11+314166.528637358i | BA9: 1.92450692523836E-11+314167.139096935i | BB9: 1.92451081562262E-11+314167.774184747i | BC9: 1.92451485687217E-11+314168.433900644i | BD9: 1.92451904898608E-11+314169.11824447i | BE9: 1.92452339196335E-11+314169.827216065i | BF9: 1.92452788580296E-11+314170.560815261i | BG9: 1.92453253050386E-11+314171.319041887i | BH9: 1.92453732606495E-11+314172.101895765i | BI9: 1.92454227248511E-11+314172.909376709i | BO9: 14.4123048054897+12.7279130740966i | BQ9: 369.714301
B10: 4 | C10: 0 | D10: -11 | E10: 0 | F10: 1 | H10: 4 | I10: 25000 | J10: -150 | L10: 1.92449810526012E-11+314165.699274977i | M10: 1.92452213571854E-11+314169.622139724i | N10: 1.92449150987906E-11+314164.622608548i | O10: 1.92448843849291E-11+314164.12121851i | P10: 1.92448551797732E-11+314163.644457416i | Q10: 1.92448274833299E-11+314163.192325379i | R10: 1.92448012956055E-11+314162.764822503i | S10: 1.92447766166063E-11+314162.361948891i | T10: 1.92447534463381E-11+314161.983704636i | U10: 1.92447317848063E-11+314161.630089827i | V10: 1.9244711632016E-11+314161.301104549i | W10: 1.92446929879719E-11+314160.996748877i | X10: 1.92446758526786E-11+314160.717022884i | Y10: 1.92446602261398E-11+314160.461926636i | Z10: 1.92446461083595E-11+314160.231460192i | AA10: 1.92446334993407E-11+314160.025623607i | AB10: 1.92446223990867E-11+314159.844416929i | AC10: 1.92446128075998E-11+314159.687840201i | AD10: 1.92446047248825E-11+314159.555893459i | AE10: 1.92445981509366E-11+314159.448576735i | AF10: 1.92445930857636E-11+314159.365890054i | AG10: 1.92445895293647E-11+314159.307833435i | AH10: 1.92445874817408E-11+314159.274406892i | AI10: 1.92445869428924E-11+314159.265610432i | AJ10: 1.92445879128196E-11+314159.281444059i | AK10: 1.92445903915221E-11+314159.321907768i | AL10: 1.92445943789993E-11+314159.387001549i | AM10: 1.92445998752505E-11+314159.476725388i | AN10: 1.92446068802741E-11+314159.591079262i | AO10: 1.92446153940687E-11+314159.730063147i | AP10: 1.92446254166321E-11+314159.893677007i | AQ10: 1.92446369479621E-11+314160.081920806i | AR10: 1.92446499880559E-11+314160.294794499i | AS10: 1.92446645369104E-11+314160.532298036i | AT10: 1.92446805945223E-11+314160.79443136i | AU10: 1.92446981608877E-11+314161.081194411i | AV10: 1.92447172360026E-11+314161.392587121i | AW10: 1.92447378198624E-11+314161.728609416i | AX10: 1.92447599124622E-11+314162.089261218i | AY10: 1.9244783513797E-11+314162.474542441i | AZ10: 1.92448086238612E-11+314162.884452996i | BA10: 1.92448352426488E-11+314163.318992786i | BB10: 1.92448633701535E-11+314163.778161708i | BC10: 1.92448930063689E-11+314164.261959654i | BD10: 1.92449241512878E-11+314164.770386511i | BE10: 1.9244956804903E-11+314165.30344216i | BF10: 1.92449909672068E-11+314165.861126474i | BG10: 1.92450266381911E-11+314166.443439323i | BH10: 1.92450638178477E-11+314167.05038057i | BI10: 1.92451025061676E-11+314167.681950071i | BO10: 11.4351723543131+10.3939468332978i | BQ10: 238.7972975
B11: 5 | C11: 0 | D11: -18 | E11: 0 | F11: 1 | H11: 5 | I11: 25000 | J11: -200 | L11: 1.92452658645473E-11+314170.34870248i | M11: 1.92455723636784E-11+314175.352163568i | N11: 1.92451783584498E-11+314168.920204617i | O11: 1.92451368683508E-11+314168.242897326i | P11: 1.9245096886898E-11+314167.59021801i | Q11: 1.92450584141008E-11+314166.962166822i | R11: 1.92450214499684E-11+314166.358743909i | S11: 1.92449859945093E-11+314165.779949414i | T11: 1.92449520477319E-11+314165.225783472i | U11: 1.92449196096443E-11+314164.696246215i | V11: 1.9244888680254E-11+314164.191337766i | W11: 1.92448592595684E-11+314163.711058245i | X11: 1.92448313475942E-11+314163.255407764i | Y11: 1.92448049443382E-11+314162.824386431i | Z11: 1.92447800498065E-11+314162.417994346i | AA11: 1.92447566640049E-11+314162.036231606i | AB11: 1.9244734786939E-11+314161.6790983i | AC11: 1.92447144186139E-11+314161.346594512i | AD11: 1.92446955590344E-11+314161.038720321i | AE11: 1.9244678208205E-11+314160.755475799i | AF11: 1.92446623661296E-11+314160.496861011i | AG11: 1.92446480328121E-11+314160.262876021i | AH11: 1.92446352082559E-11+314160.053520881i | AI11: 1.92446238924638E-11+314159.868795642i | AJ11: 1.92446140854386E-11+314159.708700347i | AK11: 1.92446057871827E-11+314159.573235034i | AL11: 1.92445989976979E-11+314159.462399734i | AM11: 1.92445937169858E-11+314159.376194474i | AN11: 1.92445899450477E-11+314159.314619274i | AO11: 1.92445876818845E-11+314159.277674148i | AP11: 1.92445869274967E-11+314159.265359105i | AQ11: 1.92445876818845E-11+314159.277674148i | AR11: 1.92445899450477E-11+314159.314619274i | AS11: 1.92445937169858E-11+314159.376194474i | AT11: 1.92445989976979E-11+314159.462399734i | AU11: 1.92446057871827E-11+314159.573235034i | AV11: 1.92446140854386E-11+314159.708700347i | AW11: 1.92446238924638E-11+314159.868795642i | AX11: 1.92446352082559E-11+314160.053520881i | AY11: 1.92446480328121E-11+314160.262876021i | AZ11: 1.92446623661296E-11+314160.496861011i | BA11: 1.9244678208205E-11+314160.755475799i | BB11: 1.92446955590344E-11+314161.038720321i | BC11: 1.92447144186139E-11+314161.346594512i | BD11: 1.9244734786939E-11+314161.6790983i | BE11: 1.92447566640049E-11+314162.036231606i | BF11: 1.92447800498065E-11+314162.417994346i | BG11: 1.92448049443382E-11+314162.824386431i | BH11: 1.92448313475942E-11+314163.255407764i | BI11: 1.92448592595684E-11+314163.711058245i | BO11: 7.68082327811519+11.4329882953551i | BQ11: 189.7082676
B12: 6 | C12: 0 | D12: -25 | E12: 0 | F12: 1 | H12: 6 | I12: 25000 | J12: -250 | L12: 1.92456276466175E-11+314176.254632798i | M12: 1.92460003366181E-11+314182.338630197i | N12: 1.92455185892831E-11+314174.474320642i | O12: 1.92454663234443E-11+314173.621104224i | P12: 1.92454155661743E-11+314172.792514516i | Q12: 1.9245366317485E-11+314171.988551713i | R12: 1.92453185773879E-11+314171.209216003i | S12: 1.92452723458944E-11+314170.45450757i | T12: 1.92452276230153E-11+314169.724426592i | U12: 1.92451844087611E-11+314169.01897324i | V12: 1.92451427031419E-11+314168.338147679i | W12: 1.92451025061676E-11+314167.681950071i | X12: 1.92450638178477E-11+314167.05038057i | Y12: 1.92450266381911E-11+314166.443439323i | Z12: 1.92449909672068E-11+314165.861126474i | AA12: 1.9244956804903E-11+314165.30344216i | AB12: 1.92449241512878E-11+314164.770386511i | AC12: 1.92448930063689E-11+314164.261959654i | AD12: 1.92448633701535E-11+314163.778161708i | AE12: 1.92448352426488E-11+314163.318992786i | AF12: 1.92448086238612E-11+314162.884452996i | AG12: 1.9244783513797E-11+314162.474542441i | AH12: 1.92447599124622E-11+314162.089261218i | AI12: 1.92447378198624E-11+314161.728609416i | AJ12: 1.92447172360026E-11+314161.392587121i | AK12: 1.92446981608877E-11+314161.081194411i | AL12: 1.92446805945223E-11+314160.79443136i | AM12: 1.92446645369104E-11+314160.532298036i | AN12: 1.92446499880559E-11+314160.294794499i | AO12: 1.92446369479621E-11+314160.081920806i | AP12: 1.92446254166321E-11+314159.893677007i | AQ12: 1.92446153940687E-11+314159.730063147i | AR12: 1.92446068802741E-11+314159.591079262i | AS12: 1.92445998752505E-11+314159.476725388i | AT12: 1.92445943789993E-11+314159.387001549i | AU12: 1.92445903915221E-11+314159.321907768i | AV12: 1.92445879128196E-11+314159.281444059i | AW12: 1.92445869428924E-11+314159.265610432i | AX12: 1.92445874817408E-11+314159.274406892i | AY12: 1.92445895293647E-11+314159.307833435i | AZ12: 1.92445930857636E-11+314159.365890054i | BA12: 1.92445981509366E-11+314159.448576735i | BB12: 1.92446047248825E-11+314159.555893459i | BC12: 1.92446128075998E-11+314159.687840201i | BD12: 1.92446223990867E-11+314159.844416929i | BE12: 1.92446334993407E-11+314160.025623607i | BF12: 1.92446461083595E-11+314160.231460192i | BG12: 1.92446602261398E-11+314160.461926636i | BH12: 1.92446758526786E-11+314160.717022884i | BI12: 1.92446929879719E-11+314160.996748877i | BO12: 13.6611642919435+10.9744053043107i | BQ12: 307.0649816
B13: 7 | C13: 0 | D13: -32 | E13: 0 | F13: 1 | H13: 7 | I13: 25000 | J13: -300 | L13: 1.92460663944712E-11+314183.416995073i | M13: 1.92465052708703E-11+314190.581455793i | N13: 1.92459357872083E-11+314181.284889982i | O13: =IMPRODUCT(((SQRT(($C$10-$I13)^2+($D$10-$J13)^2))/$D$3*2*PI()+$E$10),$O$2,$F$10) -> 1.92458727462568E-11+314180.255774674i | P13: 1.92458112137786E-11+314179.251284516i | Q13: 1.9245751189788E-11+314178.271419743i | R13: 1.92456926742992E-11+314177.316180587i | S13: 1.92456356673259E-11+314176.385567272i | T13: 1.92455801688816E-11+314175.479580016i | U13: 1.92455261789793E-11+314174.598219033i | V13: 1.92454736976316E-11+314173.74148453i | W13: 1.92454227248511E-11+314172.909376709i | X13: 1.92453732606495E-11+314172.101895765i | Y13: 1.92453253050386E-11+314171.319041887i | Z13: 1.92452788580296E-11+314170.560815261i | AA13: 1.92452339196335E-11+314169.827216065i | AB13: 1.92451904898608E-11+314169.11824447i | AC13: 1.92451485687217E-11+314168.433900644i | AD13: 1.92451081562262E-11+314167.774184747i | AE13: 1.92450692523836E-11+314167.139096935i | AF13: 1.92450318572032E-11+314166.528637358i | AG13: 1.92449959706937E-11+314165.942806158i | AH13: 1.92449615928636E-11+314165.381603473i | AI13: 1.9244928723721E-11+314164.845029436i | AJ13: 1.92448973632735E-11+314164.333084172i | AK13: 1.92448675115287E-11+314163.845767803i | AL13: 1.92448391684934E-11+314163.383080442i | AM13: 1.92448123341744E-11+314162.945022199i | AN13: 1.9244787008578E-11+314162.531593176i | AO13: 1.92447631917101E-11+314162.142793471i | AP13: 1.92447408835763E-11+314161.778623175i | AQ13: 1.92447200841819E-11+314161.439082374i | AR13: 1.92447007935318E-11+314161.124171147i | AS13: 1.92446830116305E-11+314160.833889569i | AT13: 1.92446667384821E-11+314160.568237709i | AU13: 1.92446519740906E-11+314160.327215627i | AV13: 1.92446387184594E-11+314160.110823382i | AW13: 1.92446269715915E-11+314159.919061024i | AX13: 1.92446167334899E-11+314159.751928598i | AY13: 1.92446080041568E-11+314159.609426144i | AZ13: 1.92446007835943E-11+314159.491553695i | BA13: 1.92445950718042E-11+314159.398311278i | BB13: 1.92445908687877E-11+314159.329698916i | BC13: 1.92445881745459E-11+314159.285716625i | BD13: 1.92445869890794E-11+314159.266364415i | BE13: 1.92445873123885E-11+314159.27164229i | BF13: 1.9244589144473E-11+314159.30155025i | BG13: 1.92445924853326E-11+314159.356088288i | BH13: 1.92445973349665E-11+314159.43525639i | BI13: 1.92446036933736E-11+314159.539054538i | BO13: 11.8529352960692+6.14485572436715i | BQ13: 178.251327
B14: 8 | C14: 0 | D14: -39 | E14: 0 | F14: 1 | H14: 8 | I14: 25000 | J14: -350 | L14: 1.92465821028448E-11+314191.835703378i | M14: 1.92470871603778E-11+314200.080541478i | N14: 1.92464299472203E-11+314189.351830931i | O14: 1.92463561319124E-11+314188.146829078i | P14: 1.92462838249641E-11+314186.966450521i | Q14: 1.92462130263923E-11+314185.810695535i | R14: 1.92461437362138E-11+314184.679564392i | S14: 1.92460759544447E-11+314183.573057359i | T14: 1.9246009681101E-11+314182.491174696i | U14: 1.92459449161983E-11+314181.433916657i | V14: 1.92458816597519E-11+314180.40128349i | W14: 1.92458199117766E-11+314179.393275438i | X14: 1.92457596722868E-11+314178.40989274i | Y14: 1.92457009412969E-11+314177.451135624i | Z14: 1.92456437188206E-11+314176.517004318i | AA14: 1.92455880048714E-11+314175.607499041i | AB14: 1.92455337994623E-11+314174.722620006i | AC14: 1.9245481102606E-11+314173.862367422i | AD14: 1.92454299143151E-11+314173.026741492i | AE14: 1.92453802346016E-11+314172.21574241i | AF14: 1.9245332063477E-11+314171.429370369i | AG14: 1.92452854009528E-11+314170.667625553i | AH14: 1.92452402470399E-11+314169.930508141i | AI14: 1.92451966017489E-11+314169.218018307i | AJ14: 1.92451544650902E-11+314168.530156219i | AK14: 1.92451138370735E-11+314167.866922037i | AL14: 1.92450747177085E-11+314167.228315918i | AM14: 1.92450371070044E-11+314166.614338012i | AN14: 1.924500100497E-11+314166.024988464i | AO14: 1.92449664116137E-11+314165.460267412i | AP14: 1.92449333269439E-11+314164.920174989i | AQ14: 1.92449017509681E-11+314164.404711321i | AR14: 1.92448716836939E-11+314163.913876531i | AS14: 1.92448431251282E-11+314163.447670734i | AT14: 1.9244816075278E-11+314163.006094039i | AU14: 1.92447905341494E-11+314162.58914655i | AV14: 1.92447665017485E-11+314162.196828365i | AW14: 1.92447439780809E-11+314161.829139577i | AX14: 1.9244722963152E-11+314161.486080271i | AY14: 1.92447034569667E-11+314161.167650529i | AZ14: 1.92446854595296E-11+314160.873850426i | BA14: 1.92446689708448E-11+314160.60468003i | BB14: 1.92446539909164E-11+314160.360139405i | BC14: 1.92446405197478E-11+314160.140228609i | BD14: 1.92446285573421E-11+314159.944947693i | BE14: 1.92446181037023E-11+314159.774296703i | BF14: 1.92446091588307E-11+314159.628275679i | BG14: 1.92446017227295E-11+314159.506884655i | BH14: 1.92445957954003E-11+314159.410123661i | BI14: 1.92445913768447E-11+314159.337992719i | BO14: 2.5437335127308+5.91578978456371i | BQ14: 41.46714896
B15: 9 | C15: 0 | D15: -46 | E15: 0 | F15: 1 | H15: 9 | I15: 25000 | J15: -400 | L15: 1.92471747655522E-11+314201.510656728i | M15: 1.92477459981612E-11+314210.835773315i | N15: 1.92470010633911E-11+314198.675046717i | O15: 1.92469164746123E-11+314197.294172776i | P15: 1.92468333940613E-11+314195.937919978i | Q15: 1.92467518217576E-11+314194.606288642i | R15: 1.92466717577205E-11+314193.299279083i | S15: 1.92465932019687E-11+314192.016891606i | T15: 1.92465161545207E-11+314190.759126513i | U15: 1.92464406153946E-11+314189.525984101i | V15: 1.92463665846082E-11+314188.317464658i | W15: 1.92462940621789E-11+314187.13356847i | X15: 1.92462230481238E-11+314185.974295814i | Y15: 1.92461535424595E-11+314184.839646963i | Z15: 1.92460855452023E-11+314183.729622184i | AA15: 1.92460190563683E-11+314182.644221738i | AB15: 1.92459540759732E-11+314181.58344588i | AC15: 1.92458906040321E-11+314180.547294859i | AD15: 1.924582864056E-11+314179.535768919i | AE15: 1.92457681855714E-11+314178.548868299i | AF15: 1.92457092390807E-11+314177.586593229i | AG15: 1.92456518011016E-11+314176.648943937i | AH15: 1.92455958716477E-11+314175.735920642i | AI15: 1.9245541450732E-11+314174.84752356i | AJ15: 1.92454885383675E-11+314173.983752899i | AK15: 1.92454371345665E-11+314173.144608863i | AL15: 1.92453872393412E-11+314172.330091648i | AM15: 1.92453388527032E-11+314171.540201447i | AN15: 1.9245291974664E-11+314170.774938445i | AO15: 1.92452466052345E-11+314170.034302822i | AP15: 1.92452027444255E-11+314169.318294752i | AQ15: 1.92451603922472E-11+314168.626914404i | AR15: 1.92451195487097E-11+314167.96016194i | AS15: 1.92450802138225E-11+314167.318037517i | AT15: 1.92450423875948E-11+314166.700541286i | AU15: 1.92450060700356E-11+314166.107673393i | AV15: 1.92449712611534E-11+314165.539433976i | AW15: 1.92449379609564E-11+314164.995823169i | AX15: 1.92449061694525E-11+314164.4768411i | AY15: 1.9244875886649E-11+314163.982487892i | AZ15: 1.92448471125532E-11+314163.51276366i | BA15: 1.92448198471717E-11+314163.067668516i | BB15: 1.92447940905111E-11+314162.647202562i | BC15: 1.92447698425773E-11+314162.2513659i | BD15: 1.92447471033761E-11+314161.880158621i | BE15: 1.92447258729128E-11+314161.533580813i | BF15: 1.92447061511924E-11+314161.211632557i | BG15: 1.92446879382195E-11+314160.91431393i | BH15: 1.92446712339985E-11+314160.641625i | BI15: 1.92446560385332E-11+314160.393565833i | BO15: -1.92357439090847+3.35326099267191i | BQ15: 14.94449772
B16: 10 | C16: 0 | D16: -53 | E16: 0 | F16: 1 | H16: 10 | I16: 25000 | J16: -450 | L16: 1.92478443754848E-11+314212.441739077i | M16: 1.9248481776319E-11+314222.847022318i | N16: 1.92476491288704E-11+314209.254425514i | O16: 1.92475537676352E-11+314207.697696045i | P16: 1.9247459914478E-11+314206.165585274i | Q16: 1.92473675694209E-11+314204.658093561i | R16: 1.92472767324855E-11+314203.175221261i | S16: 1.92471874036933E-11+314201.716968722i | T16: 1.92470995830652E-11+314200.283336288i | U16: 1.92470132706218E-11+314198.874324294i | V16: 1.92469284663835E-11+314197.489933072i | W16: 1.92468451703702E-11+314196.130162948i | X16: 1.92467633826015E-11+314194.795014242i | Y16: 1.92466831030965E-11+314193.484487267i | Z16: 1.92466043318742E-11+314192.198582331i | AA16: 1.92465270689532E-11+314190.937299736i | AB16: 1.92464513143514E-11+314189.70063978i | AC16: 1.92463770680869E-11+314188.488602753i | AD16: 1.92463043301769E-11+314187.30118894i | AE16: 1.92462331006387E-11+314186.13839862i | AF16: 1.9246163379489E-11+314185.000232066i | AG16: 1.92460951667441E-11+314183.886689546i | AH16: 1.92460284624202E-11+314182.797771323i | AI16: 1.92459632665328E-11+314181.733477651i | AJ16: 1.92458995790973E-11+314180.693808781i | AK16: 1.92458374001287E-11+314179.678764958i | AL16: 1.92457767296417E-11+314178.68834642i | AM16: 1.92457175676504E-11+314177.722553401i | AN16: 1.92456599141688E-11+314176.781386127i | AO16: 1.92456037692105E-11+314175.864844819i | AP16: 1.92455491327886E-11+314174.972929693i | AQ16: 1.9245496004916E-11+314174.10564096i | AR16: 1.92454443856052E-11+314173.262978822i | AS16: 1.92453942748683E-11+314172.444943478i | AT16: 1.92453456727171E-11+314171.651535121i | AU16: 1.92452985791631E-11+314170.882753936i | AV16: 1.92452529942173E-11+314170.138600105i | AW16: 1.92452089178904E-11+314169.419073803i | AX16: 1.92451663501929E-11+314168.724175199i | AY16: 1.92451252911346E-11+314168.053904456i | AZ16: 1.92450857407254E-11+314167.408261732i | BA16: 1.92450476989743E-11+314166.787247179i | BB16: 1.92450111658906E-11+314166.190860943i | BC16: 1.92449761414826E-11+314165.619103164i | BD16: 1.92449426257586E-11+314165.071973977i | BE16: 1.92449106187266E-11+314164.549473509i | BF16: 1.92448801203941E-11+314164.051601885i | BG16: 1.92448511307682E-11+314163.578359221i | BH16: 1.92448236498557E-11+314163.129745629i | BI16: 1.92447976776631E-11+314162.705761214i | BO16: 0.0139883205304338-2.12793391467455i | BQ16: 4.528298418
B17: 11 | C17: 0 | D17: -60 | E17: 0 | F17: 1 | H17: 11 | I17: 25000 | J17: -500 | L17: 1.92485909246121E-11+314224.628819334i | M17: 1.92492944860286E-11+314236.114144459i | N17: 1.92483741358859E-11+314221.08984044i | O17: 1.92482680033379E-11+314219.357274113i | P17: 1.92481633787001E-11+314217.649323743i | Q17: 1.9248060261997E-11+314215.965989732i | R17: 1.92479586532528E-11+314214.307272476i | S17: 1.92478585524915E-11+314212.673172365i | T17: 1.92477599597365E-11+314211.063689782i | U17: 1.92476628750111E-11+314209.478825106i | V17: 1.9247567298338E-11+314207.91857871i | W17: 1.92474732297398E-11+314206.38295096i | X17: 1.92473806692384E-11+314204.871942217i | Y17: 1.92472896168558E-11+314203.385552837i | Z17: 1.92472000726132E-11+314201.923783168i | AA17: 1.92471120365318E-11+314200.486633555i | AB17: 1.92470255086322E-11+314199.074104335i | AC17: 1.92469404889348E-11+314197.68619584i | AD17: 1.92468569774596E-11+314196.322908397i | AE17: 1.92467749742262E-11+314194.984242326i | AF17: 1.92466944792538E-11+314193.670197941i | AG17: 1.92466154925614E-11+314192.380775553i | AH17: 1.92465380141676E-11+314191.115975463i | AI17: 1.92464620440906E-11+314189.875797969i | AJ17: 1.92463875823483E-11+314188.660243363i | AK17: 1.9246314628958E-11+314187.46931193i | AL17: 1.92462431839371E-11+314186.303003951i | AM17: 1.92461732473023E-11+314185.1613197i | AN17: 1.924610481907E-11+314184.044259445i | AO17: 1.92460378992564E-11+314182.951823449i | AP17: 1.92459724878771E-11+314181.884011969i | AQ17: 1.92459085849476E-11+314180.840825255i | AR17: 1.92458461904829E-11+314179.822263553i | AS17: 1.92457853044976E-11+314178.828327103i | AT17: 1.9245725927006E-11+314177.859016139i | AU17: 1.92456680580222E-11+314176.914330887i | AV17: 1.92456116975597E-11+314175.994271571i | AW17: 1.92455568456318E-11+314175.098838407i | AX17: 1.92455035022514E-11+314174.228031604i | AY17: 1.9245451667431E-11+314173.381851369i | AZ17: 1.92454013411829E-11+314172.5602979i | BA17: 1.92453525235188E-11+314171.76337139i | BB17: 1.92453052144502E-11+314170.991072027i | BC17: 1.92452594139882E-11+314170.243399992i | BD17: 1.92452151221437E-11+314169.520355461i | BE17: 1.92451723389271E-11+314168.821938604i | BF17: 1.92451310643483E-11+314168.148149585i | BG17: 1.92450912984172E-11+314167.498988564i | BH17: 1.9245053041143E-11+314166.874455691i | BI17: 1.92450162925348E-11+314166.274551115i | BO17: -1.4127507678239+2.54904959971262i | BQ17: 8.493518594
B18: 12 | C18: 0 | D18: -67 | E18: 0 | F18: 1 | H18: 12 | I18: 25000 | J18: -550 | L18: 1.92494144039824E-11+314238.071751364i | M18: 1.92501841175461E-11+314250.636980674i | N18: 1.92491760757437E-11+314234.181149573i | O18: 1.92490591731556E-11+314232.272767162i | P18: 1.92489437782917E-11+314230.388997673i | Q18: 1.92488298911791E-11+314228.529841549i | R18: 1.92487175118445E-11+314226.695299228i | S18: 1.92486066403145E-11+314224.885371139i | T18: 1.9248497276615E-11+314223.100057709i | U18: 1.92483894207717E-11+314221.339359358i | V18: 1.92482830728101E-11+314219.603276498i | W18: 1.9248178232755E-11+314217.891809538i | X18: 1.92480749006311E-11+314216.20495888i | Y18: 1.92479730764628E-11+314214.542724921i | Z18: 1.92478727602739E-11+314212.905108051i | AA18: 1.9247773952088E-11+314211.292108655i | AB18: 1.92476766519284E-11+314209.703727113i | AC18: 1.92475808598179E-11+314208.139963797i | AD18: 1.9247486575779E-11+314206.600819075i | AE18: 1.92473937998339E-11+314205.08629331i | AF18: 1.92473025320044E-11+314203.596386856i | AG18: 1.9247212772312E-11+314202.131100064i | AH18: 1.92471245207777E-11+314200.690433279i | AI18: 1.92470377774223E-11+314199.27438684i | AJ18: 1.92469525422662E-11+314197.882961078i | AK18: 1.92468688153295E-11+314196.516156322i | AL18: 1.92467865966317E-11+314195.173972893i | AM18: 1.92467058861923E-11+314193.856411106i | AN18: 1.92466266840303E-11+314192.56347127i | AO18: 1.92465489901641E-11+314191.295153691i | AP18: 1.92464728046122E-11+314190.051458665i | AQ18: 1.92463981273923E-11+314188.832386486i | AR18: 1.92463249585222E-11+314187.63793744i | AS18: 1.92462532980189E-11+314186.468111808i | AT18: 1.92461831458993E-11+314185.322909865i | AU18: 1.924611450218E-11+314184.20233188i | AV18: 1.9246047366877E-11+314183.106378117i | AW18: 1.92459817400062E-11+314182.035048833i | AX18: 1.92459176215829E-11+314180.98834428i | AY18: 1.92458550116223E-11+314179.966264705i | AZ18: 1.9245793910139E-11+314178.968810347i | BA18: 1.92457343171475E-11+314177.995981442i | BB18: 1.92456762326618E-11+314177.047778218i | BC18: 1.92456196566954E-11+314176.124200898i | BD18: 1.92455645892618E-11+314175.225249698i | BE18: 1.92455110303738E-11+314174.350924832i | BF18: 1.92454589800441E-11+314173.501226503i | BG18: 1.92454084382849E-11+314172.676154913i | BH18: 1.9245359405108E-11+314171.875710254i | BI18: 1.92453118805251E-11+314171.099892716i | BO18: -0.411879508043149-0.514542586743531i | BQ18: 0.4343988027
B19: 13 | C19: 0 | D19: -74 | E19: 0 | F19: 1 | H19: 13 | I19: 25000 | J19: -600 | L19: 1.92503148037231E-11+314252.770374001i | M19: 1.92511506602075E-11+314266.415356878i | N19: 1.92500549388291E-11+314248.528195954i | O19: 1.92499272676023E-11+314246.444020338i | P19: 1.92498011038957E-11+314244.384454315i | Q19: 1.9249676447739E-11+314242.349498368i | R19: 1.92495532991615E-11+314240.339152976i | S19: 1.9249431658192E-11+314238.353418611i | T19: 1.92493115248593E-11+314236.39229574i | U19: 1.92491928991914E-11+314234.455784824i | V19: 1.92490757812163E-11+314232.543886317i | W19: 1.92489601709616E-11+314230.656600669i | X19: 1.92488460684543E-11+314228.793928324i | Y19: 1.92487334737212E-11+314226.955869718i | Z19: 1.92486223867889E-11+314225.142425285i | AA19: 1.92485128076835E-11+314223.353595449i | AB19: 1.92484047364306E-11+314221.589380632i | AC19: 1.92482981730558E-11+314219.849781249i | AD19: 1.9248193117584E-11+314218.134797707i | AE19: 1.92480895700399E-11+314216.44443041i | AF19: 1.92479875304478E-11+314214.778679756i | AG19: 1.92478869988318E-11+314213.137546135i | AH19: 1.92477879752155E-11+314211.521029934i | AI19: 1.92476904596222E-11+314209.929131532i | AJ19: 1.92475944520747E-11+314208.361851304i | AK19: 1.92474999525956E-11+314206.819189618i | AL19: 1.92474069612072E-11+314205.301146837i | AM19: 1.92473154779313E-11+314203.807723317i | AN19: 1.92472255027895E-11+314202.338919409i | AO19: 1.92471370358027E-11+314200.89473546i | AP19: 1.9247050076992E-11+314199.475171808i | AQ19: 1.92469646263776E-11+314198.080228786i | AR19: 1.92468806839797E-11+314196.709906724i | AS19: 1.92467982498181E-11+314195.364205943i | AT19: 1.9246717323912E-11+314194.043126759i | AU19: 1.92466379062806E-11+314192.746669483i | AV19: 1.92465599969425E-11+314191.47483442i | AW19: 1.9246483595916E-11+314190.227621869i | AX19: 1.92464087032191E-11+314189.005032122i | AY19: 1.92463353188693E-11+314187.807065469i | AZ19: 1.9246263442884E-11+314186.633722189i | BA19: 1.92461930752801E-11+314185.485002559i | BB19: 1.9246124216074E-11+314184.36090685i | BC19: 1.9246056865282E-11+314183.261435325i | BD19: 1.92459910229199E-11+314182.186588243i | BE19: 1.92459266890031E-11+314181.136365856i | BF19: 1.9245863863547E-11+314180.110768412i | BG19: 1.92458025465661E-11+314179.109796152i | BH19: 1.92457427380749E-11+314178.133449311i | BI19: 1.92456844380874E-11+314177.181728118i | BO19: 3.19661685365654+0.214653314605428i | BQ19: 10.26443535
B20: 14 | C20: 0 | D20: -81 | E20: 0 | F20: 1 | H20: 14 | I20: 25000 | J20: -650 | L20: 1.92512921130412E-11+314268.724511057i | M20: 1.92521941024288E-11+314283.449083969i | N20: 1.92510107146066E-11+314264.1308076i | O20: 1.92508722762714E-11+314261.870863761i | P20: 1.92507353452345E-11+314259.63552589i | Q20: 1.9250599921528E-11+314257.424794514i | R20: 1.92504660051837E-11+314255.23867015i | S20: 1.92503335962331E-11+314253.077153314i | T20: 1.92502026947072E-11+314250.940244512i | U20: 1.92500733006369E-11+314248.827944246i | V20: 1.92499454140525E-11+314246.740253013i | W20: 1.92498190349841E-11+314244.677171304i | X20: 1.92496941634613E-11+314242.638699603i | Y20: 1.92495707995135E-11+314240.624838388i | Z20: 1.92494489431697E-11+314238.635588134i | AA20: 1.92493285944586E-11+314236.670949307i | AB20: 1.92492097534083E-11+314234.730922369i | AC20: 1.92490924200469E-11+314232.815507776i | AD20: 1.92489765944018E-11+314230.924705978i | AE20: 1.92488622765003E-11+314229.05851742i | AF20: 1.92487494663694E-11+314227.216942539i | AG20: 1.92486381640354E-11+314225.399981769i | AH20: 1.92485283695245E-11+314223.607635536i | AI20: 1.92484200828626E-11+314221.839904263i | AJ20: 1.9248313304075E-11+314220.096788363i | AK20: 1.9248208033187E-11+314218.378288248i | AL20: 1.92481042702231E-11+314216.68440432i | AM20: 1.92480020152079E-11+314215.015136979i | AN20: 1.92479012681653E-11+314213.370486615i | AO20: 1.9247802029119E-11+314211.750453616i | AP20: 1.92477042980924E-11+314210.155038363i | AQ20: 1.92476080751084E-11+314208.58424123i | AR20: 1.92475133601896E-11+314207.038062587i | AS20: 1.92474201533584E-11+314205.516502798i | AT20: 1.92473284546365E-11+314204.019562219i | AU20: 1.92472382640456E-11+314202.547241203i | AV20: 1.92471495816069E-11+314201.099540095i | AW20: 1.92470624073411E-11+314199.676459237i | AX20: 1.92469767412689E-11+314198.277998963i | AY20: 1.92468925834103E-11+314196.904159601i | AZ20: 1.92468099337852E-11+314195.554941474i | BA20: 1.92467287924129E-11+314194.2303449i | BB20: 1.92466491593125E-11+314192.93037019i | BC20: 1.92465710345028E-11+314191.655017649i | BD20: 1.92464944180021E-11+314190.404287578i | BE20: 1.92464193098284E-11+314189.178180271i | BF20: 1.92463457099994E-11+314187.976696015i | BG20: 1.92462736185324E-11+314186.799835094i | BH20: 1.92462030354444E-11+314185.647597783i | BI20: 1.92461339607519E-11+314184.519984354i | BO20: -0.771770115619521-0.039277402996923i | BQ20: 0.5971718257
B21: 15 | C21: 0 | D21: -88 | E21: 0 | F21: 1 | H21: 15 | I21: 25000 | J21: -700 | L21: 1.92523463202243E-11+314285.933971328i | M21: 1.92533144317074E-11+314301.737957846i | N21: 1.92520433916212E-11+314280.988797511i | O21: 1.92518941878368E-11+314278.553112532i | P21: 1.92517464911106E-11+314276.142029604i | Q21: 1.92516003014773E-11+314273.755549293i | R21: 1.92514556189712E-11+314271.393672159i | S21: 1.92513124436263E-11+314269.056398757i | T21: 1.92511707754764E-11+314266.743729636i | U21: 1.92510306145545E-11+314264.45566534i | V21: 1.92508919608936E-11+314262.192206405i | W21: 1.92507548145264E-11+314259.953353364i | X21: 1.92506191754851E-11+314257.739106742i | Y21: 1.92504850438014E-11+314255.549467059i | Z21: 1.92503524195069E-11+314253.384434831i | AA21: 1.92502213026327E-11+314251.244010564i | AB21: 1.92500916932097E-11+314249.128194763i | AC21: 1.92499635912683E-11+314247.036987924i | AD21: 1.92498369968387E-11+314244.970390539i | AE21: 1.92497119099504E-11+314242.928403092i | AF21: 1.9249588330633E-11+314240.911026065i | AG21: 1.92494662589155E-11+314238.91825993i | AH21: 1.92493456948265E-11+314236.950105157i | AI21: 1.92492266383944E-11+314235.006562207i | AJ21: 1.92491090896471E-11+314233.087631537i | AK21: 1.92489930486123E-11+314231.193313598i | AL21: 1.92488785153173E-11+314229.323608835i | AM21: 1.92487654897889E-11+314227.478517688i | AN21: 1.92486539720537E-11+314225.658040591i | AO21: 1.92485439621379E-11+314223.86217797i | AP21: 1.92484354600674E-11+314222.090930248i | AQ21: 1.92483284658677E-11+314220.344297841i | AR21: 1.92482229795639E-11+314218.62228116i | AS21: 1.92481190011809E-11+314216.92488061i | AT21: 1.92480165307429E-11+314215.252096589i | AU21: 1.92479155682742E-11+314213.60392949i | AV21: 1.92478161137985E-11+314211.980379702i | AW21: 1.9247718167339E-11+314210.381447605i | AX21: 1.9247621728919E-11+314208.807133575i | AY21: 1.9247526798561E-11+314207.257437982i | AZ21: 1.92474333762873E-11+314205.732361192i | BA21: 1.92473414621199E-11+314204.231903561i | BB21: 1.92472510560804E-11+314202.756065443i | BC21: 1.924716215819E-11+314201.304847185i | BD21: 1.92470747684698E-11+314199.878249128i | BE21: 1.92469888869401E-11+314198.476271607i | BF21: 1.92469045136212E-11+314197.098914952i | BG21: 1.92468216485329E-11+314195.746179486i | BH21: 1.92467402916947E-11+314194.418065528i | BI21: 1.92466604431258E-11+314193.11457339i | BO21: -0.954867681942902+0.264717691181332i | BQ21: 0.981847746
B22: 16 | C22: 0 | D22: -95 | E22: 0 | F22: 1 | H22: 16 | I22: 25000 | J22: -750 | L22: 1.92534774126408E-11+314304.398548613i | M22: 1.92545116346221E-11+314321.281759414i | N22: 1.92531529574987E-11+314299.101963685i | O22: 1.92529929900527E-11+314296.490566749i | P22: 1.92528345294069E-11+314293.903767652i | Q22: 1.92526775755985E-11+314291.341567002i | R22: 1.92525221286643E-11+314288.803965399i | S22: 1.92523681886409E-11+314286.290963439i | T22: 1.92522157555645E-11+314283.802561714i | U22: 1.92520648294707E-11+314281.338760806i | V22: 1.92519154103951E-11+314278.899561295i | W22: 1.92517674983727E-11+314276.484963753i | X22: 1.92516210934383E-11+314274.094968747i | Y22: 1.92514761956262E-11+314271.72957684i | Z22: 1.92513328049706E-11+314269.388788585i | AA22: 1.9251190921505E-11+314267.072604534i | AB22: 1.92510505452628E-11+314264.78102523i | AC22: 1.9250911676277E-11+314262.514051211i | AD22: 1.92507743145801E-11+314260.271683009i | AE22: 1.92506384602045E-11+314258.053921153i | AF22: 1.92505041131821E-11+314255.860766161i | AG22: 1.92503712735443E-11+314253.692218551i | AH22: 1.92502399413225E-11+314251.54827883i | AI22: 1.92501101165475E-11+314249.428947503i | AJ22: 1.92499817992498E-11+314247.334225068i | AK22: 1.92498549894594E-11+314245.264112017i | AL22: 1.92497296872063E-11+314243.218608835i | AM22: 1.92496058925199E-11+314241.197716005i | AN22: 1.92494836054291E-11+314239.201433999i | AO22: 1.92493628259629E-11+314237.229763289i | AP22: 1.92492435541495E-11+314235.282704336i | AQ22: 1.9249125790017E-11+314233.360257598i | AR22: 1.9249009533593E-11+314231.462423528i | AS22: 1.92488947849049E-11+314229.58920257i | AT22: 1.92487815439797E-11+314227.740595165i | AU22: 1.92486698108439E-11+314225.916601748i | AV22: 1.92485595855237E-11+314224.117222748i | AW22: 1.92484508680452E-11+314222.342458586i | AX22: 1.92483436584338E-11+314220.592309681i | AY22: 1.92482379567148E-11+314218.866776443i | AZ22: 1.9248133762913E-11+314217.165859278i | BA22: 1.92480310770528E-11+314215.489558585i | BB22: 1.92479298991585E-11+314213.83787476i | BC22: 1.92478302292537E-11+314212.210808189i | BD22: 1.9247732067362E-11+314210.608359256i | BE22: 1.92476354135063E-11+314209.030528336i | BF22: 1.92475402677095E-11+314207.477315802i | BG22: 1.92474466299938E-11+314205.948722017i | BH22: 1.92473545003813E-11+314204.444747342i | BI22: 1.92472638788937E-11+314202.96539213i | BO22: 1.79290292642088+0.500758588814455i | BQ22: 3.465260068
B23: 17 | C23: 0 | D23: -102 | E23: 0 | F23: 1 | H23: 17 | I23: 25000 | J23: -800 | L23: 1.92546853767414E-11+314324.118021722i | M23: 1.92557856968344E-11+314342.080254603i | N23: 1.92543393989466E-11+314318.470089124i | O23: 1.92541686697552E-11+314315.683011514i | P23: 1.9253999447088E-11+314312.920527236i | Q23: 1.92538317309847E-11+314310.182636941i | R23: 1.92536655214847E-11+314307.469341269i | S23: 1.9253500818627E-11+314304.780640859i | T23: 1.92533376224503E-11+314302.116536341i | U23: 1.92531759329929E-11+314299.477028341i | V23: 1.92530157502928E-11+314296.862117478i | W23: 1.92528570743875E-11+314294.271804367i | X23: 1.92526999053144E-11+314291.706089616i | Y23: 1.92525442431102E-11+314289.164973827i | Z23: 1.92523900878116E-11+314286.648457596i | AA23: 1.92522374394548E-11+314284.156541515i | AB23: 1.92520862980756E-11+314281.689226169i | AC23: 1.92519366637096E-11+314279.246512138i | AD23: 1.92517885363917E-11+314276.828399994i | AE23: 1.92516419161569E-11+314274.434890306i | AF23: 1.92514968030396E-11+314272.065983636i | AG23: 1.92513531970738E-11+314269.72168054i | AH23: 1.92512110982933E-11+314267.401981569i | AI23: 1.92510705067314E-11+314265.106887268i | AJ23: 1.92509314224213E-11+314262.836398176i | AK23: 1.92507938453954E-11+314260.590514825i | AL23: 1.92506577756863E-11+314258.369237744i | AM23: 1.92505232133257E-11+314256.172567455i | AN23: 1.92503901583454E-11+314254.000504473i | AO23: 1.92502586107765E-11+314251.853049308i | AP23: 1.92501285706501E-11+314249.730202466i | AQ23: 1.92500000379966E-11+314247.631964445i | AR23: 1.92498730128463E-11+314245.558335737i | AS23: 1.92497474952289E-11+314243.509316831i | AT23: 1.9249623485174E-11+314241.484908206i | AU23: 1.92495009827107E-11+314239.48511034i | AV23: 1.92493799878678E-11+314237.509923702i | AW23: 1.92492605006737E-11+314235.559348755i | AX23: 1.92491425211565E-11+314233.633385959i | AY23: 1.92490260493439E-11+314231.732035766i | AZ23: 1.92489110852633E-11+314229.855298622i | BA23: 1.92487976289417E-11+314228.003174969i | BB23: 1.92486856804058E-11+314226.175665242i | BC23: 1.92485752396818E-11+314224.37276987i | BD23: 1.92484663067958E-11+314222.594489277i | BE23: 1.92483588817732E-11+314220.840823881i | BF23: 1.92482529646395E-11+314219.111774094i | BG23: 1.92481485554194E-11+314217.407340322i | BH23: 1.92480456541375E-11+314215.727522967i | BI23: 1.9247944260818E-11+314214.072322422i | BO23: 1.08766237321927+1.45652419369596i | BQ23: 3.304472165
B24: 18 | C24: 0 | D24: -109 | E24: 0 | F24: 1 | H24: 18 | I24: 25000 | J24: -850 | L24: 1.92559701980589E-11+314345.092154488i | M24: 1.92571366030891E-11+314364.13319438i | N24: 1.92556027017546E-11+314339.092941856i | O24: 1.92554212128625E-11+314336.130216949i | P24: 1.92552412302005E-11+314333.192080575i | Q24: 1.92550627538111E-11+314330.278533425i | R24: 1.9254885783736E-11+314327.389576182i | S24: 1.92547103200167E-11+314324.525209525i | T24: 1.92545363626946E-11+314321.685434125i | U24: 1.92543639118103E-11+314318.87025065i | V24: 1.92541929674044E-11+314316.079659759i | W24: 1.9254023529517E-11+314313.313662109i | X24: 1.92538555981879E-11+314310.572258347i | Y24: 1.92536891734565E-11+314307.855449119i | Z24: 1.92535242553618E-11+314305.163235061i | AA24: 1.92533608439426E-11+314302.495616806i | AB24: 1.92531989392373E-11+314299.852594979i | AC24: 1.92530385412838E-11+314297.234170202i | AD24: 1.92528796501198E-11+314294.640343089i | AE24: 1.92527222657827E-11+314292.07111425i | AF24: 1.92525663883093E-11+314289.526484286i | AG24: 1.92524120177362E-11+314287.006453797i | AH24: 1.92522591540998E-11+314284.511023373i | AI24: 1.9252107797436E-11+314282.040193601i | AJ24: 1.92519579477801E-11+314279.593965061i | AK24: 1.92518096051675E-11+314277.172338327i | AL24: 1.9251662769633E-11+314274.775313967i | AM24: 1.92515174412111E-11+314272.402892546i | AN24: 1.92513736199359E-11+314270.05507462i | AO24: 1.92512313058412E-11+314267.731860741i | AP24: 1.92510904989603E-11+314265.433251454i | AQ24: 1.92509511993265E-11+314263.159247299i | AR24: 1.92508134069723E-11+314260.90984881i | AS24: 1.92506771219302E-11+314258.685056515i | AT24: 1.92505423442322E-11+314256.484870938i | AU24: 1.92504090739099E-11+314254.309292595i | AV24: 1.92502773109947E-11+314252.158321997i | AW24: 1.92501470555175E-11+314250.03195965i | AX24: 1.92500183075088E-11+314247.930206052i | AY24: 1.92498910669991E-11+314245.853061698i | AZ24: 1.9249765334018E-11+314243.800527076i | BA24: 1.92496411085952E-11+314241.772602668i | BB24: 1.92495183907599E-11+314239.76928895i | BC24: 1.92493971805409E-11+314237.790586394i | BD24: 1.92492774779667E-11+314235.836495463i | BE24: 1.92491592830654E-11+314233.907016618i | BF24: 1.92490425958648E-11+314232.002150311i | BG24: 1.92489274163922E-11+314230.12189699i | BH24: 1.92488137446748E-11+314228.266257097i | BI24: 1.92487015807393E-11+314226.435231068i | BO24: -1.8916950784495-1.99594293726608i | BQ24: 7.562298479
B25: 19 | C25: 0 | D25: -116 | E25: 0 | F25: 1 | H25: 19 | I25: 25000 | J25: -900 | L25: 1.92573318612101E-11+314367.320695783i | M25: 1.92585643372154E-11+314387.440314763i | N25: 1.92569428507959E-11+314360.970274941i | O25: 1.92567506043759E-11+314357.831938208i | P25: 1.92565598638743E-11+314354.718184917i | Q25: 1.92563706293356E-11+314351.629015798i | R25: 1.92561829008044E-11+314348.564431577i | S25: 1.92559966783248E-11+314345.524432972i | T25: 1.92558119619403E-11+314342.509020697i | U25: 1.92556287516943E-11+314339.518195459i | V25: 1.92554470476299E-11+314336.55195796i | W25: 1.92552668497896E-11+314333.610308896i | X25: 1.92550881582158E-11+314330.693248958i | Y25: 1.92549109729504E-11+314327.800778829i | Z25: 1.92547352940349E-11+314324.93289919i | AA25: 1.92545611215107E-11+314322.089610713i | AB25: 1.92543884554185E-11+314319.270914064i | AC25: 1.92542172957989E-11+314316.476809907i | AD25: 1.92540476426922E-11+314313.707298897i | AE25: 1.9253879496138E-11+314310.962381683i | AF25: 1.9253712856176E-11+314308.242058911i | AG25: 1.92535477228451E-11+314305.546331219i | AH25: 1.92533840961842E-11+314302.875199239i | AI25: 1.92532219762317E-11+314300.228663599i | AJ25: 1.92530613630256E-11+314297.60672492i | AK25: 1.92529022566037E-11+314295.009383817i | AL25: 1.92527446570033E-11+314292.436640901i | AM25: 1.92525885642614E-11+314289.888496776i | AN25: 1.92524339784147E-11+314287.36495204i | AO25: 1.92522808994994E-11+314284.866007285i | AP25: 1.92521293275515E-11+314282.391663098i | AQ25: 1.92519792626067E-11+314279.941920061i | AR25: 1.92518307047001E-11+314277.516778748i | AS25: 1.92516836538666E-11+314275.116239729i | AT25: 1.92515381101408E-11+314272.740303569i | AU25: 1.92513940735568E-11+314270.388970824i | AV25: 1.92512515441485E-11+314268.062242047i | AW25: 1.92511105219494E-11+314265.760117785i | AX25: 1.92509710069925E-11+314263.482598578i | AY25: 1.92508329993107E-11+314261.229684962i | AZ25: 1.92506964989363E-11+314259.001377465i | BA25: 1.92505615059015E-11+314256.79767661i | BB25: 1.92504280202379E-11+314254.618582917i | BC25: 1.92502960419769E-11+314252.464096896i | BD25: 1.92501655711495E-11+314250.334219053i | BE25: 1.92500366077864E-11+314248.228949889i | BF25: 1.92499091519178E-11+314246.148289899i | BG25: 1.92497832035736E-11+314244.092239572i | BH25: 1.92496587627836E-11+314242.060799389i | BI25: 1.92495358295769E-11+314240.05396983i | BO25: 1.32577664008002+1.68188042599195i | BQ25: 4.586405467
B26: 20 | C26: 0 | D26: -123 | E26: 0 | F26: 1 | H26: 20 | I26: 25000 | J26: -950 | L26: 1.92587703498958E-11+314390.803379535i | M26: 1.92600688821277E-11+314412.001336838i | N26: 1.92583598300278E-11+314384.101826488i | O26: 1.92581568283811E-11+314380.787915494i | P26: 1.92579553323228E-11+314377.498582556i | Q26: 1.92577553419002E-11+314374.233828448i | R26: 1.92575568571602E-11+314370.993653933i | S26: 1.92573598781494E-11+314367.778059774i | T26: 1.92571644049139E-11+314364.587046723i | U26: 1.92569704374997E-11+314361.420615529i | V26: 1.92567779759522E-11+314358.278766935i | W26: 1.92565870203166E-11+314355.161501679i | X26: 1.92563975706376E-11+314352.068820491i | Y26: 1.92562096269598E-11+314349.000724097i | Z26: 1.92560231893273E-11+314345.957213218i | AA26: 1.92558382577836E-11+314342.938288566i | AB26: 1.92556548323724E-11+314339.943950851i | AC26: 1.92554729131365E-11+314336.974200776i | AD26: 1.92552925001188E-11+314334.029039036i | AE26: 1.92551135933615E-11+314331.108466323i | AF26: 1.92549361929066E-11+314328.212483323i | AG26: 1.92547602987958E-11+314325.341090716i | AH26: 1.92545859110703E-11+314322.494289174i | AI26: 1.9254413029771E-11+314319.672079367i | AJ26: 1.92542416549386E-11+314316.874461956i | AK26: 1.92540717866133E-11+314314.101437599i | AL26: 1.92539034248349E-11+314311.353006947i | AM26: 1.9253736569643E-11+314308.629170644i | AN26: 1.92535712210767E-11+314305.929929329i | AO26: 1.92534073791749E-11+314303.255283638i | AP26: 1.9253245043976E-11+314300.605234197i | AQ26: 1.92530842155181E-11+314297.979781628i | AR26: 1.9252924893839E-11+314295.378926549i | AS26: 1.92527670789761E-11+314292.802669569i | AT26: 1.92526107709665E-11+314290.251011294i | AU26: 1.92524559698468E-11+314287.723952323i | AV26: 1.92523026756534E-11+314285.221493249i | AW26: 1.92521508884223E-11+314282.74363466i | AX26: 1.92520006081891E-11+314280.290377137i | AY26: 1.92518518349892E-11+314277.861721257i | AZ26: 1.92517045688574E-11+314275.457667591i | BA26: 1.92515588098284E-11+314273.078216702i | BB26: 1.92514145579364E-11+314270.723369149i | BC26: 1.92512718132152E-11+314268.393125486i | BD26: 1.92511305756984E-11+314266.08748626i | BE26: 1.92509908454192E-11+314263.806452013i | BF26: 1.92508526224104E-11+314261.550023279i | BG26: 1.92507159067045E-11+314259.31820059i | BH26: 1.92505806983335E-11+314257.110984469i | BI26: 1.92504469973292E-11+314254.928375435i | BO26: 0.719344130634557+0.237042937971351i | BQ26: 0.5736453327
B27: 21 | C27: 0 | D27: -130 | E27: 0 | F27: 1 | H27: 21 | I27: 25000 | J27: -1000 | L27: 1.92602856469027E-11+314415.539924739i | M27: 1.92616502198267E-11+314437.815966773i | N27: 1.92598536224927E-11+314408.487319674i | O27: 1.92596398680483E-11+314404.997874072i | P27: 1.92594276188446E-11+314401.533000849i | Q27: 1.92592168749313E-11+314398.09270082i | R27: 1.92590076363579E-11+314394.676974789i | S27: 1.92587999031733E-11+314391.285823558i | T27: 1.92585936754264E-11+314387.919247922i | U27: 1.92583889531655E-11+314384.577248672i | V27: 1.92581857364386E-11+314381.259826589i | W27: 1.92579840252933E-11+314377.966982453i | X27: 1.9257783819777E-11+314374.698717036i | Y27: 1.92575851199366E-11+314371.455031105i | Z27: 1.92573879258188E-11+314368.235925419i | AA27: 1.92571922374698E-11+314365.041400736i | AB27: 1.92569980549354E-11+314361.871457802i | AC27: 1.92568053782613E-11+314358.726097364i | AD27: 1.92566142074927E-11+314355.605320157i | AE27: 1.92564245426744E-11+314352.509126915i | AF27: 1.92562363838508E-11+314349.437518363i | AG27: 1.92560497310663E-11+314346.390495224i | AH27: 1.92558645843644E-11+314343.36805821i | AI27: 1.92556809437887E-11+314340.370208033i | AJ27: 1.92554988093824E-11+314337.396945394i | AK27: 1.9255318181188E-11+314334.448270993i | AL27: 1.92551390592481E-11+314331.52418552i | AM27: 1.92549614436045E-11+314328.624689662i | AN27: 1.92547853342992E-11+314325.7497841i | AO27: 1.92546107313732E-11+314322.899469508i | AP27: 1.92544376348678E-11+314320.073746555i | AQ27: 1.92542660448233E-11+314317.272615905i | AR27: 1.92540959612803E-11+314314.496078214i | AS27: 1.92539273842785E-11+314311.744134136i | AT27: 1.92537603138575E-11+314309.016784315i | AU27: 1.92535947500566E-11+314306.314029392i | AV27: 1.92534306929147E-11+314303.635870001i | AW27: 1.92532681424701E-11+314300.982306772i | AX27: 1.92531070987612E-11+314298.353340327i | AY27: 1.92529475618257E-11+314295.748971283i | AZ27: 1.92527895317011E-11+314293.169200252i | BA27: 1.92526330084244E-11+314290.614027839i | BB27: 1.92524779920325E-11+314288.083454645i | BC27: 1.92523244825617E-11+314285.577481264i | BD27: 1.92521724800481E-11+314283.096108284i | BE27: 1.92520219845273E-11+314280.639336288i | BF27: 1.92518729960348E-11+314278.207165853i | BG27: 1.92517255146054E-11+314275.799597549i | BH27: 1.92515795402739E-11+314273.416631943i | BI27: 1.92514350730745E-11+314271.058269595i | BO27: -0.106058357402269-1.01021280874144i | BQ27: 1.031778294
B28: 22 | C28: 0 | D28: -137 | E28: 0 | F28: 1 | H28: 22 | I28: 25000 | J28: -1050 | L28: 1.92618777341035E-11+314441.53003548i | M28: 1.92633083314005E-11+314464.883895842i | N28: 1.92614242103192E-11+314434.126462754i | O28: 1.92611997056341E-11+314430.461524286i | P28: 1.92609767058241E-11+314426.821152228i | Q28: 1.92607552109412E-11+314423.205347434i | R28: 1.92605352210376E-11+314419.614110752i | S28: 1.92603167361648E-11+314416.047443023i | T28: 1.92600997563739E-11+314412.505345083i | U28: 1.92598842817158E-11+314408.987817763i | V28: 1.92596703122411E-11+314405.494861888i | W28: 1.92594578479999E-11+314402.026478276i | X28: 1.92592468890421E-11+314398.582667741i | Y28: 1.92590374354171E-11+314395.163431089i | Z28: 1.9258829487174E-11+314391.768769124i | AA28: 1.92586230443616E-11+314388.398682641i | AB28: 1.92584181070283E-11+314385.05317243i | AC28: 1.92582146752222E-11+314381.732239275i | AD28: 1.92580127489909E-11+314378.435883957i | AE28: 1.92578123283819E-11+314375.164107247i | AF28: 1.92576134134421E-11+314371.916909914i | AG28: 1.92574160042182E-11+314368.694292719i | AH28: 1.92572201007565E-11+314365.496256417i | AI28: 1.9257025703103E-11+314362.322801759i | AJ28: 1.92568328113033E-11+314359.17392949i | AK28: 1.92566414254025E-11+314356.049640348i | AL28: 1.92564515454457E-11+314352.949935067i | AM28: 1.92562631714773E-11+314349.874814373i | AN28: 1.92560763035416E-11+314346.824278987i | AO28: 1.92558909416824E-11+314343.798329627i | AP28: 1.92557070859433E-11+314340.796967001i | AQ28: 1.92555247363672E-11+314337.820191814i | AR28: 1.92553438929971E-11+314334.868004764i | AS28: 1.92551645558754E-11+314331.940406545i | AT28: 1.92549867250441E-11+314329.037397843i | AU28: 1.9254810400545E-11+314326.15897934i | AV28: 1.92546355824195E-11+314323.305151712i | AW28: 1.92544622707086E-11+314320.475915627i | AX28: 1.9254290465453E-11+314317.67127175i | AY28: 1.9254120166693E-11+314314.89122074i | AZ28: 1.92539513744686E-11+314312.135763248i | BA28: 1.92537840888194E-11+314309.404899922i | BB28: 1.92536183097847E-11+314306.698631404i | BC28: 1.92534540374034E-11+314304.016958327i | BD28: 1.9253291271714E-11+314301.359881322i | BE28: 1.92531300127548E-11+314298.727401012i | BF28: 1.92529702605636E-11+314296.119518017i | BG28: 1.9252812015178E-11+314293.536232946i | BH28: 1.92526552766351E-11+314290.977546409i | BI28: 1.92525000449717E-11+314288.443459004i | BO28: -0.0317828397242822-2.07009236722053i | BQ28: 4.286292558
B29: 23 | C29: 0 | D29: -144 | E29: 0 | F29: 1 | H29: 23 | I29: 25000 | J29: -1100 | L29: 1.92635465924587E-11+314468.773400943i | M29: 1.92650431970257E-11+314493.204800435i | N29: 1.92630715747231E-11+314461.018949085i | O29: 1.9262836322482E-11+314457.178561577i | P29: 1.92626025747324E-11+314453.362734219i | Q29: 1.9262370331529E-11+314449.571467904i | R29: 1.92621395929263E-11+314445.804763522i | S29: 1.92619103589783E-11+314442.062621953i | T29: 1.92616826297387E-11+314438.345044077i | U29: 1.9261456405261E-11+314434.652030763i | V29: 1.9261231685598E-11+314430.983582878i | W29: 1.92610084708026E-11+314427.339701281i | X29: 1.9260786760927E-11+314423.720386826i | Y29: 1.92605665560232E-11+314420.125640362i | Z29: 1.92603478561428E-11+314416.555462731i | AA29: 1.9260130661337E-11+314413.00985477i | AB29: 1.92599149716569E-11+314409.488817311i | AC29: 1.92597007871529E-11+314405.992351179i | AD29: 1.92594881078753E-11+314402.520457194i | AE29: 1.9259276933874E-11+314399.073136169i | AF29: 1.92590672651984E-11+314395.650388914i | AG29: 1.92588591018978E-11+314392.25221623i | AH29: 1.92586524440209E-11+314388.878618916i | AI29: 1.92584472916162E-11+314385.52959776i | AJ29: 1.92582436447318E-11+314382.20515355i | AK29: 1.92580415034155E-11+314378.905287065i | AL29: 1.92578408677147E-11+314375.629999078i | AM29: 1.92576417376765E-11+314372.379290359i | AN29: 1.92574441133475E-11+314369.153161669i | AO29: 1.92572479947741E-11+314365.951613765i | AP29: 1.92570533820023E-11+314362.774647398i | AQ29: 1.92568602750778E-11+314359.622263314i | AR29: 1.92566686740459E-11+314356.494462251i | AS29: 1.92564785789515E-11+314353.391244945i | AT29: 1.92562899898392E-11+314350.312612123i | AU29: 1.92561029067533E-11+314347.258564506i | AV29: 1.92559173297376E-11+314344.229102813i | AW29: 1.92557332588358E-11+314341.224227753i | AX29: 1.92555506940909E-11+314338.243940032i | AY29: 1.9255369635546E-11+314335.288240349i | AZ29: 1.92551900832433E-11+314332.357129398i | BA29: 1.92550120372251E-11+314329.450607866i | BB29: 1.92548354975332E-11+314326.568676436i | BC29: 1.92546604642089E-11+314323.711335784i | BD29: 1.92544869372934E-11+314320.87858658i | BE29: 1.92543149168274E-11+314318.07042949i | BF29: 1.92541444028513E-11+314315.286865173i | BG29: 1.92539753954051E-11+314312.527894282i | BH29: 1.92538078945285E-11+314309.793517465i | BI29: 1.92536419002607E-11+314307.083735363i | BO29: 0.525670586509158+1.87068879776248i | BQ29: 3.775806144
B30: 24 | C30: 0 | D30: -151 | E30: 0 | F30: 1 | H30: 24 | I30: 25000 | J30: -1150 | L30: 1.92652922020174E-11+314497.26969544i | M30: 1.92668547959685E-11+314522.778342084i | N30: 1.92647956960084E-11+314489.164457141i | O30: 1.92645496990237E-11+314485.148666502i | P30: 1.92643052061289E-11+314481.157429461i | Q30: 1.92640622173816E-11+314477.190746952i | R30: 1.92638207328384E-11+314473.248619903i | S30: 1.92635807525561E-11+314469.331049239i | T30: 1.92633422765909E-11+314465.438035877i | U30: 1.92631053049985E-11+314461.569580729i | V30: 1.92628698378346E-11+314457.725684702i | W30: 1.92626358751543E-11+314453.906348697i | X30: 1.92624034170124E-11+314450.111573607i | Y30: 1.92621724634634E-11+314446.341360322i | Z30: 1.92619430145614E-11+314442.595709727i | AA30: 1.92617150703602E-11+314438.874622698i | AB30: 1.92614886309132E-11+314435.178100108i | AC30: 1.92612636962735E-11+314431.506142823i | AD30: 1.92610402664938E-11+314427.858751704i | AE30: 1.92608183416264E-11+314424.235927605i | AF30: 1.92605979217235E-11+314420.637671376i | AG30: 1.92603790068366E-11+314417.063983861i | AH30: 1.92601615970171E-11+314413.514865896i | AI30: 1.92599456923159E-11+314409.990318315i | AJ30: 1.92597312927837E-11+314406.490341943i | AK30: 1.92595183984707E-11+314403.014937601i | AL30: 1.92593070094268E-11+314399.564106104i | AM30: 1.92590971257017E-11+314396.137848261i | AN30: 1.92588887473445E-11+314392.736164875i | AO30: 1.92586818744041E-11+314389.359056745i | AP30: 1.9258476506929E-11+314386.006524661i | AQ30: 1.92582726449674E-11+314382.678569411i | AR30: 1.9258070288567E-11+314379.375191775i | AS30: 1.92578694377754E-11+314376.096392527i | AT30: 1.92576700926396E-11+314372.842172437i | AU30: 1.92574722532064E-11+314369.612532267i | AV30: 1.92572759195223E-11+314366.407472776i | AW30: 1.92570810916332E-11+314363.226994716i | AX30: 1.92568877695849E-11+314360.071098831i | AY30: 1.92566959534227E-11+314356.939785864i | AZ30: 1.92565056431916E-11+314353.833056548i | BA30: 1.92563168389363E-11+314350.750911612i | BB30: 1.9256129540701E-11+314347.693351779i | BC30: 1.92559437485298E-11+314344.660377767i | BD30: 1.92557594624662E-11+314341.651990288i | BE30: 1.92555766825535E-11+314338.668190047i | BF30: 1.92553954088345E-11+314335.708977744i | BG30: 1.92552156413517E-11+314332.774354075i | BH30: 1.92550373801475E-11+314329.864319727i | BI30: 1.92548606252635E-11+314326.978875384i | BO30: 0.283809099371108-2.49591670779409i | BQ30: 6.310147817
B31: 25 | C31: 0 | D31: -158 | E31: 0 | F31: 1 | H31: 25 | I31: 25000 | J31: -1200 | L31: 1.92671145419184E-11+314527.018578421i | M31: 1.92687431065862E-11+314553.604167479i | N31: 1.92665965535689E-11+314518.562650532i | O31: 1.92663398147801E-11+314514.371504751i | P31: 1.92660845796621E-11+314510.204905725i | Q31: 1.92658308482747E-11+314506.062854427i | R31: 1.92655786206774E-11+314501.945351828i | S31: 1.92653278969291E-11+314497.852398892i | T31: 1.92650786770886E-11+314493.783996578i | U31: 1.92648309612143E-11+314489.740145838i | V31: 1.92645847493642E-11+314485.72084762i | W31: 1.9264340041596E-11+314481.726102864i | X31: 1.92640968379669E-11+314477.755912508i | Y31: =IMPRODUCT(((SQRT(($C$20-$I31)^2+($D$20-$J31)^2))/$D$3*2*PI()+$E$20),$O$2,$F$20) -> 1.9263855138534E-11+314473.810277479i | Z31: 1.92636149433539E-11+314469.889198704i | AA31: 1.92633762524827E-11+314465.9926771i | AB31: 1.92631390659766E-11+314462.120713581i | AC31: 1.92629033838909E-11+314458.273309052i | AD31: 1.9262669206281E-11+314454.450464417i | AE31: 1.92624365332017E-11+314450.652180571i | AF31: 1.92622053647075E-11+314446.878458403i | AG31: 1.92619757008527E-11+314443.129298798i | AH31: 1.92617475416909E-11+314439.404702634i | AI31: 1.92615208872758E-11+314435.704670786i | AJ31: 1.92612957376604E-11+314432.029204119i | AK31: 1.92610720928975E-11+314428.378303495i | AL31: 1.92608499530394E-11+314424.751969769i | AM31: 1.92606293181384E-11+314421.150203793i | AN31: 1.92604101882461E-11+314417.57300641i | AO31: 1.92601925634138E-11+314414.020378458i | AP31: 1.92599764436926E-11+314410.492320772i | AQ31: 1.92597618291332E-11+314406.988834177i | AR31: 1.92595487197858E-11+314403.509919495i | AS31: 1.92593371157005E-11+314400.055577541i | AT31: 1.92591270169268E-11+314396.625809127i | AU31: 1.9258918423514E-11+314393.220615056i | AV31: 1.92587113355111E-11+314389.839996126i | AW31: 1.92585057529666E-11+314386.48395313i | AX31: 1.92583016759286E-11+314383.152486856i | AY31: 1.92580991044452E-11+314379.845598084i | AZ31: 1.92578980385637E-11+314376.563287591i | BA31: 1.92576984783314E-11+314373.305556145i | BB31: 1.9257500423795E-11+314370.072404512i | BC31: 1.9257303875001E-11+314366.86383345i | BD31: 1.92571088319955E-11+314363.67984371i | BE31: 1.92569152948243E-11+314360.520436041i | BF31: 1.92567232635327E-11+314357.385611183i | BG31: 1.92565327381659E-11+314354.275369872i | BH31: 1.92563437187685E-11+314351.189712837i | BI31: 1.92561562053848E-11+314348.128640803i | BO31: -0.52135343683389-0.40382979122536i | BQ31: 0.4348879064
B32: 26 | C32: 0 | D32: -165 | E32: 0 | F32: 1 | H32: 26 | I32: 25000 | J32: -1250 | L32: 1.92690135903918E-11+314558.019694503i | M32: 1.92707081063281E-11+314585.681908491i | N32: 1.92684741258889E-11+314549.213178025i | O32: 1.92682066483629E-11+314544.846727168i | P32: 1.92679406740707E-11+314540.50481593i | Q32: 1.92676762030746E-11+314536.187445328i | R32: 1.92674132354365E-11+314531.894616373i | S32: 1.92671517712179E-11+314527.626330068i | T32: 1.92668918104801E-11+314523.382587413i | U32: 1.92666333532839E-11+314519.163389402i | V32: 1.92663763996898E-11+314514.968737023i | W32: 1.92661209497581E-11+314510.798631257i | X32: 1.92658670035484E-11+314506.653073082i | Y32: 1.92656145611202E-11+314502.532063467i | Z32: 1.92653636225328E-11+314498.435603377i | AA32: 1.92651141878448E-11+314494.363693773i | AB32: 1.92648662571146E-11+314490.316335607i | AC32: 1.92646198304004E-11+314486.293529828i | AD32: 1.92643749077598E-11+314482.295277378i | AE32: 1.92641314892502E-11+314478.321579193i | AF32: 1.92638895749286E-11+314474.372436204i | AG32: 1.92636491648518E-11+314470.447849336i | AH32: 1.92634102590759E-11+314466.547819509i | AI32: 1.92631728576571E-11+314462.672347636i | AJ32: 1.92629369606508E-11+314458.821434625i | AK32: 1.92627025681124E-11+314454.995081378i | AL32: 1.92624696800968E-11+314451.193288793i | AM32: 1.92622382966586E-11+314447.41605776i | AN32: 1.9262008417852E-11+314443.663389163i | AO32: 1.92617800437308E-11+314439.935283883i | AP32: 1.92615531743486E-11+314436.231742794i | AQ32: 1.92613278097586E-11+314432.552766762i | AR32: 1.92611039500135E-11+314428.898356651i | AS32: 1.92608815951659E-11+314425.268513316i | AT32: 1.92606607452678E-11+314421.66323761i | AU32: 1.92604414003711E-11+314418.082530376i | AV32: 1.92602235605271E-11+314414.526392455i | AW32: 1.92600072257869E-11+314410.994824679i | AX32: 1.92597923962013E-11+314407.487827878i | AY32: 1.92595790718205E-11+314404.005402872i | AZ32: 1.92593672526947E-11+314400.54755048i | BA32: 1.92591569388735E-11+314397.11427151i | BB32: 1.92589481304062E-11+314393.70556677i | BC32: 1.92587408273417E-11+314390.321437057i | BD32: 1.92585350297287E-11+314386.961883165i | BE32: 1.92583307376155E-11+314383.626905882i | BF32: 1.92581279510499E-11+314380.316505991i | BG32: 1.92579266700795E-11+314377.030684268i | BH32: 1.92577268947516E-11+314373.769441483i | BI32: 1.92575286251129E-11+314370.532778402i | BO32: -0.34634802595676-0.335271940761274i | BQ32: 0.2323642293
B33: 27 | C33: 0 | D33: -172 | E33: 0 | F33: 1 | H33: 27 | I33: 25000 | J33: -1300 | L33: 1.92709893247599E-11+314590.272673482i | M33: 1.92727497717372E-11+314619.011182194i | N33: 1.92704283905449E-11+314581.115673564i | O33: 1.92701501774755E-11+314576.57396977i | P33: 1.92698734671853E-11+314572.056798171i | Q33: 1.92695982597388E-11+314567.564159824i | R33: 1.92693245552005E-11+314563.09605578i | S33: 1.92690523536345E-11+314558.652487085i | T33: 1.92687816551043E-11+314554.233454778i | U33: 1.92685124596734E-11+314549.838959893i | V33: 1.92682447674048E-11+314545.46900346i | W33: 1.92679785783611E-11+314541.1235865i | X33: 1.92677138926046E-11+314536.802710031i | Y33: 1.92674507101973E-11+314532.506375064i | Z33: 1.92671890312007E-11+314528.234582605i | AA33: 1.92669288556762E-11+314523.987333654i | AB33: 1.92666701836846E-11+314519.764629205i | AC33: 1.92664130152866E-11+314515.566470246i | AD33: 1.92661573505422E-11+314511.392857762i | AE33: 1.92659031895115E-11+314507.243792728i | AF33: 1.92656505322538E-11+314503.119276116i | AG33: 1.92653993788283E-11+314499.019308893i | AH33: 1.92651497292939E-11+314494.943892018i | AI33: 1.92649015837091E-11+314490.893026446i | AJ33: 1.92646549421319E-11+314486.866713125i | AK33: 1.92644098046201E-11+314482.864952999i | AL33: 1.92641661712312E-11+314478.887747004i | AM33: 1.92639240420221E-11+314474.935096073i | AN33: 1.92636834170497E-11+314471.007001132i | AO33: 1.92634442963703E-11+314467.1034631i | AP33: 1.92632066800399E-11+314463.224482892i | AQ33: 1.92629705681141E-11+314459.370061417i | AR33: 1.92627359606484E-11+314455.540199578i | AS33: 1.92625028576976E-11+314451.734898272i | AT33: 1.92622712593165E-11+314447.954158391i | AU33: 1.92620411655592E-11+314444.197980821i | AV33: 1.92618125764796E-11+314440.466366442i | AW33: 1.92615854921315E-11+314436.759316129i | AX33: 1.92613599125679E-11+314433.076830751i | AY33: 1.92611358378417E-11+314429.418911169i | AZ33: 1.92609132680055E-11+314425.785558243i | BA33: 1.92606922031115E-11+314422.176772824i | BB33: 1.92604726432114E-11+314418.592555757i | BC33: 1.92602545883568E-11+314415.032907882i | BD33: 1.92600380385986E-11+314411.497830035i | BE33: 1.92598229939878E-11+314407.987323044i | BF33: 1.92596094545748E-11+314404.501387732i | BG33: 1.92593974204095E-11+314401.040024916i | BH33: 1.92591868915417E-11+314397.603235409i | BI33: 1.92589778680208E-11+314394.191020015i | BO33: -0.690599036328346+1.33654085459975i | BQ33: 2.263268485
B34: 28 | C34: 0 | D34: -179 | E34: 0 | F34: 1 | H34: 28 | I34: 25000 | J34: -1350 | L34: 1.92730417214389E-11+314623.777130364i | M34: 1.92748680784512E-11+314653.591590888i | N34: 1.92724593242064E-11+314614.269756295i | O34: 1.92721703789146E-11+314609.552853773i | P34: 1.92718829359293E-11+314604.860475733i | Q34: 1.92715969953177E-11+314600.192623271i | R34: 1.92713125571468E-11+314595.549297479i | S34: 1.9271029621483E-11+314590.930499444i | T34: 1.92707481883924E-11+314586.336230246i | U34: 1.92704682579411E-11+314581.766490958i | V34: 1.92701898301944E-11+314577.221282651i | W34: 1.92699129052174E-11+314572.700606388i | X34: 1.9269637483075E-11+314568.204463226i | Y34: 1.92693635638316E-11+314563.732854218i | Z34: 1.92690911475513E-11+314559.285780409i | AA34: 1.92688202342979E-11+314554.86324284i | AB34: 1.92685508241347E-11+314550.465242546i | AC34: 1.92682829171247E-11+314546.091780557i | AD34: 1.92680165133308E-11+314541.742857896i | AE34: 1.92677516128152E-11+314537.41847558i | AF34: 1.92674882156399E-11+314533.118634623i | AG34: 1.92672263218666E-11+314528.84333603i | AH34: 1.92669659315567E-11+314524.592580803i | AI34: 1.9266707044771E-11+314520.366369935i | AJ34: 1.92664496615701E-11+314516.164704418i | AK34: 1.92661937820144E-11+314511.987585234i | AL34: 1.92659394061638E-11+314507.835013362i | AM34: 1.92656865340777E-11+314503.706989774i | AN34: 1.92654351658155E-11+314499.603515436i | AO34: 1.9265185301436E-11+314495.52459131i | AP34: 1.92649369409976E-11+314491.47021835i | AQ34: 1.92646900845586E-11+314487.440397507i | AR34: 1.92644447321769E-11+314483.435129724i | AS34: 1.92642008839097E-11+314479.45441594i | AT34: 1.92639585398144E-11+314475.498257086i | AU34: 1.92637176999475E-11+314471.566654089i | AV34: 1.92634783643657E-11+314467.659607871i | AW34: 1.92632405331248E-11+314463.777119347i | AX34: 1.92630042062807E-11+314459.919189426i | AY34: 1.92627693838888E-11+314456.085819012i | AZ34: 1.92625360660039E-11+314452.277009004i | BA34: 1.92623042526809E-11+314448.492760294i | BB34: 1.9262073943974E-11+314444.733073768i | BC34: 1.92618451399373E-11+314440.997950309i | BD34: 1.92616178406242E-11+314437.28739079i | BE34: 1.92613920460881E-11+314433.601396082i | BF34: 1.9261167756382E-11+314429.939967049i | BG34: 1.92609449715583E-11+314426.303104548i | BH34: 1.92607236916694E-11+314422.690809433i | BI34: 1.9260503916767E-11+314419.10308255i | BO34: -0.464478637283601-1.04114415885911i | BQ34: 1.299721564
B35: 29 | C35: 0 | D35: -186 | E35: 0 | F35: 1 | H35: 29 | I35: 25000 | J35: -1400 | L35: 1.92751707559401E-11+314658.532665379i | M35: 1.92770630012045E-11+314689.42272212i | N35: 1.92745669026381E-11+314648.675030582i | O35: 1.92742672285712E-11+314643.782985611i | P35: 1.92739690563205E-11+314638.915457117i | Q35: 1.92736723859559E-11+314634.07244624i | R35: 1.92733772175465E-11+314629.25395411i | S35: 1.92730835511614E-11+314624.459981855i | T35: 1.92727913868694E-11+314619.690530595i | U35: 1.92725007247386E-11+314614.945601446i | V35: 1.9272211564837E-11+314610.225195517i | W35: 1.92719239072324E-11+314605.529313912i | X35: 1.92716377519919E-11+314600.857957729i | Y35: 1.92713530991825E-11+314596.211128061i | Z35: 1.92710699488708E-11+314591.588825994i | AA35: 1.92707883011229E-11+314586.99105261i | AB35: 1.92705081560048E-11+314582.417808985i | AC35: 1.9270229513582E-11+314577.869096187i | AD35: 1.92699523739196E-11+314573.344915281i | AE35: 1.92696767370826E-11+314568.845267326i | AF35: 1.92694026031355E-11+314564.370153374i | AG35: 1.92691299721422E-11+314559.919574473i | AH35: 1.92688588441668E-11+314555.493531663i | AI35: 1.92685892192725E-11+314551.092025981i | AJ35: 1.92683210975225E-11+314546.715058457i | AK35: 1.92680544789796E-11+314542.362630115i | AL35: 1.92677893637062E-11+314538.034741974i | AM35: 1.92675257517642E-11+314533.731395047i | AN35: 1.92672636432155E-11+314529.45259034i | AO35: 1.92670030381213E-11+314525.198328856i | AP35: 1.92667439365427E-11+314520.968611591i | AQ35: 1.92664863385403E-11+314516.763439535i | AR35: 1.92662302441745E-11+314512.582813672i | AS35: 1.92659756535052E-11+314508.426734982i | AT35: 1.9265722566592E-11+314504.295204436i | AU35: 1.92654709834942E-11+314500.188223004i | AV35: 1.92652209042706E-11+314496.105791646i | AW35: 1.926497232898E-11+314492.047911319i | AX35: 1.92647252576804E-11+314488.014582973i | AY35: 1.92644796904298E-11+314484.005807552i | AZ35: 1.92642356272856E-11+314480.021585996i | BA35: 1.92639930683051E-11+314476.061919238i | BB35: 1.9263752013545E-11+314472.126808205i | BC35: 1.92635124630619E-11+314468.21625382i | BD35: 1.92632744169117E-11+314464.330256998i | BE35: 1.92630378751504E-11+314460.468818649i | BF35: 1.92628028378334E-11+314456.63193968i | BG35: 1.92625693050156E-11+314452.819620987i | BH35: 1.92623372767518E-11+314449.031863466i | BI35: 1.92621067530965E-11+314445.268668003i | BO35: -1.42371966328475+1.1901712015642i | BQ35: 3.443485169
B36: 30 | C36: 0 | D36: -193 | E36: 0 | F36: 1 | H36: 30 | I36: 25000 | J36: -1450 | L36: 1.92773764028714E-11+314694.538864014i | M36: 1.92793345138292E-11+314726.504148711i | N36: 1.92767511007006E-11+314684.331086038i | O36: 1.92764407014325E-11+314679.263956958i | P36: 1.92761318034726E-11+314674.221336065i | Q36: 1.92758244068933E-11+314669.203224535i | R36: 1.92755185117663E-11+314664.209623543i | S36: 1.92752141181631E-11+314659.240534254i | T36: 1.92749112261548E-11+314654.295957831i | U36: 1.92746098358122E-11+314649.375895428i | V36: 1.92743099472059E-11+314644.480348196i | W36: 1.92740115604058E-11+314639.609317278i | X36: 1.92737146754817E-11+314634.762803815i | Y36: 1.9273419292503E-11+314629.940808938i | Z36: 1.92731254115389E-11+314625.143333775i | AA36: 1.92728330326579E-11+314620.370379447i | AB36: 1.92725421559285E-11+314615.621947072i | AC36: 1.92722527814186E-11+314610.898037758i | AD36: 1.9271964909196E-11+314606.198652611i | AE36: 1.9271678539328E-11+314601.523792729i | AF36: 1.92713936718815E-11+314596.873459206i | AG36: 1.92711103069231E-11+314592.24765313i | AH36: 1.92708284445192E-11+314587.646375583i | AI36: 1.92705480847357E-11+314583.06962764i | AJ36: 1.92702692276381E-11+314578.517410373i | AK36: 1.92699918732918E-11+314573.989724846i | AL36: 1.92697160217615E-11+314569.486572119i | AM36: 1.92694416731118E-11+314565.007953245i | AN36: 1.9269168827407E-11+314560.553869273i | AO36: 1.92688974847108E-11+314556.124321244i | AP36: 1.92686276450868E-11+314551.719310195i | AQ36: 1.92683593085981E-11+314547.338837157i | AR36: 1.92680924753075E-11+314542.982903155i | AS36: 1.92678271452774E-11+314538.651509209i | AT36: 1.926756331857E-11+314534.344656332i | AU36: 1.9267300995247E-11+314530.062345532i | AV36: 1.92670401753699E-11+314525.804577813i | AW36: 1.92667808589996E-11+314521.57135417i | AX36: 1.9266523046197E-11+314517.362675595i | AY36: 1.92662667370222E-11+314513.178543073i | AZ36: 1.92660119315355E-11+314509.018957584i | BA36: 1.92657586297963E-11+314504.883920101i | BB36: 1.92655068318641E-11+314500.773431594i | BC36: 1.92652565377978E-11+314496.687493024i | BD36: 1.92650077476561E-11+314492.626105348i | BE36: 1.92647604614971E-11+314488.589269518i | BF36: 1.92645146793788E-11+314484.576986479i | BG36: 1.92642704013588E-11+314480.589257171i | BH36: 1.92640276274942E-11+314476.626082528i | BI36: 1.9263786357842E-11+314472.687463478i | BO36: 0.236587492759368+0.554910103781777i | BQ36: 0.363898865
B37: 31 | C37: 0 | D37: -200 | E37: 0 | F37: 1 | H37: 31 | I37: 25000 | J37: -1500 | L37: 1.92796586359386E-11+314731.79529703i | M37: 1.92816825892569E-11+314764.835428782i | N37: 1.92790118923522E-11+314721.237497544i | O37: 1.9278690771583E-11+314715.995344759i | P37: 1.92783711515964E-11+314710.777691579i | Q37: 1.92780530324672E-11+314705.584539224i | R37: 1.92777364142696E-11+314700.415888906i | S37: 1.92774212970777E-11+314695.271741832i | T37: 1.9277107680965E-11+314690.152099205i | U37: 1.92767955660047E-11+314685.05696222i | V37: 1.92764849522699E-11+314679.986332067i | W37: 1.9276175839833E-11+314674.940209932i | X37: 1.92758682287664E-11+314669.918596993i | Y37: 1.92755621191418E-11+314664.921494424i | Z37: 1.92752575110308E-11+314659.948903392i | AA37: 1.92749544045046E-11+314655.00082506i | AB37: 1.92746527996341E-11+314650.077260583i | AC37: 1.92743526964897E-11+314645.178211114i | AD37: 1.92740540951415E-11+314640.303677796i | AE37: 1.92737569956595E-11+314635.453661769i | AF37: 1.9273461398113E-11+314630.628164168i | AG37: 1.92731673025711E-11+314625.82718612i | AH37: 1.92728747091026E-11+314621.050728748i | AI37: 1.92725836177759E-11+314616.298793168i | AJ37: 1.92722940286591E-11+314611.571380492i | AK37: 1.92720059418199E-11+314606.868491825i | AL37: 1.92717193573257E-11+314602.190128267i | AM37: 1.92714342752434E-11+314597.536290912i | AN37: 1.92711506956399E-11+314592.906980848i | AO37: 1.92708686185813E-11+314588.302199159i | AP37: 1.92705880441337E-11+314583.721946921i | AQ37: 1.92703089723627E-11+314579.166225207i | AR37: 1.92700314033336E-11+314574.635035081i | AS37: 1.92697553371114E-11+314570.128377603i | AT37: 1.92694807737605E-11+314565.646253829i | AU37: 1.92692077133454E-11+314561.188664807i | AV37: 1.92689361559298E-11+314556.75561158i | AW37: 1.92686661015773E-11+314552.347095185i | AX37: 1.92683975503511E-11+314547.963116654i | AY37: 1.92681305023141E-11+314543.603677012i | AZ37: 1.92678649575287E-11+314539.268777282i | BA37: 1.92676009160571E-11+314534.958418476i | BB37: 1.92673383779612E-11+314530.672601604i | BC37: 1.92670773433023E-11+314526.411327669i | BD37: 1.92668178121416E-11+314522.174597669i | BE37: 1.92665597845399E-11+314517.962412595i | BF37: 1.92663032605575E-11+314513.774773434i | BG37: 1.92660482402545E-11+314509.611681166i | BH37: 1.92657947236906E-11+314505.473136766i | BI37: 1.92655427109253E-11+314501.359141203i | BO37: -1.1927466745878+1.15513339392129i | BQ37: 2.756977787
B38: 32 | C38: 0 | D38: -207 | E38: 0 | F38: 1 | H38: 32 | I38: 25000 | J38: -1550 | L38: 1.92820174279475E-11+314770.30152049i | M38: 1.92841071995203E-11+314804.416105779i | N38: 1.92813492506506E-11+314759.393825277i | O38: 1.92810174122063E-11+314753.976711246i | P38: 1.92806870740015E-11+314748.584087952i | Q38: 1.92803582361133E-11+314743.215956654i | R38: 1.92800308986184E-11+314737.872318607i | S38: 1.92797050615933E-11+314732.553175056i | T38: 1.9279380725114E-11+314727.258527245i | U38: 1.92790578892564E-11+314721.98837641i | V38: 1.92787365540957E-11+314716.742723781i | W38: 1.9278416719707E-11+314711.521570583i | X38: 1.9278098386165E-11+314706.324918035i | Y38: 1.92777815535441E-11+314701.152767352i | Z38: 1.92774662219183E-11+314696.005119741i | AA38: 1.92771523913612E-11+314690.881976406i | AB38: 1.92768400619461E-11+314685.783338541i | AC38: 1.92765292337461E-11+314680.70920734i | AD38: 1.92762199068336E-11+314675.659583987i | AE38: 1.92759120812811E-11+314670.634469663i | AF38: 1.92756057571604E-11+314665.63386554i | AG38: 1.92753009345431E-11+314660.657772789i | AH38: 1.92749976135005E-11+314655.706192571i | AI38: 1.92746957941034E-11+314650.779126045i | AJ38: 1.92743954764224E-11+314645.876574361i | AK38: 1.92740966605276E-11+314640.998538666i | AL38: 1.9273799346489E-11+314636.1450201i | AM38: 1.9273503534376E-11+314631.316019797i | AN38: 1.92732092242578E-11+314626.511538887i | AO38: 1.92729164162032E-11+314621.731578493i | AP38: 1.92726251102807E-11+314616.976139731i | AQ38: 1.92723353065583E-11+314612.245223715i | AR38: 1.92720470051039E-11+314607.538831551i | AS38: 1.92717602059849E-11+314602.856964339i | AT38: 1.92714749092683E-11+314598.199623174i | AU38: 1.92711911150208E-11+314593.566809145i | AV38: 1.92709088233089E-11+314588.958523337i | AW38: 1.92706280341986E-11+314584.374766826i | AX38: 1.92703487477555E-11+314579.815540685i | AY38: 1.9270070964045E-11+314575.280845982i | AZ38: 1.92697946831321E-11+314570.770683775i | BA38: 1.92695199050814E-11+314566.285055122i | BB38: 1.92692466299572E-11+314561.823961071i | BC38: 1.92689748578235E-11+314557.387402667i | BD38: 1.92687045887438E-11+314552.975380947i | BE38: 1.92684358227814E-11+314548.587896944i | BF38: 1.92681685599993E-11+314544.224951684i | BG38: 1.92679028004599E-11+314539.88654619i | BH38: 1.92676385442254E-11+314535.572681476i | BI38: 1.92673757913577E-11+314531.283358552i | BO38: -0.436522865397658-0.640493550525283i | BQ38: 0.6007842003
B39: 33 | C39: 0 | D39: -214 | E39: 0 | F39: 1 | H39: 33 | I39: 25000 | J39: -1600 | L39: 1.92844527508049E-11+314810.057075789i | M39: 1.92866083157545E-11+314845.245708497i | N39: 1.92837631477541E-11+314798.799614736i | O39: 1.92834205955867E-11+314793.207603971i | P39: 1.92830795430979E-11+314787.640074788i | Q39: 1.92827399903673E-11+314782.097028487i | R39: 1.92824019374742E-11+314776.578466361i | S39: 1.92820653844974E-11+314771.084389697i | T39: 1.92817303315155E-11+314765.614799778i | U39: 1.92813967786067E-11+314760.169697881i | V39: 1.92810647258488E-11+314754.749085275i | W39: 1.92807341733193E-11+314749.352963227i | X39: 1.92804051210954E-11+314743.981332996i | Y39: 1.92800775692539E-11+314738.634195836i | Z39: 1.92797515178713E-11+314733.311552996i | AA39: 1.92794269670237E-11+314728.013405718i | AB39: 1.92791039167869E-11+314722.739755239i | AC39: 1.92787823672364E-11+314717.490602791i | AD39: 1.92784623184471E-11+314712.265949599i | AE39: 1.92781437704939E-11+314707.065796885i | AF39: 1.92778267234512E-11+314701.890145861i | AG39: 1.9277511177393E-11+314696.738997738i | AH39: 1.9277197132393E-11+314691.612353718i | AI39: 1.92768845885246E-11+314686.510214999i | AJ39: 1.92765735458608E-11+314681.432582773i | AK39: 1.92762640044743E-11+314676.379458227i | AL39: 1.92759559644373E-11+314671.35084254i | AM39: 1.9275649425822E-11+314666.346736889i | AN39: 1.92753443886998E-11+314661.367142442i | AO39: 1.92750408531422E-11+314656.412060363i | AP39: 1.927473881922E-11+314651.48149181i | AQ39: 1.92744382870038E-11+314646.575437935i | AR39: 1.92741392565638E-11+314641.693899886i | AS39: 1.92738417279701E-11+314636.836878804i | AT39: 1.92735457012921E-11+314632.004375822i | AU39: 1.9273251176599E-11+314627.196392073i | AV39: 1.92729581539597E-11+314622.412928679i | AW39: 1.92726666334426E-11+314617.653986759i | AX39: 1.92723766151161E-11+314612.919567426i | AY39: 1.92720880990478E-11+314608.209671787i | AZ39: 1.92718010853053E-11+314603.524300943i | BA39: 1.92715155739557E-11+314598.86345599i | BB39: 1.92712315650657E-11+314594.227138018i | BC39: 1.92709490587018E-11+314589.615348112i | BD39: 1.92706680549301E-11+314585.02808735i | BE39: 1.92703885538162E-11+314580.465356806i | BF39: 1.92701105554257E-11+314575.927157546i | BG39: 1.92698340598234E-11+314571.413490632i | BH39: 1.92695590670742E-11+314566.924357121i | BI39: 1.92692855772423E-11+314562.459758063i | BO39: 1.62714203970903+0.429929254705185i | BQ39: 2.832430381
B40: 34 | C40: 0 | D40: -221 | E40: 0 | F40: 1 | H40: 34 | I40: 25000 | J40: -1650 | L40: 1.92869645755207E-11+314851.061489675i | M40: 1.92891859081995E-11+314887.323751116i | N40: 1.92862535549235E-11+314839.454396766i | O40: 1.92859002931104E-11+314833.68755583i | P40: 1.92855485303976E-11+314827.945187035i | Q40: 1.9285198266867E-11+314822.227291719i | R40: 1.92848495026004E-11+314816.533871216i | S40: 1.92845022376791E-11+314810.864926854i | T40: 1.92841564721841E-11+314805.220459956i | U40: 1.92838122061961E-11+314799.600471837i | V40: 1.92834694397954E-11+314794.004963809i | W40: 1.92831281730619E-11+314788.433937178i | X40: 1.92827884060753E-11+314782.887393243i | Y40: 1.92824501389149E-11+314777.365333299i | Z40: 1.92821133716595E-11+314771.867758633i | AA40: 1.92817781043878E-11+314766.39467053i | AB40: 1.92814443371781E-11+314760.946070265i | AC40: 1.92811120701081E-11+314755.521959112i | AD40: 1.92807813032556E-11+314750.122338336i | AE40: 1.92804520366976E-11+314744.747209197i | AF40: 1.92801242705111E-11+314739.39657295i | AG40: 1.92797980047726E-11+314734.070430845i | AH40: 1.92794732395582E-11+314728.768784125i | AI40: 1.92791499749438E-11+314723.491634028i | AJ40: 1.92788282110049E-11+314718.238981786i | AK40: 1.92785079478165E-11+314713.010828626i | AL40: 1.92781891854536E-11+314707.807175769i | AM40: 1.92778719239906E-11+314702.628024429i | AN40: 1.92775561635015E-11+314697.473375818i | AO40: 1.92772419040601E-11+314692.343231138i | AP40: 1.92769291457399E-11+314687.237591589i | AQ40: 1.92766178886138E-11+314682.156458363i | AR40: 1.92763081327546E-11+314677.099832647i | AS40: 1.92759998782348E-11+314672.067715623i | AT40: 1.92756931251262E-11+314667.060108466i | AU40: 1.92753878735007E-11+314662.077012347i | AV40: 1.92750841234295E-11+314657.11842843i | AW40: 1.92747818749836E-11+314652.184357874i | AX40: 1.92744811282336E-11+314647.274801832i | AY40: 1.927418188325E-11+314642.389761453i | AZ40: 1.92738841401025E-11+314637.529237876i | BA40: 1.92735878988608E-11+314632.69323224i | BB40: 1.92732931595942E-11+314627.881745674i | BC40: 1.92729999223716E-11+314623.094779304i | BD40: 1.92727081872615E-11+314618.332334248i | BE40: 1.92724179543322E-11+314613.59441162i | BF40: 1.92721292236515E-11+314608.881012528i | BG40: 1.92718419952869E-11+314604.192138075i | BH40: 1.92715562693056E-11+314599.527789357i | BI40: 1.92712720457744E-11+314594.887967464i | BO40: -0.259470627722403+1.15401279893264i | BQ40: 1.399070547
B41: 35 | C41: 0 | D41: -228 | E41: 0 | F41: 1 | H41: 35 | I41: 25000 | J41: -1700 | L41: 1.92895528722094E-11+314893.31427428i | M41: 1.92918399462011E-11+314930.64973322i | N41: 1.9288820442524E-11+314881.35768759i | O41: 1.92884564752679E-11+314875.416085091i | P41: 1.92880940065162E-11+314869.498945005i | Q41: 1.92877330363533E-11+314863.60626871i | R41: 1.92873735648634E-11+314857.738057581i | S41: 1.92870155921302E-11+314851.894312984i | T41: 1.92866591182372E-11+314846.075036282i | U41: 1.92863041432676E-11+314840.280228833i | V41: 1.9285950667304E-11+314834.509891986i | W41: 1.92855986904289E-11+314828.764027089i | X41: 1.92852482127244E-11+314823.04263548i | Y41: 1.92848992342723E-11+314817.345718494i | Z41: 1.92845517551538E-11+314811.673277459i | AA41: 1.92842057754501E-11+314806.0253137i | AB41: 1.92838612952419E-11+314800.401828532i | AC41: 1.92835183146095E-11+314794.802823268i | AD41: 1.9283176833633E-11+314789.228299215i | AE41: 1.9282836852392E-11+314783.678257673i | AF41: 1.92824983709658E-11+314778.152699936i | AG41: 1.92821613894335E-11+314772.651627295i | AH41: 1.92818259078736E-11+314767.175041033i | AI41: 1.92814919263645E-11+314761.722942428i | AJ41: 1.92811594449842E-11+314756.295332753i | AK41: 1.92808284638101E-11+314750.892213274i | AL41: 1.92804989829196E-11+314745.513585253i | AM41: 1.92801710023896E-11+314740.159449945i | AN41: 1.92798445222967E-11+314734.8298086i | AO41: 1.92795195427171E-11+314729.524662464i | AP41: 1.92791960637266E-11+314724.244012773i | AQ41: 1.92788740854009E-11+314718.987860763i | AR41: 1.92785536078151E-11+314713.756207659i | AS41: 1.9278234631044E-11+314708.549054683i | AT41: 1.92779171551621E-11+314703.366403053i | AU41: 1.92776011802436E-11+314698.208253978i | AV41: 1.92772867063624E-11+314693.074608663i | AW41: 1.92769737335917E-11+314687.965468308i | AX41: 1.92766622620049E-11+314682.880834106i | AY41: 1.92763522916746E-11+314677.820707245i | AZ41: 1.92760438226733E-11+314672.785088907i | BA41: 1.9275736855073E-11+314667.773980268i | BB41: 1.92754313889455E-11+314662.787382501i | BC41: 1.92751274243622E-11+314657.82529677i | BD41: 1.92748249613941E-11+314652.887724235i | BE41: 1.92745240001118E-11+314647.974666049i | BF41: 1.92742245405858E-11+314643.086123362i | BG41: 1.92739265828861E-11+314638.222097315i | BH41: 1.92736301270822E-11+314633.382589047i | BI41: 1.92733351732435E-11+314628.567599688i | BO41: 2.0471029289461-0.130238929465192i | BQ41: 4.20759258
B42: 36 | C42: 0 | D42: -235 | E42: 0 | F42: 1 | H42: 36 | I42: 25000 | J42: -1750 | L42: 1.9292217610092E-11+314936.814927149i | M42: 1.92945703982133E-11+314975.223139835i | N42: 1.92914637800263E-11+314924.508988835i | O42: 1.92910891116552E-11+314918.392695424i | P42: 1.9290715941175E-11+314912.300854411i | Q42: 1.92903442686726E-11+314906.233467215i | R42: 1.92899740942347E-11+314900.190535251i | S42: 1.92896054179474E-11+314894.172059927i | T42: 1.92892382398967E-11+314888.178042643i | U42: 1.92888725601682E-11+314882.208484798i | V42: 1.9288508378847E-11+314876.263387782i | W42: 1.92881456960181E-11+314870.342752981i | X42: 1.92877845117659E-11+314864.446581774i | Y42: 1.92874248261747E-11+314858.574875537i | Z42: 1.92870666393283E-11+314852.727635638i | AA42: 1.92867099513102E-11+314846.904863439i | AB42: 1.92863547622036E-11+314841.1065603i | AC42: 1.92860010720912E-11+314835.33272757i | AD42: 1.92856488810556E-11+314829.583366598i | AE42: 1.92852981891789E-11+314823.858478723i | AF42: 1.92849489965428E-11+314818.158065281i | AG42: 1.92846013032289E-11+314812.482127601i | AH42: 1.92842551093181E-11+314806.830667006i | AI42: 1.92839104148914E-11+314801.203684817i | AJ42: 1.92835672200289E-11+314795.601182344i | AK42: 1.9283225524811E-11+314790.023160895i | AL42: 1.92828853293172E-11+314784.469621772i | AM42: 1.92825466336269E-11+314778.94056627i | AN42: 1.92822094378192E-11+314773.435995679i | AO42: 1.92818737419727E-11+314767.955911284i | AP42: 1.92815395461659E-11+314762.500314365i | AQ42: 1.92812068504766E-11+314757.069206193i | AR42: 1.92808756549827E-11+314751.662588037i | AS42: 1.92805459597612E-11+314746.28046116i | AT42: 1.92802177648893E-11+314740.922826816i | AU42: 1.92798910704436E-11+314735.589686258i | AV42: 1.92795658765003E-11+314730.28104073i | AW42: 1.92792421831353E-11+314724.996891471i | AX42: 1.92789199904243E-11+314719.737239717i | AY42: 1.92785992984424E-11+314714.502086694i | AZ42: 1.92782801072647E-11+314709.291433626i | BA42: 1.92779624169655E-11+314704.105281729i | BB42: 1.92776462276192E-11+314698.943632215i | BC42: 1.92773315392995E-11+314693.80648629i | BD42: 1.927701835208E-11+314688.693845153i | BE42: 1.92767066660339E-11+314683.605709999i | BF42: 1.9276396481234E-11+314678.542082016i | BG42: 1.92760877977527E-11+314673.502962388i | BH42: 1.92757806156621E-11+314668.488352293i | BI42: 1.92754749350341E-11+314663.498252901i | BO42: 6.08013374452614-2.2826585625512i | BQ42: 42.17855646
B43: 37 | C43: 0 | D43: -242 | E43: 0 | F43: 1 | H43: 37 | I43: 25000 | J43: -1800 | L43: 1.92949587574975E-11+314981.562931272i | M43: 1.92973772317998E-11+315021.043441451i | N43: 1.92941835360094E-11+314968.907787562i | O43: 1.92937981709757E-11+314962.616875925i | P43: 1.92934143032022E-11+314956.350406388i | Q43: 1.9293031932778E-11+314950.108380409i | R43: 1.92926510597923E-11+314943.890799443i | S43: 1.92922716843338E-11+314937.697664937i | T43: 1.92918938064907E-11+314931.528978333i | U43: 1.92915174263511E-11+314925.384741068i | V43: 1.92911425440027E-11+314919.264954573i | W43: 1.92907691595327E-11+314913.169620273i | X43: 1.92903972730282E-11+314907.098739589i | Y43: 1.92900268845757E-11+314901.052313934i | Z43: 1.92896579942617E-11+314895.030344717i | AA43: 1.9289290602172E-11+314889.032833342i | AB43: 1.92889247083922E-11+314883.059781206i | AC43: 1.92885603130076E-11+314877.111189701i | AD43: 1.92881974161032E-11+314871.187060213i | AE43: 1.92878360177634E-11+314865.287394123i | AF43: 1.92874761180727E-11+314859.412192807i | AG43: 1.92871177171147E-11+314853.561457633i | AH43: 1.92867608149732E-11+314847.735189965i | AI43: 1.92864054117313E-11+314841.933391163i | AJ43: 1.92860515074718E-11+314836.156062578i | AK43: 1.92856991022774E-11+314830.403205558i | AL43: 1.92853481962301E-11+314824.674821444i | AM43: 1.92849987894118E-11+314818.970911573i | AN43: 1.9284650881904E-11+314813.291477274i | AO43: 1.92843044737878E-11+314807.636519873i | AP43: 1.92839595651441E-11+314802.006040688i | AQ43: 1.92836161560533E-11+314796.400041032i | AR43: 1.92832742465956E-11+314790.818522215i | AS43: 1.92829338368506E-11+314785.261485537i | AT43: 1.92825949268978E-11+314779.728932295i | AU43: 1.92822575168163E-11+314774.220863781i | AV43: 1.92819216066849E-11+314768.73728128i | AW43: 1.92815871965819E-11+314763.278186072i | AX43: 1.92812542865854E-11+314757.84357943i | AY43: 1.9280922876773E-11+314752.433462623i | AZ43: 1.92805929672222E-11+314747.047836914i | BA43: 1.928026455801E-11+314741.68670356i | BB43: 1.9279937649213E-11+314736.350063814i | BC43: 1.92796122409075E-11+314731.03791892i | BD43: 1.92792883331696E-11+314725.750270118i | BE43: 1.92789659260748E-11+314720.487118645i | BF43: 1.92786450196985E-11+314715.248465729i | BG43: 1.92783256141156E-11+314710.034312592i | BH43: 1.92780077094006E-11+314704.844660454i | BI43: 1.92776913056279E-11+314699.679510526i | BO43: 10.5765684373194-2.55615144170082i | BQ43: 118.3977101
B44: 38 | C44: 0 | D44: -249 | E44: 0 | F44: 1 | H44: 38 | I44: 25000 | J44: -1850 | L44: 1.92977762818654E-11+315027.557755109i | M44: 1.93002604136361E-11+315068.110094064i | N44: 1.92969796781613E-11+315014.553556296i | O44: 1.92965836210424E-11+315008.088101154i | P44: 1.92961890605352E-11+315001.647077528i | Q44: 1.92957959967316E-11+314995.230486918i | R44: 1.9295404429723E-11+314988.838330817i | S44: 1.92950143596006E-11+314982.470610711i | T44: 1.92946257864552E-11+314976.127328085i | U44: 1.92942387103771E-11+314969.808484413i | V44: 1.92938531314565E-11+314963.514081166i | W44: 1.92934690497832E-11+314957.244119811i | X44: 1.92930864654465E-11+314950.998601807i | Y44: 1.92927053785356E-11+314944.777528607i | Z44: 1.92923257891392E-11+314938.580901661i | AA44: 1.92919476973456E-11+314932.408722411i | AB44: 1.9291571103243E-11+314926.260992296i | AC44: 1.9291196006919E-11+314920.137712746i | AD44: 1.92908224084611E-11+314914.038885189i | AE44: 1.92904503079562E-11+314907.964511044i | AF44: 1.9290079705491E-11+314901.914591727i | AG44: 1.9289710601152E-11+314895.889128648i | AH44: 1.92893429950249E-11+314889.88812321i | AI44: 1.92889768871957E-11+314883.911576811i | AJ44: 1.92886122777494E-11+314877.959490845i | AK44: 1.92882491667712E-11+314872.031866699i | AL44: 1.92878875543456E-11+314866.128705754i | AM44: 1.9287527440557E-11+314860.250009385i | AN44: 1.92871688254893E-11+314854.395778964i | AO44: 1.9286811709226E-11+314848.566015855i | AP44: 1.92864560918505E-11+314842.760721418i | AQ44: 1.92861019734456E-11+314836.979897005i | AR44: 1.9285749354094E-11+314831.223543965i | AS44: 1.92853982338778E-11+314825.49166364i | AT44: 1.92850486128789E-11+314819.784257367i | AU44: 1.92847004911789E-11+314814.101326477i | AV44: 1.9284353868859E-11+314808.442872295i | AW44: 1.9284008746E-11+314802.808896141i | AX44: 1.92836651226825E-11+314797.19939933i | AY44: 1.92833229989865E-11+314791.61438317i | AZ44: 1.9282982374992E-11+314786.053848964i | BA44: 1.92826432507783E-11+314780.517798009i | BB44: 1.92823056264247E-11+314775.006231598i | BC44: 1.92819695020099E-11+314769.519151017i | BD44: 1.92816348776123E-11+314764.056557545i | BE44: 1.92813017533101E-11+314758.618452459i | BF44: 1.9280970129181E-11+314753.204837027i | BG44: 1.92806400053024E-11+314747.815712513i | BH44: 1.92803113817514E-11+314742.451080174i | BI44: 1.92799842586047E-11+314737.110941264i | BO44: 13.5139345615755+7.10746699814022i | BQ44: 233.1425145
B45: 39 | C45: 0 | D45: -256 | E45: 0 | F45: 1 | H45: 39 | I45: 25000 | J45: -1900 | L45: 1.93006701497469E-11+315074.798852625i | M45: 1.93032199095115E-11+315116.422539197i | N45: 1.92998521732818E-11+315061.445753059i | O45: 1.92994454287791E-11+315054.80583116i | P45: 1.92990401802224E-11+315048.190329911i | Q45: 1.9298636427706E-11+315041.599250851i | R45: 1.92982341713239E-11+315035.032595512i | S45: 1.92978334111695E-11+315028.490365421i | T45: 1.92974341473362E-11+315021.972562101i | U45: 1.92970363799167E-11+315015.479187067i | V45: 1.92966401090036E-11+315009.010241831i | W45: 1.92962453346892E-11+315002.565727896i | X45: 1.92958520570652E-11+314996.145646764i | Y45: 1.92954602762232E-11+314989.749999927i | Z45: 1.92950699922543E-11+314983.378788874i | AA45: 1.92946812052494E-11+314977.032015089i | AB45: 1.92942939152991E-11+314970.709680047i | AC45: 1.92939081224933E-11+314964.411785222i | AD45: 1.92935238269221E-11+314958.138332078i | AE45: 1.92931410286747E-11+314951.889322077i | AF45: 1.92927597278404E-11+314945.664756674i | AG45: 1.92923799245079E-11+314939.464637318i | AH45: 1.92920016187657E-11+314933.288965452i | AI45: 1.92916248107018E-11+314927.137742515i | AJ45: 1.92912495004041E-11+314921.01096994i | AK45: 1.929087568796E-11+314914.908649154i | AL45: 1.92905033734565E-11+314908.830781578i | AM45: 1.92901325569804E-11+314902.777368627i | AN45: 1.9289763238618E-11+314896.748411714i | AO45: 1.92893954184554E-11+314890.743912241i | AP45: 1.92890290965784E-11+314884.763871609i | AQ45: 1.92886642730722E-11+314878.80829121i | AR45: 1.92883009480219E-11+314872.877172434i | AS45: 1.92879391215123E-11+314866.970516661i | AT45: 1.92875787936275E-11+314861.088325269i | AU45: 1.92872199644516E-11+314855.230599629i | AV45: 1.92868626340683E-11+314849.397341106i | AW45: 1.92865068025609E-11+314843.588551061i | AX45: 1.92861524700123E-11+314837.804230848i | AY45: 1.92857996365052E-11+314832.044381815i | AZ45: 1.92854483021217E-11+314826.309005306i | BA45: 1.9285098466944E-11+314820.598102658i | BB45: 1.92847501310535E-11+314814.911675203i | BC45: 1.92844032945314E-11+314809.249724268i | BD45: 1.92840579574588E-11+314803.612251172i | BE45: 1.92837141199161E-11+314797.999257232i | BF45: 1.92833717819836E-11+314792.410743756i | BG45: 1.92830309437412E-11+314786.846712049i | BH45: 1.92826916052682E-11+314781.307163408i | BI45: 1.92823537666441E-11+314775.792099126i | BO45: -2.80552866171734+17.3606191817353i | BQ45: 309.2620894
B46: 40 | C46: 0 | D46: -263 | E46: 0 | F46: 1 | H46: 40 | I46: 25000 | J46: -1950 | L46: 1.93036403268074E-11+315123.285663323i | M46: 1.93062556843309E-11+315165.98020394i | N46: 1.93028009872842E-11+315109.583821399i | O46: 1.93023835602231E-11+315102.769511517i | P46: 1.9301967628425E-11+315095.979611135i | Q46: 1.93015531919866E-11+315089.214121831i | R46: 1.93011402510043E-11+315082.473045178i | S46: 1.93007288055741E-11+315075.756382742i | T46: 1.93003188557915E-11+315069.064136085i | U46: 1.92999104017519E-11+315062.396306763i | V46: 1.92995034435503E-11+315055.752896326i | W46: 1.92990979812812E-11+315049.133906318i | X46: 1.92986940150391E-11+315042.53933828i | Y46: 1.92982915449177E-11+315035.969193744i | Z46: 1.92978905710108E-11+315029.423474239i | AA46: 1.92974910934117E-11+315022.902181287i | AB46: 1.92970931122131E-11+315016.405316405i | AC46: 1.92966966275077E-11+315009.932881106i | AD46: 1.92963016393878E-11+315003.484876893i | AE46: 1.92959081479453E-11+314997.061305269i | AF46: 1.92955161532717E-11+314990.662167727i | AG46: 1.92951256554583E-11+314984.287465757i | AH46: 1.92947366545959E-11+314977.937200843i | AI46: 1.9294349150775E-11+314971.611374462i | AJ46: 1.9293963144086E-11+314965.309988087i | AK46: 1.92935786346186E-11+314959.033043185i | AL46: 1.92931956224623E-11+314952.780541218i | AM46: 1.92928141077064E-11+314946.55248364i | AN46: 1.92924340904397E-11+314940.348871903i | AO46: 1.92920555707506E-11+314934.16970745i | AP46: 1.92916785487273E-11+314928.014991721i | AQ46: 1.92913030244577E-11+314921.88472615i | AR46: 1.92909289980291E-11+314915.778912164i | AS46: 1.92905564695288E-11+314909.697551185i | AT46: 1.92901854390434E-11+314903.640644631i | AU46: 1.92898159066595E-11+314897.608193911i | AV46: 1.92894478724632E-11+314891.600200433i | AW46: 1.92890813365401E-11+314885.616665595i | AX46: 1.92887162989757E-11+314879.657590792i | AY46: 1.92883527598551E-11+314873.722977413i | AZ46: 1.92879907192631E-11+314867.812826841i | BA46: 1.92876301772839E-11+314861.927140454i | BB46: 1.92872711340016E-11+314856.065919622i | BC46: 1.92869135895E-11+314850.229165714i | BD46: 1.92865575438623E-11+314844.416880089i | BE46: 1.92862029971717E-11+314838.629064103i | BF46: 1.92858499495107E-11+314832.865719105i | BG46: 1.92854984009617E-11+314827.126846439i | BH46: 1.92851483516067E-11+314821.412447444i | BI46: 1.92847998015274E-11+314815.722523451i | BO46: -12.7307561254429+11.8932849860839i | BQ46: 303.5223793
B47: 41 | C47: 0 | D47: -270 | E47: 0 | F47: 1 | H47: 41 | I47: 25000 | J47: -2000 | L47: 1.93066867778282E-11+315173.017612273i | M47: 1.93093677021172E-11+315216.782500981i | N47: 1.93058260851972E-11+315158.967190423i | O47: 1.93053979805268E-11+315151.978573351i | P47: 1.93049713704191E-11+315145.014354347i | Q47: 1.93045462549733E-11+315138.074535027i | R47: 1.93041226342881E-11+315131.159117005i | S47: 1.93037005084618E-11+315124.268101887i | T47: 1.93032798775926E-11+315117.401491273i | U47: 1.93028607417782E-11+315110.559286759i | V47: 1.93024431011159E-11+315103.741489935i | W47: 1.93020269557029E-11+315096.948102385i | X47: 1.93016123056358E-11+315090.179125688i | Y47: 1.93011991510111E-11+315083.434561417i | Z47: 1.93007874919246E-11+315076.71441114i | AA47: 1.93003773284723E-11+315070.018676419i | AB47: 1.92999686607493E-11+315063.347358811i | AC47: 1.92995614888507E-11+315056.700459867i | AD47: 1.92991558128712E-11+315050.077981133i | AE47: 1.92987516329052E-11+315043.479924147i | AF47: 1.92983489490466E-11+315036.906290446i | AG47: 1.9297947761389E-11+315030.357081557i | AH47: 1.92975480700259E-11+315023.832299005i | AI47: 1.92971498750501E-11+315017.331944306i | AJ47: 1.92967531765544E-11+315010.856018974i | AK47: 1.92963579746309E-11+315004.404524514i | AL47: 1.92959642693717E-11+314997.977462429i | AM47: 1.92955720608684E-11+314991.574834212i | AN47: 1.92951813492122E-11+314985.196641356i | AO47: 1.92947921344941E-11+314978.842885343i | AP47: 1.92944044168047E-11+314972.513567652i | AQ47: 1.92940181962342E-11+314966.208689758i | AR47: 1.92936334728725E-11+314959.928253128i | AS47: 1.92932502468092E-11+314953.672259223i | AT47: 1.92928685181335E-11+314947.440709501i | AU47: 1.92924882869343E-11+314941.233605412i | AV47: 1.92921095533001E-11+314935.050948402i | AW47: 1.92917323173192E-11+314928.892739911i | AX47: 1.92913565790794E-11+314922.758981372i | AY47: 1.92909823386682E-11+314916.649674215i | AZ47: 1.92906095961728E-11+314910.564819863i | BA47: 1.929023835168E-11+314904.504419732i | BB47: 1.92898686052763E-11+314898.468475236i | BC47: 1.92895003570479E-11+314892.45698778i | BD47: 1.92891336070805E-11+314886.469958765i | BE47: 1.92887683554597E-11+314880.507389587i | BF47: 1.92884046022705E-11+314874.569281634i | BG47: 1.92880423475978E-11+314868.655636291i | BH47: 1.92876815915259E-11+314862.766454935i | BI47: 1.92873223341389E-11+314856.901738941i | BO47: -14.1994887480373-6.41372490579368i | BQ47: 242.7613479
B48: 42 | C48: 0 | D48: -277 | E48: 0 | F48: 1 | H48: 42 | I48: 25000 | J48: -2050 | L48: 1.93098094667087E-11+315223.99411015i | M48: 1.93125559260131E-11+315268.828828642i | N48: 1.93089274311668E-11+315209.595274836i | O48: 1.93084886539598E-11+315202.432433381i | P48: 1.93080513705979E-11+315195.29397828i | Q48: 1.93076155811827E-11+315188.179911189i | R48: 1.93071812858153E-11+315181.09023376i | S48: 1.93067484845965E-11+315174.024947639i | T48: 1.93063171776269E-11+315166.984054465i | U48: 1.93058873650066E-11+315159.967555875i | V48: 1.93054590468353E-11+315152.975453497i | W48: 1.93050322232126E-11+315146.007748955i | X48: 1.93046068942376E-11+315139.064443868i | Y48: 1.93041830600091E-11+315132.145539848i | Z48: 1.93037607206256E-11+315125.251038502i | AA48: 1.93033398761851E-11+315118.380941432i | AB48: 1.93029205267854E-11+315111.535250235i | AC48: 1.93025026725241E-11+315104.713966501i | AD48: 1.93020863134981E-11+315097.917091815i | AE48: 1.93016714498042E-11+315091.144627757i | AF48: 1.9301258081539E-11+315084.396575901i | AG48: 1.93008462087983E-11+315077.672937814i | AH48: 1.93004358316781E-11+315070.973715062i | AI48: 1.93000269502737E-11+315064.2989092i | AJ48: 1.92996195646801E-11+315057.64852178i | AK48: 1.92992136749921E-11+315051.02255435i | AL48: 1.92988092813041E-11+315044.421008449i | AM48: 1.92984063837101E-11+315037.843885614i | AN48: 1.92980049823039E-11+315031.291187373i | AO48: 1.92976050771787E-11+315024.762915251i | AP48: 1.92972066684276E-11+315018.259070766i | AQ48: 1.92968097561433E-11+315011.779655432i | AR48: 1.92964143404182E-11+315005.324670755i | AS48: 1.92960204213442E-11+314998.894118239i | AT48: 1.9295627999013E-11+314992.487999378i | AU48: 1.9295237073516E-11+314986.106315665i | AV48: 1.9294847644944E-11+314979.749068584i | AW48: 1.92944597133878E-11+314973.416259614i | AX48: 1.92940732789376E-11+314967.107890231i | AY48: 1.92936883416835E-11+314960.823961901i | AZ48: 1.92933049017149E-11+314954.564476089i | BA48: 1.92929229591213E-11+314948.329434252i | BB48: 1.92925425139914E-11+314942.118837841i | BC48: 1.9292163566414E-11+314935.932688303i | BD48: 1.92917861164772E-11+314929.770987078i | BE48: 1.9291410164269E-11+314923.633735602i | BF48: 1.9291035709877E-11+314917.520935303i | BG48: 1.92906627533883E-11+314911.432587606i | BH48: 1.92902912948898E-11+314905.368693929i | BI48: 1.92899213344681E-11+314899.329255684i | BO48: -9.25892158147864-15.9635350386747i | BQ48: 340.5620798
B49: 43 | C49: 0 | D49: -284 | E49: 0 | F49: 1 | H49: 43 | I49: 25000 | J49: -2100 | L49: 1.93130083564687E-11+315276.214553268i | M49: 1.93158203182833E-11+315322.118570912i | N49: 1.93121049884589E-11+315261.467474966i | O49: 1.93116555439109E-11+315254.130493946i | P49: 1.93112075924733E-11+315246.817887285i | Q49: 1.931076113425E-11+315239.529656678i | R49: 1.93103161693444E-11+315232.265803816i | S49: 1.930987269786E-11+315225.026330385i | T49: 1.93094307198995E-11+315217.811238063i | U49: 1.93089902355656E-11+315210.620528526i | V49: 1.93085512449604E-11+315203.454203443i | W49: 1.93081137481858E-11+315196.312264475i | X49: 1.93076777453435E-11+315189.194713282i | Y49: 1.93072432365345E-11+315182.101551514i | Z49: 1.93068102218598E-11+315175.03278082i | AA49: 1.93063787014198E-11+315167.98840284i | AB49: 1.93059486753149E-11+315160.968419209i | AC49: 1.93055201436448E-11+315153.972831558i | AD49: 1.93050931065091E-11+315147.001641512i | AE49: 1.9304667564007E-11+315140.054850689i | AF49: 1.93042435162372E-11+315133.132460704i | AG49: 1.93038209632984E-11+315126.234473164i | AH49: 1.93033999052886E-11+315119.360889671i | AI49: 1.93029803423057E-11+315112.511711823i | AJ49: 1.93025622744472E-11+315105.686941211i | AK49: 1.93021457018103E-11+315098.886579422i | AL49: 1.93017306244916E-11+315092.110628034i | AM49: 1.93013170425878E-11+315085.359088624i | AN49: 1.93009049561949E-11+315078.631962761i | AO49: 1.93004943654088E-11+315071.929252008i | AP49: 1.93000852703248E-11+315065.250957924i | AQ49: 1.92996776710382E-11+315058.597082061i | AR49: 1.92992715676436E-11+315051.967625966i | AS49: 1.92988669602356E-11+315045.362591181i | AT49: 1.92984638489081E-11+315038.781979242i | AU49: 1.9298062233755E-11+315032.22579168i | AV49: 1.92976621148697E-11+315025.69403002i | AW49: 1.92972634923452E-11+315019.18669578i | AX49: 1.92968663662743E-11+315012.703790474i | AY49: 1.92964707367494E-11+315006.245315612i | AZ49: 1.92960766038625E-11+314999.811272695i | BA49: 1.92956839677053E-11+314993.401663221i | BB49: 1.92952928283692E-11+314987.016488681i | BC49: 1.92949031859452E-11+314980.655750562i | BD49: 1.92945150405241E-11+314974.319450343i | BE49: 1.92941283921961E-11+314968.0075895i | BF49: 1.92937432410513E-11+314961.720169502i | BG49: 1.92933595871793E-11+314955.457191812i | BH49: 1.92929774306695E-11+314949.21865789i | BI49: 1.92925967716109E-11+314943.004569186i | BO49: 4.63407067490836-10.1272096325763i | BQ49: 124.034986
B50: 44 | C50: 0 | D50: -291 | E50: 0 | F50: 1 | H50: 44 | I50: 25000 | J50: -2150 | L50: 1.93162834092502E-11+315329.678323611i | M50: 1.9319160840317E-11+315376.651097486i | N50: 1.93153587194611E-11+315314.583176809i | O50: 1.93148986128907E-11+315307.072143047i | P50: 1.93144399986787E-11+315299.585471367i | Q50: 1.93139828769314E-11+315292.123163506i | R50: 1.93135272477547E-11+315284.685221192i | S50: 1.93130731112544E-11+315277.271646151i | T50: 1.93126204675356E-11+315269.882440101i | U50: 1.93121693167034E-11+315262.517604756i | V50: 1.93117196588625E-11+315255.177141824i | W50: 1.9311271494117E-11+315247.861053008i | X50: 1.93108248225709E-11+315240.569340003i | Y50: 1.9310379644328E-11+315233.302004503i | Z50: 1.93099359594914E-11+315226.059048193i | AA50: 1.9309493768164E-11+315218.840472753i | AB50: 1.93090530704486E-11+315211.646279859i | AC50: 1.93086138664473E-11+315204.47647118i | AD50: 1.93081761562622E-11+315197.33104838i | AE50: 1.93077399399947E-11+315190.210013117i | AF50: 1.93073052177462E-11+315183.113367045i | AG50: 1.93068719896176E-11+315176.041111811i | AH50: 1.93064402557094E-11+315168.993249057i | AI50: 1.93060100161219E-11+315161.96978042i | AJ50: 1.93055812709551E-11+315154.97070753i | AK50: 1.93051540203084E-11+315147.996032012i | AL50: 1.93047282642811E-11+315141.045755487i | AM50: 1.93043040029721E-11+315134.119879569i | AN50: 1.930388123648E-11+315127.218405867i | AO50: 1.93034599649029E-11+315120.341335984i | AP50: 1.93030401883388E-11+315113.488671518i | AQ50: 1.93026219068851E-11+315106.660414061i | AR50: 1.93022051206391E-11+315099.8565652i | AS50: 1.93017898296977E-11+315093.077126516i | AT50: 1.93013760341573E-11+315086.322099584i | AU50: 1.93009637341141E-11+315079.591485975i | AV50: 1.9300552929664E-11+315072.885287254i | AW50: 1.93001436209025E-11+315066.203504979i | AX50: 1.92997358079247E-11+315059.546140703i | AY50: 1.92993294908255E-11+315052.913195976i | AZ50: 1.92989246696993E-11+315046.304672338i | BA50: 1.92985213446403E-11+315039.720571328i | BB50: 1.92981195157423E-11+315033.160894476i | BC50: 1.92977191830987E-11+315026.625643307i | BD50: 1.92973203468027E-11+315020.114819343i | BE50: 1.9296923006947E-11+315013.628424097i | BF50: 1.92965271636242E-11+315007.166459079i | BG50: 1.92961328169262E-11+315000.728925793i | BH50: 1.92957399669449E-11+314994.315825736i | BI50: 1.92953486137716E-11+314987.9271604i | BO50: 5.48496771556678+0.753325952860899i | BQ50: 30.65237083
B51: 45 | C51: 0 | D51: -298 | E51: 0 | F51: 1 | H51: 45 | I51: 25000 | J51: -2200 | L51: 1.93196345863199E-11+315384.384788877i | M51: 1.93225774526298E-11+315432.425763799i | N51: 1.9318688585685E-11+315368.941752057i | O51: 1.93182178225332E-11+315361.256754375i | P51: 1.93177485509706E-11+315353.59610622i | Q51: 1.93172807711061E-11+315345.959809367i | R51: 1.93168144830479E-11+315338.347865585i | S51: 1.93163496869041E-11+315330.760276637i | T51: 1.93158863827824E-11+315323.197044282i | U51: 1.93154245707902E-11+315315.658170272i | V51: 1.93149642510344E-11+315308.143656354i | W51: 1.93145054236218E-11+315300.653504271i | X51: 1.93140480886587E-11+315293.187715758i | Y51: 1.93135922462512E-11+315285.746292546i | Z51: 1.93131378965049E-11+315278.329236361i | AA51: 1.93126850395252E-11+315270.936548921i | AB51: 1.93122336754171E-11+315263.568231942i | AC51: 1.93117838042853E-11+315256.224287133i | AD51: 1.93113354262341E-11+315248.904716196i | AE51: 1.93108885413675E-11+315241.609520829i | AF51: 1.93104431497892E-11+315234.338702725i | AG51: 1.93099992516025E-11+315227.09226357i | AH51: 1.93095568469104E-11+315219.870205046i | AI51: 1.93091159358156E-11+315212.672528829i | AJ51: 1.93086765184203E-11+315205.499236589i | AK51: 1.93082385948266E-11+315198.35032999i | AL51: 1.93078021651362E-11+315191.225810692i | AM51: 1.93073672294502E-11+315184.125680349i | AN51: 1.93069337878697E-11+315177.049940609i | AO51: 1.93065018404953E-11+315169.998593114i | AP51: 1.93060713874273E-11+315162.971639503i | AQ51: 1.93056424287657E-11+315155.969081406i | AR51: 1.930521496461E-11+315148.990920451i | AS51: 1.93047889950596E-11+315142.037158256i | AT51: 1.93043645202134E-11+315135.107796439i | AU51: 1.930394154017E-11+315128.202836608i | AV51: 1.93035200550276E-11+315121.322280367i | AW51: 1.93031000648842E-11+315114.466129315i | AX51: 1.93026815698374E-11+315107.634385045i | AY51: 1.93022645699844E-11+315100.827049145i | AZ51: 1.93018490654221E-11+315094.044123196i | BA51: 1.93014350562471E-11+315087.285608775i | BB51: 1.93010225425556E-11+315080.551507453i | BC51: 1.93006115244435E-11+315073.841820795i | BD51: 1.93002020020063E-11+315067.15655036i | BE51: 1.92997939753393E-11+315060.495697705i | BF51: 1.92993874445374E-11+315053.859264376i | BG51: 1.9298982409695E-11+315047.247251917i | BH51: 1.92985788709064E-11+315040.659661866i | BI51: 1.92981768282653E-11+315034.096495754i | BO51: -3.35290936108755+1.23861909686928i | BQ51: 12.77617845
B52: 46 | C52: 0 | D52: -305 | E52: 0 | F52: 1 | H52: 46 | I52: 25000 | J52: -2250 | L52: 1.93230618480713E-11+315440.333302507i | M52: 1.93260701148662E-11+315489.441911065i | N52: 1.93220945477682E-11+315424.54255814i | O52: 1.93216131335982E-11+315416.683687355i | P52: 1.93211332102313E-11+315408.849153264i | Q52: 1.93206547777786E-11+315401.038957678i | R52: 1.93201778363509E-11+315393.253102407i | S52: 1.93197023860585E-11+315385.491589254i | T52: 1.93192284270115E-11+315377.754420015i | U52: 1.93187559593198E-11+315370.041596481i | V52: 1.93182849830927E-11+315362.353120441i | W52: 1.93178154984394E-11+315354.688993673i | X52: 1.93173475054685E-11+315347.049217954i | Y52: 1.93168810042885E-11+315339.433795054i | Z52: 1.93164159950074E-11+315331.842726736i | AA52: 1.93159524777332E-11+315324.27601476i | AB52: 1.9315490452573E-11+315316.73366088i | AC52: 1.9315029919634E-11+315309.215666842i | AD52: 1.9314570879023E-11+315301.72203439i | AE52: 1.93141133308464E-11+315294.252765261i | AF52: 1.93136572752102E-11+315286.807861186i | AG52: 1.93132027122201E-11+315279.387323892i | AH52: 1.93127496419816E-11+315271.991155098i | AI52: 1.93122980645997E-11+315264.61935652i | AJ52: 1.93118479801792E-11+315257.271929867i | AK52: 1.93113993888244E-11+315249.948876844i | AL52: 1.93109522906393E-11+315242.65019915i | AM52: 1.93105066857278E-11+315235.375898476i | AN52: 1.93100625741931E-11+315228.125976511i | AO52: 1.93096199561384E-11+315220.900434937i | AP52: 1.93091788316662E-11+315213.699275431i | AQ52: 1.93087392008791E-11+315206.522499663i | AR52: 1.93083010638789E-11+315199.3701093i | AS52: 1.93078644207675E-11+315192.242106i | AT52: 1.93074292716461E-11+315185.13849142i | AU52: 1.93069956166158E-11+315178.059267207i | AV52: 1.93065634557773E-11+315171.004435006i | AW52: 1.93061327892308E-11+315163.973996454i | AX52: 1.93057036170765E-11+315156.967953184i | AY52: 1.93052759394139E-11+315149.986306823i | AZ52: 1.93048497563424E-11+315143.029058993i | BA52: 1.93044250679609E-11+315136.096211308i | BB52: 1.93040018743682E-11+315129.187765381i | BC52: 1.93035801756626E-11+315122.303722815i | BD52: 1.93031599719419E-11+315115.444085209i | BE52: 1.93027412633039E-11+315108.608854159i | BF52: 1.93023240498458E-11+315101.798031252i | BG52: 1.93019083316646E-11+315095.01161807i | BH52: 1.9301494108857E-11+315088.249616192i | BI52: 1.93010813815191E-11+315081.512027188i | BO52: 2.72571543630939-1.23283008499347i | BQ52: 8.949394658
B53: 47 | C53: 0 | D53: -312 | E53: 0 | F53: 1 | H53: 47 | I53: 25000 | J53: -2300 | L53: 1.93265651540272E-11+315497.523203728i | M53: 1.9329638785802E-11+315547.698866318i | N53: 1.93255765654772E-11+315481.384938262i | O53: 1.93250845059741E-11+315473.352287181i | P53: 1.93245939364709E-11+315465.34395968i | Q53: 1.93241048570811E-11+315457.359957613i | R53: 1.93236172679177E-11+315449.400282825i | S53: 1.93231311690936E-11+315441.464937158i | T53: 1.93226465607212E-11+315433.55392245i | U53: 1.93221634429128E-11+315425.667240529i | V53: 1.932168181578E-11+315417.804893223i | W53: 1.93212016794345E-11+315409.966882349i | X53: 1.93207230339872E-11+315402.153209723i | Y53: 1.93202458795491E-11+315394.363877154i | Z53: 1.93197702162307E-11+315386.598886445i | AA53: 1.93192960441419E-11+315378.858239394i | AB53: 1.93188233633927E-11+315371.141937794i | AC53: 1.93183521740926E-11+315363.449983431i | AD53: 1.93178824763506E-11+315355.782378087i | AE53: 1.93174142702756E-11+315348.139123538i | AF53: 1.9316947555976E-11+315340.520221555i | AG53: 1.93164823335599E-11+315332.925673904i | AH53: 1.93160186031352E-11+315325.355482343i | AI53: 1.93155563648093E-11+315317.809648627i | AJ53: 1.93150956186894E-11+315310.288174505i | AK53: 1.93146363648821E-11+315302.791061721i | AL53: 1.93141786034941E-11+315295.318312011i | AM53: 1.93137223346313E-11+315287.869927108i | AN53: 1.93132675583996E-11+315280.445908739i | AO53: 1.93128142749045E-11+315273.046258626i | AP53: 1.93123624842509E-11+315265.670978484i | AQ53: 1.93119121865438E-11+315258.320070023i | AR53: 1.93114633818875E-11+315250.993534949i | AS53: 1.93110160703861E-11+315243.69137496i | AT53: 1.93105702521435E-11+315236.413591752i | AU53: 1.93101259272629E-11+315229.160187011i | AV53: 1.93096830958476E-11+315221.931162421i | AW53: 1.93092417580002E-11+315214.72651966i | AX53: 1.93088019138233E-11+315207.546260399i | AY53: 1.93083635634187E-11+315200.390386305i | AZ53: 1.93079267068884E-11+315193.258899038i | BA53: 1.93074913443337E-11+315186.151800253i | BB53: 1.93070574758556E-11+315179.069091602i | BC53: 1.9306625101555E-11+315172.010774727i | BD53: 1.93061942215321E-11+315164.976851268i | BE53: 1.9305764835887E-11+315157.967322858i | BF53: 1.93053369447195E-11+315150.982191125i | BG53: 1.93049105481289E-11+315144.021457691i | BH53: 1.93044856462143E-11+315137.085124173i | BI53: 1.93040622390743E-11+315130.173192181i | BO53: 1.39335095407967-1.23932333535656i | BQ53: 3.477349211
B54: 48 | C54: 0 | D54: -319 | E54: 0 | F54: 1 | H54: 48 | I54: 25000 | J54: -2350 | L54: 1.93301444628419E-11+315555.953817591i | M54: 1.93332834233465E-11+315607.195942447i | N54: 1.93291345977091E-11+315539.468221438i | O54: 1.93286318986796E-11+315531.261884851i | P54: 1.93281306888297E-11+315523.079858455i | Q54: 1.93276309682753E-11+315514.92214414i | R54: 1.93271327371319E-11+315506.788743793i | S54: 1.93266359955147E-11+315498.679659294i | T54: 1.93261407435385E-11+315490.594892518i | U54: 1.93256469813179E-11+315482.534445335i | V54: 1.9325154708967E-11+315474.498319608i | W54: 1.93246639265997E-11+315466.486517197i | X54: 1.93241746343296E-11+315458.499039954i | Y54: 1.93236868322698E-11+315450.535889728i | Z54: 1.93232005205332E-11+315442.59706836i | AA54: 1.93227156992323E-11+315434.682577688i | AB54: 1.93222323684793E-11+315426.792419543i | AC54: 1.9321750528386E-11+315418.926595752i | AD54: 1.93212701790641E-11+315411.085108134i | AE54: 1.93207913206246E-11+315403.267958505i | AF54: 1.93203139531784E-11+315395.475148674i | AG54: 1.93198380768361E-11+315387.706680446i | AH54: 1.93193636917078E-11+315379.96255562i | AI54: 1.93188907979034E-11+315372.242775988i | AJ54: 1.93184193955324E-11+315364.547343339i | AK54: 1.9317949484704E-11+315356.876259455i | AL54: 1.9317481065527E-11+315349.229526113i | AM54: 1.931701413811E-11+315341.607145084i | AN54: 1.93165487025612E-11+315334.009118134i | AO54: 1.93160847589882E-11+315326.435447025i | AP54: 1.93156223074988E-11+315318.88613351i | AQ54: 1.93151613482E-11+315311.361179339i | AR54: 1.93147018811987E-11+315303.860586256i | AS54: 1.93142439066014E-11+315296.384356001i | AT54: 1.93137874245143E-11+315288.932490306i | AU54: 1.93133324350431E-11+315281.504990898i | AV54: 1.93128789382935E-11+315274.1018595i | AW54: 1.93124269343704E-11+315266.723097828i | AX54: 1.93119764233788E-11+315259.368707595i | AY54: 1.93115274054232E-11+315252.038690504i | AZ54: 1.93110798806076E-11+315244.733048257i | BA54: 1.93106338490359E-11+315237.451782547i | BB54: 1.93101893108116E-11+315230.194895065i | BC54: 1.93097462660378E-11+315222.962387494i | BD54: 1.93093047148173E-11+315215.754261512i | BE54: 1.93088646572526E-11+315208.570518792i | BF54: 1.93084260934458E-11+315201.411161i | BG54: 1.93079890234987E-11+315194.276189799i | BH54: 1.93075534475126E-11+315187.165606845i | BI54: 1.93071193655889E-11+315180.079413788i | BO54: -2.51493146750992-0.00755473371459278i | BQ54: 6.32493736
B55: 49 | C55: 0 | D55: -326 | E55: 0 | F55: 1 | H55: 49 | I55: 25000 | J55: -2400 | L55: 1.93337997323036E-11+315615.624455007i | M55: 1.93370039845452E-11+315667.932438237i | N55: 1.93327686024945E-11+315598.791722534i | O55: 1.93322552698664E-11+315590.411797211i | P55: 1.93317434255807E-11+315582.056168411i | Q55: 1.93312330697557E-11+315573.724838065i | R55: 1.93307242025092E-11+315565.417808098i | S55: 1.93302168239589E-11+315557.135080428i | T55: 1.93297109342218E-11+315548.87665697i | U55: 1.93292065334151E-11+315540.642539631i | V55: 1.93287036216551E-11+315532.432730314i | W55: 1.93282021990582E-11+315524.247230918i | X55: 1.93277022657402E-11+315516.086043333i | Y55: 1.93272038218168E-11+315507.949169447i | Z55: 1.9326706867403E-11+315499.83661114i | AA55: 1.9326211402614E-11+315491.74837029i | AB55: 1.93257174275641E-11+315483.684448764i | AC55: 1.93252249423677E-11+315475.64484843i | AD55: 1.93247339471387E-11+315467.629571146i | AE55: 1.93242444419906E-11+315459.638618766i | AF55: 1.93237564270367E-11+315451.671993138i | AG55: 1.93232699023899E-11+315443.729696107i | AH55: 1.93227848681627E-11+315435.811729509i | AI55: 1.93223013244674E-11+315427.918095177i | AJ55: 1.9321819271416E-11+315420.048794937i | AK55: 1.93213387091198E-11+315412.203830612i | AL55: 1.93208596376903E-11+315404.383204016i | AM55: 1.93203820572384E-11+315396.586916961i | AN55: 1.93199059678744E-11+315388.814971251i | AO55: 1.93194313697088E-11+315381.067368686i | AP55: 1.93189582628515E-11+315373.34411106i | AQ55: 1.93184866474119E-11+315365.645200161i | AR55: 1.93180165234993E-11+315357.970637773i | AS55: 1.93175478912226E-11+315350.320425674i | AT55: 1.93170807506904E-11+315342.694565635i | AU55: 1.93166151020109E-11+315335.093059423i | AV55: 1.9316150945292E-11+315327.5159088i | AW55: 1.93156882806412E-11+315319.963115521i | AX55: 1.93152271081658E-11+315312.434681337i | AY55: 1.93147674279726E-11+315304.930607993i | AZ55: 1.93143092401682E-11+315297.450897227i | BA55: 1.93138525448589E-11+315289.995550775i | BB55: 1.93133973421504E-11+315282.564570363i | BC55: 1.93129436321483E-11+315275.157957716i | BD55: 1.93124914149579E-11+315267.77571455i | BE55: 1.9312040690684E-11+315260.417842577i | BF55: 1.93115914594311E-11+315253.084343505i | BG55: 1.93111437213034E-11+315245.775219033i | BH55: 1.93106974764049E-11+315238.490470858i | BI55: 1.93102527248389E-11+315231.230100669i | BO55: 1.74887465818827-1.30826255820479i | BQ55: 4.770113491
B56: 50 | C56: 0 | D56: -333 | E56: 0 | F56: 1 | H56: 50 | I56: 25000 | J56: -2450 | L56: 1.9337530919337E-11+315676.534412792i | M56: 1.93408004255821E-11+315729.907638413i | N56: 1.93364785369997E-11+315659.35474231i | O56: 1.93359545768216E-11+315650.801326991i | P56: 1.93354321041318E-11+315642.272194254i | Q56: 1.9334911119051E-11+315633.767346067i | R56: 1.93343916216994E-11+315625.286784393i | S56: 1.9333873612197E-11+315616.83051119i | T56: 1.93333570906633E-11+315608.39852841i | U56: 1.93328420572175E-11+315599.990838i | V56: 1.93323285119787E-11+315591.607441903i | W56: 1.93318164550654E-11+315583.248342053i | X56: 1.9331305886596E-11+315574.913540381i | Y56: 1.93307968066882E-11+315566.603038814i | Z56: 1.93302892154598E-11+315558.31683927i | AA56: 1.9329783113028E-11+315550.054943664i | AB56: 1.93292784995098E-11+315541.817353906i | AC56: 1.93287753750217E-11+315533.604071898i | AD56: 1.93282737396801E-11+315525.41509954i | AE56: 1.93277735936009E-11+315517.250438724i | AF56: 1.93272749368998E-11+315509.110091337i | AG56: 1.93267777696919E-11+315500.994059261i | AH56: 1.93262820920923E-11+315492.902344374i | AI56: 1.93257879042155E-11+315484.834948545i | AJ56: 1.9325295206176E-11+315476.791873641i | AK56: 1.93248039980875E-11+315468.773121521i | AL56: 1.93243142800638E-11+315460.778694041i | AM56: 1.9323826052218E-11+315452.808593051i | AN56: 1.93233393146633E-11+315444.862820393i | AO56: 1.93228540675121E-11+315436.941377906i | AP56: 1.93223703108769E-11+315429.044267424i | AQ56: 1.93218880448695E-11+315421.171490774i | AR56: 1.93214072696015E-11+315413.323049778i | AS56: 1.93209279851842E-11+315405.498946253i | AT56: 1.93204501917287E-11+315397.69918201i | AU56: 1.93199738893454E-11+315389.923758855i | AV56: 1.93194990781448E-11+315382.172678588i | AW56: 1.93190257582366E-11+315374.445943003i | AX56: 1.93185539297307E-11+315366.743553892i | AY56: 1.93180835927361E-11+315359.065513036i | AZ56: 1.93176147473619E-11+315351.411822215i | BA56: 1.93171473937167E-11+315343.782483202i | BB56: 1.93166815319088E-11+315336.177497764i | BC56: 1.93162171620461E-11+315328.596867664i | BD56: 1.93157542842361E-11+315321.040594657i | BE56: 1.93152928985862E-11+315313.508680495i | BF56: 1.93148330052034E-11+315306.001126925i | BG56: 1.93143746041941E-11+315298.517935684i | BH56: 1.93139176956646E-11+315291.05910851i | BI56: 1.9313462279721E-11+315283.624647129i | BO56: 0.497507749803439+0.0429962549133696i | BQ56: 0.2493626391
H57: 51 | I57: 25000 | J57: -2500 | L57: 1.93413379800058E-11+315738.682973704i | M57: 1.93446727017824E-11+315793.120813678i | N57: 1.9340264357529E-11+315721.156567456i | O57: 1.93397297759701E-11+315712.42976285i | P57: 1.93391966810286E-11+315703.727226609i | Q57: 1.93386650728275E-11+315695.048960739i | R57: 1.93381349514894E-11+315686.394967242i | S57: 1.93376063171366E-11+315677.765248113i | T57: 1.9337079169891E-11+315669.159805344i | U57: 1.93365535098743E-11+315660.578640921i | V57: 1.93360293372077E-11+315652.021756823i | W57: 1.93355066520122E-11+315643.489155025i | X57: 1.93349854544085E-11+315634.980837496i | Y57: 1.93344657445168E-11+315626.4968062i | Z57: 1.93339475224571E-11+315618.037063095i | AA57: 1.93334307883492E-11+315609.601610136i | AB57: 1.93329155423121E-11+315601.190449269i | AC57: 1.93324017844651E-11+315592.803582436i | AD57: 1.93318895149266E-11+315584.441011575i | AE57: 1.93313787338151E-11+315576.102738618i | AF57: 1.93308694412484E-11+315567.788765489i | AG57: 1.93303616373443E-11+315559.49909411i | AH57: 1.93298553222202E-11+315551.233726396i | AI57: 1.93293504959928E-11+315542.992664257i | AJ57: 1.93288471587791E-11+315534.775909598i | AK57: 1.93283453106951E-11+315526.583464316i | AL57: 1.93278449518571E-11+315518.415330307i | AM57: 1.93273460823806E-11+315510.271509458i | AN57: 1.93268487023809E-11+315502.152003651i | AO57: 1.93263528119731E-11+315494.056814765i | AP57: 1.93258584112718E-11+315485.98594467i | AQ57: 1.93253655003913E-11+315477.939395234i | AR57: 1.93248740794457E-11+315469.917168318i | AS57: 1.93243841485487E-11+315461.919265776i | AT57: 1.93238957078135E-11+315453.94568946i | AU57: 1.93234087573531E-11+315445.996441213i | AV57: 1.93229232972803E-11+315438.071522876i | AW57: 1.93224393277073E-11+315430.170936281i | AX57: 1.93219568487462E-11+315422.294683257i | AY57: 1.93214758605086E-11+315414.442765628i | AZ57: 1.93209963631059E-11+315406.61518521i | BA57: 1.9320518356649E-11+315398.811943816i | BB57: 1.93200418412487E-11+315391.033043252i | BC57: 1.93195668170152E-11+315383.27848532i | BD57: 1.93190932840586E-11+315375.548271814i | BE57: 1.93186212424885E-11+315367.842404525i | BF57: 1.93181506924142E-11+315360.160885238i | BG57: 1.93176816339447E-11+315352.503715732i | BH57: 1.93172140671887E-11+315344.870897781i | BI57: 1.93167479922546E-11+315337.262433153i | BO57: -0.814341922601553+0.258263284626476i | BQ57: 0.7298526911
H58: 52 | I58: 25000 | J58: -2550 | L58: 1.93452208695152E-11+315802.069406488i | M58: 1.9348620767615E-11+315857.571220758i | N58: 1.93441260195279E-11+315784.196470634i | O58: 1.93435808228774E-11+315775.296379412i | P58: 1.93430371119567E-11+315766.420542063i | Q58: 1.9342494886891E-11+315757.568960631i | R58: 1.93419541478052E-11+315748.741637157i | S58: 1.93414148948241E-11+315739.938573676i | T58: 1.93408771280719E-11+315731.159772216i | U58: 1.93403408476725E-11+315722.405234802i | V58: 1.93398060537497E-11+315713.674963451i | W58: 1.93392727464268E-11+315704.968960178i | X58: 1.93387409258267E-11+315696.287226989i | Y58: 1.93382105920721E-11+315687.629765888i | Z58: 1.93376817452853E-11+315678.99657887i | AA58: 1.93371543855884E-11+315670.387667928i | AB58: 1.93366285131029E-11+315661.803035049i | AC58: 1.93361041279503E-11+315653.242682211i | AD58: 1.93355812302516E-11+315644.706611392i | AE58: 1.93350598201274E-11+315636.194824562i | AF58: 1.93345398976981E-11+315627.707323684i | AG58: 1.93340214630837E-11+315619.244110718i | AH58: 1.93335045164038E-11+315610.805187619i | AI58: 1.9332989057778E-11+315602.390556334i | AJ58: 1.93324750873251E-11+315594.000218806i | AK58: 1.93319626051638E-11+315585.634176974i | AL58: 1.93314516114126E-11+315577.292432769i | AM58: 1.93309421061895E-11+315568.974988118i | AN58: 1.93304340896122E-11+315560.681844944i | AO58: 1.9329927561798E-11+315552.413005161i | AP58: 1.93294225228639E-11+315544.16847068i | AQ58: 1.93289189729268E-11+315535.948243407i | AR58: 1.9328416912103E-11+315527.752325241i | AS58: 1.93279163405084E-11+315519.580718077i | AT58: 1.93274172582589E-11+315511.433423804i | AU58: 1.93269196654697E-11+315503.310444305i | AV58: 1.93264235622561E-11+315495.211781458i | AW58: 1.93259289487325E-11+315487.137437136i | AX58: 1.93254358250135E-11+315479.087413206i | AY58: 1.93249441912132E-11+315471.06171153i | AZ58: 1.93244540474451E-11+315463.060333964i | BA58: 1.93239653938227E-11+315455.08328236i | BB58: 1.9323478230459E-11+315447.130558562i | BC58: 1.93229925574668E-11+315439.202164411i | BD58: 1.93225083749584E-11+315431.298101741i | BE58: 1.93220256830459E-11+315423.418372381i | BF58: 1.9321544481841E-11+315415.562978156i | BG58: 1.93210647714551E-11+315407.731920882i | BH58: 1.93205865519991E-11+315399.925202374i | BI58: 1.9320109823584E-11+315392.142824438i | BO58: -2.13393990079079+1.57863286661934i | BQ58: 7.045781228
H59: 53 | I59: 25000 | J59: -2600 | L59: 1.93491795422143E-11+315866.692965914i | M59: 1.93526445766951E-11+315923.258102441i | N59: 1.93480634775848E-11+315848.473710525i | O59: 1.93475076722519E-11+315839.400437312i | P59: 1.93469533517442E-11+315830.351403206i | Q59: 1.93464005161894E-11+315821.326610291i | R59: 1.93458491657149E-11+315812.326060645i | S59: 1.93452993004474E-11+315803.349756342i | T59: 1.93447509205138E-11+315794.397699448i | U59: 1.93442040260404E-11+315785.469892026i | V59: 1.93436586171531E-11+315776.566336132i | W59: 1.93431146939776E-11+315767.687033818i | X59: 1.93425722566392E-11+315758.831987131i | Y59: 1.93420313052629E-11+315750.00119811i | Z59: 1.93414918399735E-11+315741.194668791i | AA59: 1.93409538608953E-11+315732.412401204i | AB59: 1.93404173681523E-11+315723.654397373i | AC59: 1.93398823618681E-11+315714.920659319i | AD59: 1.93393488421662E-11+315706.211189054i | AE59: 1.93388168091696E-11+315697.525988588i | AF59: 1.9338286263001E-11+315688.865059923i | AG59: 1.93377572037828E-11+315680.228405057i | AH59: 1.9337229631637E-11+315671.616025983i | AI59: 1.93367035466853E-11+315663.027924687i | AJ59: 1.93361789490492E-11+315654.464103151i | AK59: 1.93356558388497E-11+315645.924563352i | AL59: 1.93351342162075E-11+315637.40930726i | AM59: 1.93346140812429E-11+315628.91833684i | AN59: 1.93340954340762E-11+315620.451654053i | AO59: 1.9333578274827E-11+315612.009260853i | AP59: 1.93330626036146E-11+315603.59115919i | AQ59: 1.93325484205583E-11+315595.197351007i | AR59: 1.93320357257768E-11+315586.827838242i | AS59: 1.93315245193883E-11+315578.482622829i | AT59: 1.93310148015111E-11+315570.161706696i | AU59: 1.93305065722629E-11+315561.865091765i | AV59: 1.93299998317611E-11+315553.592779951i | AW59: 1.93294945801227E-11+315545.344773168i | AX59: 1.93289908174646E-11+315537.12107332i | AY59: 1.93284885439032E-11+315528.921682309i | AZ59: 1.93279877595545E-11+315520.746602029i | BA59: 1.93274884645343E-11+315512.59583437i | BB59: 1.93269906589581E-11+315504.469381217i | BC59: 1.93264943429409E-11+315496.367244448i | BD59: 1.93259995165975E-11+315488.289425936i | BE59: 1.93255061800423E-11+315480.23592755i | BF59: 1.93250143333894E-11+315472.206751153i | BG59: 1.93245239767526E-11+315464.201898601i | BH59: 1.93240351102453E-11+315456.221371746i | BI59: 1.93235477339806E-11+315448.265172434i | BO59: 0.0972773741983696-1.78287516186293i | BQ59: 3.18810673
H60: 54 | I60: 25000 | J60: -2650 | L60: 1.93532139515991E-11+315932.552892826i | M60: 1.93567440817871E-11+315990.180687627i | N60: 1.93520766854344E-11+315913.987531867i | O60: 1.93515102779475E-11+315904.741183237i | P60: 1.93509453543647E-11+315895.519058676i | Q60: 1.93503819148159E-11+315886.321160307i | R60: 1.93498199594309E-11+315877.147490246i | S60: 1.93492594883388E-11+315867.998050604i | T60: 1.93487005016688E-11+315858.872843487i | U60: 1.93481429995494E-11+315849.771870994i | V60: 1.9347586982109E-11+315840.695135221i | W60: 1.93470324494757E-11+315831.642638258i | X60: 1.93464794017769E-11+315822.614382188i | Y60: 1.93459278391403E-11+315813.610369092i | Z60: 1.93453777616926E-11+315804.630601041i | AA60: 1.93448291695608E-11+315795.675080105i | AB60: 1.9344282062871E-11+315786.743808347i | AC60: 1.93437364417494E-11+315777.836787823i | AD60: 1.93431923063216E-11+315768.954020587i | AE60: 1.93426496567132E-11+315760.095508685i | AF60: 1.9342108493049E-11+315751.261254158i | AG60: 1.93415688154538E-11+315742.451259043i | AH60: 1.93410306240521E-11+315733.66552537i | AI60: 1.93404939189679E-11+315724.904055165i | AJ60: 1.93399587003249E-11+315716.166850448i | AK60: 1.93394249682466E-11+315707.453913233i | AL60: 1.9338892722856E-11+315698.76524553i | AM60: 1.93383619642759E-11+315690.100849342i | AN60: 1.93378326926287E-11+315681.460726669i | AO60: 1.93373049080365E-11+315672.844879502i | AP60: 1.93367786106211E-11+315664.253309831i | AQ60: 1.93362538005039E-11+315655.686019637i | AR60: 1.93357304778061E-11+315647.143010897i | AS60: 1.93352086426483E-11+315638.624285584i | AT60: 1.9334688295151E-11+315630.129845662i | AU60: 1.93341694354344E-11+315621.659693093i | AV60: 1.93336520636182E-11+315613.213829833i | AW60: 1.93331361798219E-11+315604.792257831i | AX60: 1.93326217841646E-11+315596.394979032i | AY60: 1.93321088767651E-11+315588.021995375i | AZ60: 1.93315974577418E-11+315579.673308794i | BA60: 1.93310875272129E-11+315571.348921217i | BB60: 1.93305790852962E-11+315563.048834568i | BC60: 1.93300721321091E-11+315554.773050763i | BD60: 1.93295666677689E-11+315546.521571716i | BE60: 1.93290626923922E-11+315538.294399332i | BF60: 1.93285602060955E-11+315530.091535514i | BG60: 1.93280592089951E-11+315521.912982157i | BH60: 1.93275597012066E-11+315513.758741151i | BI60: 1.93270616828456E-11+315505.628814381i | BO60: -1.16635994192913+2.50417330294621i | BQ60: 7.631279445
H61: 55 | I61: 25000 | J61: -2700 | L61: 1.9357324050315E-11+315999.64841418i | M61: 1.9360919234807E-11+316058.338191368i | N61: 1.935616559596E-11+315980.737165501i | O61: 1.93555885929666E-11+315971.31784997i | P61: 1.93550130729394E-11+315961.922743201i | Q61: 1.93544390360109E-11+315952.551847351i | R61: 1.93538664823129E-11+315943.205164577i | S61: 1.93532954119772E-11+315933.882697026i | T61: 1.93527258251349E-11+315924.584446843i | U61: 1.93521577219171E-11+315915.310416166i | V61: 1.93515911024545E-11+315906.060607127i | W61: 1.93510259668774E-11+315896.835021855i | X61: 1.93504623153159E-11+315887.633662472i | Y61: 1.93499001478995E-11+315878.456531095i | Z61: 1.93493394647577E-11+315869.303629835i | AA61: 1.93487802660195E-11+315860.1749608i | AB61: 1.93482225518136E-11+315851.070526089i | AC61: 1.93476663222684E-11+315841.9903278i | AD61: 1.93471115775119E-11+315832.934368022i | AE61: 1.93465583176719E-11+315823.90264884i | AF61: 1.93460065428757E-11+315814.895172335i | AG61: 1.93454562532504E-11+315805.911940579i | AH61: 1.93449074489228E-11+315796.952955643i | AI61: 1.93443601300193E-11+315788.018219591i | AJ61: 1.9343814296666E-11+315779.107734479i | AK61: 1.93432699489886E-11+315770.221502362i | AL61: 1.93427270871125E-11+315761.359525287i | AM61: 1.93421857111629E-11+315752.521805296i | AN61: 1.93416458212646E-11+315743.708344426i | AO61: 1.93411074175419E-11+315734.919144709i | AP61: 1.9340570500119E-11+315726.154208171i | AQ61: 1.93400350691198E-11+315717.413536832i | AR61: 1.93395011246675E-11+315708.697132708i | AS61: 1.93389686668854E-11+315700.004997808i | AT61: 1.93384376958963E-11+315691.337134139i | AU61: 1.93379082118227E-11+315682.693543699i | AV61: 1.93373802147866E-11+315674.074228481i | AW61: 1.93368537049099E-11+315665.479190474i | AX61: 1.93363286823142E-11+315656.908431663i | AY61: 1.93358051471204E-11+315648.361954023i | AZ61: 1.93352830994495E-11+315639.839759528i | BA61: 1.93347625394219E-11+315631.341850144i | BB61: 1.93342434671579E-11+315622.868227834i | BC61: 1.93337258827772E-11+315614.418894553i | BD61: 1.93332097863993E-11+315605.993852252i | BE61: 1.93326951781434E-11+315597.593102876i | BF61: 1.93321820581284E-11+315589.216648366i | BG61: 1.93316704264727E-11+315580.864490656i | BH61: 1.93311602832945E-11+315572.536631675i | BI61: 1.93306516287118E-11+315564.233073347i | BO61: 1.05595956164394-0.421447288279535i | BQ61: 1.292668413
H62: 56 | I62: 25000 | J62: -2750 | L62: 1.93615097901596E-11+316067.978743093i | M62: 1.93651699868256E-11+316127.729814914i | N62: 1.93603301611963E-11+316048.721828414i | O62: 1.93597425694624E-11+316039.129656437i | P62: 1.93591564597405E-11+316029.561677642i | Q62: 1.93585718321652E-11+316020.017894224i | R62: 1.93579886868706E-11+316010.498308378i | S62: 1.93574070239908E-11+316001.002922289i | T62: 1.93568268436595E-11+315991.531738139i | U62: 1.93562481460098E-11+315982.084758104i | V62: 1.93556709311749E-11+315972.661984356i | W62: 1.93550951992873E-11+315963.26341906i | X62: 1.93545209504795E-11+315953.889064375i | Y62: 1.93539481848833E-11+315944.538922459i | Z62: 1.93533769026306E-11+315935.212995459i | AA62: 1.93528071038527E-11+315925.911285521i | AB62: 1.93522387886806E-11+315916.633794783i | AC62: 1.93516719572449E-11+315907.38052538i | AD62: 1.93511066096763E-11+315898.15147944i | AE62: 1.93505427461045E-11+315888.946659086i | AF62: 1.93499803666595E-11+315879.766066435i | AG62: 1.93494194714706E-11+315870.609703601i | AH62: 1.93488600606668E-11+315861.477572691i | AI62: 1.9348302134377E-11+315852.369675806i | AJ62: 1.93477456927295E-11+315843.286015042i | AK62: 1.93471907358525E-11+315834.226592492i | AL62: 1.93466372638738E-11+315825.191410241i | AM62: 1.93460852769207E-11+315816.180470368i | AN62: 1.93455347751204E-11+315807.19377495i | AO62: 1.93449857585997E-11+315798.231326057i | AP62: 1.9344438227485E-11+315789.293125752i | AQ62: 1.93438921819025E-11+315780.379176094i | AR62: 1.9343347621978E-11+315771.489479138i | AS62: 1.93428045478369E-11+315762.624036932i | AT62: 1.93422629596045E-11+315753.782851518i | AU62: 1.93417228574055E-11+315744.965924935i | AV62: 1.93411842413644E-11+315736.173259215i | AW62: 1.93406471116054E-11+315727.404856384i | AX62: 1.93401114682523E-11+315718.660718465i | AY62: 1.93395773114286E-11+315709.940847473i | AZ62: 1.93390446412576E-11+315701.245245419i | BA62: 1.9338513457862E-11+315692.573914308i | BB62: 1.93379837613644E-11+315683.926856141i | BC62: 1.93374555518869E-11+315675.304072913i | BD62: 1.93369288295514E-11+315666.705566612i | BE62: 1.93364035944795E-11+315658.131339222i | BF62: 1.93358798467924E-11+315649.581392723i | BG62: 1.93353575866108E-11+315641.055729087i | BH62: 1.93348368140554E-11+315632.554350281i | BI62: 1.93343175292464E-11+315624.077258269i | BO62: 0.0266301280282318+0.033810401927487i | BQ62: 0.001852306997
H63: 57 | I63: 25000 | J63: -2800 | L63: 1.93657711220853E-11+316137.543078888i | M63: 1.93694962880708E-11+316198.35474576i | N63: 1.9364570332332E-11+316117.940723785i | O63: 1.93639721587422E-11+316108.175807747i | P63: 1.93633754661934E-11+316098.43506904i | Q63: 1.93627802548225E-11+316088.7185099i | R63: 1.93621865247661E-11+316079.026132556i | S63: 1.93615942761605E-11+316069.357939233i | T63: 1.93610035091417E-11+316059.71393215i | U63: 1.93604142238452E-11+316050.094113521i | V63: 1.93598264204064E-11+316040.498485556i | W63: 1.93592400989603E-11+316030.927050457i | X63: 1.93586552596415E-11+316021.379810423i | Y63: 1.93580719025843E-11+316011.856767646i | Z63: 1.93574900279228E-11+316002.357924315i | AA63: 1.93569096357906E-11+315992.883282612i | AB63: 1.93563307263211E-11+315983.432844714i | AC63: 1.93557532996474E-11+315974.006612792i | AD63: 1.93551773559021E-11+315964.604589013i | AE63: 1.93546028952176E-11+315955.226775538i | AF63: 1.9354029917726E-11+315945.873174522i | AG63: 1.93534584235591E-11+315936.543788117i | AH63: 1.93528884128481E-11+315927.238618468i | AI63: 1.93523198857243E-11+315917.957667714i | AJ63: 1.93517528423184E-11+315908.70093799i | AK63: 1.93511872827607E-11+315899.468431425i | AL63: 1.93506232071815E-11+315890.260150143i | AM63: 1.93500606157104E-11+315881.076096262i | AN63: 1.9349499508477E-11+315871.916271897i | AO63: 1.93489398856103E-11+315862.780679154i | AP63: 1.93483817472392E-11+315853.669320137i | AQ63: 1.93478250934921E-11+315844.582196942i | AR63: 1.93472699244972E-11+315835.519311662i | AS63: 1.93467162403823E-11+315826.480666383i | AT63: 1.93461640412749E-11+315817.466263187i | AU63: 1.93456133273022E-11+315808.476104149i | AV63: 1.93450640985909E-11+315799.510191339i | AW63: 1.93445163552677E-11+315790.568526824i | AX63: 1.93439700974586E-11+315781.651112662i | AY63: 1.93434253252895E-11+315772.757950909i | AZ63: 1.9342882038886E-11+315763.889043614i | BA63: 1.93423402383732E-11+315755.044392819i | BB63: 1.93417999238761E-11+315746.224000564i | BC63: 1.93412610955191E-11+315737.427868882i | BD63: 1.93407237534265E-11+315728.6559998i | BE63: 1.93401878977222E-11+315719.908395341i | BF63: 1.93396535285296E-11+315711.185057522i | BG63: 1.93391206459721E-11+315702.485988354i | BH63: 1.93385892501725E-11+315693.811189843i | BI63: 1.93380593412534E-11+315685.160663991i | BO63: 0.124225116604721-1.77348054059547i | BQ63: 3.160665107
H64: 58 | I64: 25000 | J64: -2850 | L64: 1.93701079962026E-11+316208.340607137i | M64: 1.93738980879309E-11+316270.212157692i | N64: 1.93688860597131E-11+316188.393041034i | O64: 1.93682773112695E-11+316178.455495243i | P64: 1.93676700428795E-11+316168.542110664i | Q64: 1.93670642546824E-11+316158.65288957i | R64: 1.9366459946817E-11+316148.787834229i | S64: 1.93658571194218E-11+316138.946946903i | T64: 1.93652557726353E-11+316129.13022985i | U64: 1.93646559065953E-11+316119.33768532i | V64: 1.93640575214394E-11+316109.56931556i | W64: 1.93634606173049E-11+316099.825122812i | X64: 1.93628651943288E-11+316090.105109311i | Y64: 1.93622712526477E-11+316080.409277288i | Z64: 1.93616787923979E-11+316070.737628969i | AA64: 1.93610878137155E-11+316061.090166573i | AB64: 1.93604983167362E-11+316051.466892316i | AC64: 1.93599103015952E-11+316041.867808406i | AD64: 1.93593237684275E-11+316032.292917049i | AE64: 1.9358738717368E-11+316022.742220442i | AF64: 1.9358155148551E-11+316013.215720781i | AG64: 1.93575730621104E-11+316003.713420253i | AH64: 1.93569924581802E-11+315994.235321041i | AI64: 1.93564133368936E-11+315984.781425323i | AJ64: 1.93558356983838E-11+315975.351735271i | AK64: 1.93552595427834E-11+315965.946253054i | AL64: 1.9354684870225E-11+315956.564980832i | AM64: 1.93541116808407E-11+315947.207920762i | AN64: 1.93535399747622E-11+315937.875074995i | AO64: 1.93529697521209E-11+315928.566445678i | AP64: 1.9352401013048E-11+315919.282034951i | AQ64: 1.93518337576744E-11+315910.021844949i | AR64: 1.93512679861304E-11+315900.785877803i | AS64: 1.93507036985463E-11+315891.574135636i | AT64: 1.93501408950519E-11+315882.386620569i | AU64: 1.93495795757766E-11+315873.223334715i | AV64: 1.93490197408496E-11+315864.084280183i | AW64: 1.93484613903999E-11+315854.969459077i | AX64: 1.93479045245558E-11+315845.878873493i | AY64: 1.93473491434456E-11+315836.812525526i | AZ64: 1.93467952471972E-11+315827.770417263i | BA64: 1.93462428359381E-11+315818.752550784i | BB64: 1.93456919097954E-11+315809.758928168i | BC64: 1.93451424688962E-11+315800.789551485i | BD64: 1.93445945133669E-11+315791.844422801i | BE64: 1.93440480433338E-11+315782.923544178i | BF64: 1.93435030589228E-11+315774.026917669i | BG64: 1.93429595602594E-11+315765.154545326i | BH64: 1.93424175474689E-11+315756.306429192i | BI64: 1.93418770206762E-11+315747.482571307i | BO64: 2.45093232062777-0.0300570034208054i | BQ64: 6.007972664
H65: 59 | I65: 25000 | J65: -2900 | L65: 1.93745203617823E-11+316280.370499711i | M65: 1.93783753349574E-11+316343.301210836i | N65: 1.93732772928452E-11+316260.077955862i | O65: 1.93726579766675E-11+316249.967896543i | P65: 1.93720401395396E-11+316239.88198205i | Q65: 1.9371423781603E-11+316229.820214692i | R65: 1.9370808902999E-11+316219.782596776i | S65: 1.93701955038683E-11+316209.7691306i | T65: 1.93695835843516E-11+316199.77981846i | U65: 1.9368973144589E-11+316189.814662644i | V65: 1.93683641847206E-11+316179.873665436i | W65: 1.93677567048859E-11+316169.956829117i | X65: 1.93671507052241E-11+316160.064155958i | Y65: 1.93665461858742E-11+316150.195648228i | Z65: 1.93659431469749E-11+316140.35130819i | AA65: 1.93653415886644E-11+316130.531138102i | AB65: 1.93647415110807E-11+316120.735140217i | AC65: 1.93641429143615E-11+316110.963316781i | AD65: 1.93635457986441E-11+316101.215670037i | AE65: 1.93629501640656E-11+316091.492202222i | AF65: 1.93623560107626E-11+316081.792915565i | AG65: 1.93617633388714E-11+316072.117812295i | AH65: 1.93611721485283E-11+316062.466894632i | AI65: 1.93605824398687E-11+316052.840164791i | AJ65: 1.93599942130282E-11+316043.237624982i | AK65: 1.93594074681419E-11+316033.659277411i | AL65: 1.93588222053444E-11+316024.105124277i | AM65: 1.93582384247702E-11+316014.575167776i | AN65: 1.93576561265534E-11+316005.069410094i | AO65: 1.93570753108278E-11+315995.587853418i | AP65: 1.93564959777268E-11+315986.130499925i | AQ65: 1.93559181273836E-11+315976.697351788i | AR65: 1.93553417599309E-11+315967.288411176i | AS65: 1.93547668755013E-11+315957.903680251i | AT65: 1.93541934742269E-11+315948.543161171i | AU65: 1.93536215562395E-11+315939.206856086i | AV65: 1.93530511216706E-11+315929.894767145i | AW65: 1.93524821706513E-11+315920.606896489i | AX65: 1.93519147033127E-11+315911.343246253i | AY65: 1.93513487197851E-11+315902.103818568i | AZ65: 1.93507842201987E-11+315892.88861556i | BA65: 1.93502212046835E-11+315883.697639349i | BB65: 1.9349659673369E-11+315874.53089205i | BC65: 1.93490996263844E-11+315865.388375772i | BD65: 1.93485410638586E-11+315856.270092619i | BE65: 1.93479839859201E-11+315847.17604469i | BF65: 1.93474283926973E-11+315838.106234078i | BG65: 1.93468742843179E-11+315829.060662872i | BH65: 1.93463216609097E-11+315820.039333154i | BI65: 1.93457705225998E-11+315811.042247002i | BO65: -1.66694373759952-1.04591391999395i | BQ65: 3.872637352
H66: 60 | I66: 25000 | J66: -2950 | L66: 1.9379008167259E-11+316353.631914827i | M66: 1.93829279768678E-11+316417.621051704i | N66: 1.93777439803968E-11+316332.994630306i | O66: 1.93771141037217E-11+316322.712175595i | P66: 1.93764857050762E-11+316312.453849056i | Q66: 1.93758587846042E-11+316302.219653036i | R66: 1.93752333424491E-11+316292.009589879i | S66: 1.93746093787541E-11+316281.82366192i | T66: 1.9373986893662E-11+316271.661871492i | U66: 1.93733658873154E-11+316261.524220922i | V66: 1.93727463598564E-11+316251.410712531i | W66: 1.9372128311427E-11+316241.321348635i | X66: 1.93715117421688E-11+316231.256131546i | Y66: 1.93708966522228E-11+316221.215063568i | Z66: 1.93702830417302E-11+316211.198147003i | AA66: 1.93696709108315E-11+316201.205384146i | AB66: 1.93690602596669E-11+316191.236777286i | AC66: 1.93684510883765E-11+316181.29232871i | AD66: 1.93678433970998E-11+316171.372040695i | AE66: 1.93672371859762E-11+316161.475915517i | AF66: 1.93666324551447E-11+316151.603955444i | AG66: 1.9366029204744E-11+316141.756162741i | AH66: 1.93654274349123E-11+316131.932539665i | AI66: 1.93648271457878E-11+316122.13308847i | AJ66: 1.93642283375081E-11+316112.357811404i | AK66: 1.93636310102107E-11+316102.60671071i | AL66: 1.93630351640325E-11+316092.879788625i | AM66: 1.93624407991104E-11+316083.177047381i | AN66: 1.93618479155806E-11+316073.498489206i | AO66: 1.93612565135794E-11+316063.84411632i | AP66: 1.93606665932425E-11+316054.21393094i | AQ66: 1.93600781547053E-11+316044.607935277i | AR66: 1.93594911981029E-11+316035.026131538i | AS66: 1.93589057235702E-11+316025.468521921i | AT66: 1.93583217312416E-11+316015.935108623i | AU66: 1.93577392212513E-11+316006.425893834i | AV66: 1.93571581937331E-11+315996.940879738i | AW66: 1.93565786488204E-11+315987.480068514i | AX66: 1.93560005866465E-11+315978.043462337i | AY66: 1.93554240073442E-11+315968.631063374i | AZ66: 1.93548489110461E-11+315959.24287379i | BA66: 1.93542752978842E-11+315949.878895743i | BB66: 1.93537031679906E-11+315940.539131385i | BC66: 1.93531325214967E-11+315931.223582863i | BD66: 1.93525633585338E-11+315921.932252321i | BE66: 1.93519956792328E-11+315912.665141894i | BF66: 1.93514294837242E-11+315903.422253715i | BG66: 1.93508647721383E-11+315894.203589909i | BH66: 1.9350301544605E-11+315885.009152598i | BI66: 1.93497398012539E-11+315875.838943896i | BO66: -0.233747407321922+2.03045116319633i | BQ66: 4.177369777
H67: 61 | I67: 25000 | J67: -3000 | L67: 1.93835713602338E-11+316428.123997096i | M67: 1.93875559605489E-11+316493.170813246i | N67: 1.93822860702019E-11+316407.14221278i | O67: 1.93816456403828E-11+316396.687482717i | P67: 1.93810066875568E-11+316386.256863906i | Q67: 1.93803692118701E-11+316375.850358732i | R67: 1.93797332134683E-11+316365.467969574i | S67: 1.9379098692497E-11+316355.109698807i | T67: 1.93784656491013E-11+316344.7755488i | U67: 1.9377834083426E-11+316334.465521917i | V67: 1.93772039956156E-11+316324.179620516i | W67: 1.93765753858143E-11+316313.917846952i | X67: 1.93759482541658E-11+316303.680203572i | Y67: 1.93753226008138E-11+316293.466692719i | Z67: 1.93746984259014E-11+316283.277316732i | AA67: 1.93740757295716E-11+316273.112077943i | AB67: 1.93734545119669E-11+316262.970978679i | AC67: 1.93728347732296E-11+316252.854021264i | AD67: 1.93722165135016E-11+316242.761208012i | AE67: 1.93715997329245E-11+316232.692541238i | AF67: 1.93709844316396E-11+316222.648023246i | AG67: 1.93703706097879E-11+316212.627656339i | AH67: 1.936975826751E-11+316202.631442812i | AI67: 1.93691474049463E-11+316192.659384955i | AJ67: 1.93685380222367E-11+316182.711485056i | AK67: 1.9367930119521E-11+316172.787745393i | AL67: 1.93673236969384E-11+316162.888168242i | AM67: 1.93667187546281E-11+316153.012755873i | AN67: 1.93661152927288E-11+316143.161510549i | AO67: 1.93655133113788E-11+316133.334434532i | AP67: 1.93649128107163E-11+316123.531530073i | AQ67: 1.93643137908789E-11+316113.752799423i | AR67: 1.93637162520042E-11+316103.998244824i | AS67: 1.93631201942292E-11+316094.267868515i | AT67: 1.93625256176906E-11+316084.561672729i | AU67: 1.93619325225251E-11+316074.879659693i | AV67: 1.93613409088686E-11+316065.22183163i | AW67: 1.9360750776857E-11+316055.588190757i | AX67: 1.93601621266259E-11+316045.978739285i | AY67: 1.93595749583103E-11+316036.393479422i | AZ67: 1.93589892720451E-11+316026.832413367i | BA67: 1.93584050679649E-11+316017.295543318i | BB67: 1.93578223462037E-11+316007.782871466i | BC67: 1.93572411068956E-11+315998.294399994i | BD67: 1.9356661350174E-11+315988.830131084i | BE67: 1.93560830761721E-11+315979.390066909i | BF67: 1.93555062850229E-11+315969.974209641i | BG67: 1.93549309768589E-11+315960.582561442i | BH67: 1.93543571518124E-11+315951.215124472i | BI67: 1.93537848100152E-11+315941.871900884i | BO67: 0.0731450805356566-0.0908970665416494i | BQ67: 0.01361247951
H68: 62 | I68: 25000 | J68: -3050 | L68: 1.93882098874771E-11+316503.845877571i | M68: 1.93922592320594E-11+316569.949614895i | N68: 1.93869035092635E-11+316482.519838128i | O68: 1.93862525337698E-11+316471.892954651i | P68: 1.93856030342166E-11+316461.29016524i | Q68: 1.93849550107522E-11+316450.711472318i | R68: 1.93843084635246E-11+316440.156878301i | S68: 1.93836633926816E-11+316429.626385601i | T68: 1.93830197983705E-11+316419.119996624i | U68: 1.93823776807384E-11+316408.637713772i | V68: 1.93817370399322E-11+316398.17953944i | W68: 1.93810978760983E-11+316387.745476018i | X68: 1.93804601893827E-11+316377.335525893i | Y68: 1.93798239799313E-11+316366.949691445i | Z68: 1.93791892478897E-11+316356.587975048i | AA68: 1.93785559934029E-11+316346.250379073i | AB68: 1.93779242166158E-11+316335.936905885i | AC68: 1.9377293917673E-11+316325.647557842i | AD68: 1.93766650967186E-11+316315.3823373i | AE68: 1.93760377538967E-11+316305.141246607i | AF68: 1.93754118893507E-11+316294.924288108i | AG68: 1.93747875032239E-11+316284.73146414i | AH68: 1.93741645956593E-11+316274.562777037i | AI68: 1.93735431667994E-11+316264.418229127i | AJ68: 1.93729232167867E-11+316254.297822734i | AK68: 1.93723047457629E-11+316244.201560175i | AL68: 1.93716877538699E-11+316234.129443763i | AM68: 1.93710722412489E-11+316224.081475804i | AN68: 1.9370458208041E-11+316214.057658601i | AO68: 1.93698456543868E-11+316204.05799445i | AP68: 1.93692345804268E-11+316194.082485644i | AQ68: 1.93686249863009E-11+316184.131134468i | AR68: 1.93680168721489E-11+316174.203943203i | AS68: 1.93674102381103E-11+316164.300914126i | AT68: 1.9366805084324E-11+316154.422049506i | AU68: 1.93662014109289E-11+316144.567351609i | AV68: 1.93655992180634E-11+316134.736822695i | AW68: 1.93649985058657E-11+316124.930465019i | AX68: 1.93643992744734E-11+316115.14828083i | AY68: 1.93638015240242E-11+316105.390272373i | AZ68: 1.93632052546551E-11+316095.656441886i | BA68: 1.9362610466503E-11+316085.946791603i | BB68: 1.93620171597044E-11+316076.261323752i | BC68: 1.93614253343954E-11+316066.600040557i | BD68: 1.9360834990712E-11+316056.962944235i | BE68: 1.93602461287897E-11+316047.350036999i | BF68: 1.93596587487636E-11+316037.761321057i | BG68: 1.93590728507687E-11+316028.19679861i | BH68: 1.93584884349395E-11+316018.656471854i | BI68: 1.93579055014103E-11+316009.140342982i | BO68: 0.0579792934262742-0.287860077963802i | BQ68: 0.08622502295
H69: 63 | I69: 25000 | J69: -3100 | L69: 1.93929236949322E-11+316580.796673799i | M69: 1.93970377366333E-11+316647.956562621i | N69: 1.93915962437559E-11+316559.126627675i | O69: 1.93909347301731E-11+316548.327714609i | P69: 1.93902746914617E-11+316537.552878161i | Q69: 1.93896161277726E-11+316526.802120789i | R69: 1.93889590392559E-11+316516.075444948i | S69: 1.93883034260616E-11+316505.372853084i | T69: 1.93876492883395E-11+316494.694347642i | U69: 1.93869966262388E-11+316484.039931061i | V69: 1.93863454399087E-11+316473.409605771i | W69: 1.93856957294977E-11+316462.803374202i | X69: 1.93850474951544E-11+316452.221238777i | Y69: 1.93844007370268E-11+316441.663201912i | Z69: 1.93837554552626E-11+316431.129266019i | AA69: 1.93831116500094E-11+316420.619433506i | AB69: 1.93824693214142E-11+316410.133706775i | AC69: 1.93818284696239E-11+316399.672088222i | AD69: 1.9381189094785E-11+316389.234580238i | AE69: 1.93805511970436E-11+316378.821185211i | AF69: 1.93799147765455E-11+316368.43190552i | AG69: 1.93792798334364E-11+316358.066743542i | AH69: 1.93786463678615E-11+316347.725701648i | AI69: 1.93780143799656E-11+316337.408782203i | AJ69: 1.93773838698934E-11+316327.115987567i | AK69: 1.9376754837789E-11+316316.847320095i | AL69: 1.93761272837965E-11+316306.602782137i | AM69: 1.93755012080594E-11+316296.382376038i | AN69: 1.93748766107212E-11+316286.186104136i | AO69: 1.93742534919246E-11+316276.013968767i | AP69: 1.93736318518125E-11+316265.865972259i | AQ69: 1.93730116905272E-11+316255.742116936i | AR69: 1.93723930082106E-11+316245.642405116i | AS69: 1.93717758050045E-11+316235.566839113i | AT69: 1.93711600810503E-11+316225.515421234i | AU69: 1.93705458364891E-11+316215.488153782i | AV69: 1.93699330714615E-11+316205.485039055i | AW69: 1.93693217861079E-11+316195.506079345i | AX69: 1.93687119805686E-11+316185.551276939i | AY69: 1.93681036549833E-11+316175.620634119i | AZ69: 1.93674968094913E-11+316165.714153162i | BA69: 1.93668914442319E-11+316155.831836338i | BB69: 1.93662875593439E-11+316145.973685913i | BC69: 1.93656851549657E-11+316136.13970415i | BD69: 1.93650842312356E-11+316126.329893302i | BE69: 1.93644847882913E-11+316116.54425562i | BF69: 1.93638868262703E-11+316106.782793349i | BG69: 1.936329034531E-11+316097.04550873i | BH69: 1.93626953455471E-11+316087.332403995i | BI69: 1.93621018271182E-11+316077.643481375i | BO69: 0.503183680058326+1.83487716333955i | BQ69: 3.61996802
H70: 64 | I70: 25000 | J70: -3150 | L70: 1.93977127277179E-11+316658.975489868i | M70: 1.94018914186832E-11+316727.190748982i | N70: 1.93963642190286E-11+316636.961689272i | O70: 1.93956921750572E-11+316625.990872328i | P70: 1.93950216048723E-11+316615.044114289i | Q70: 1.93943525086268E-11+316604.121417651i | R70: 1.93936848864733E-11+316593.222784904i | S70: 1.93930187385639E-11+316582.348218533i | T70: 1.93923540650507E-11+316571.497721019i | U70: 1.93916908660852E-11+316560.671294836i | V70: 1.93910291418187E-11+316549.868942455i | W70: 1.93903688924022E-11+316539.090666339i | X70: 1.93897101179864E-11+316528.336468949i | Y70: 1.93890528187216E-11+316517.606352738i | Z70: 1.93883969947578E-11+316506.900320157i | AA70: 1.93877426462448E-11+316496.218373648i | AB70: 1.9387089773332E-11+316485.560515652i | AC70: 1.93864383761683E-11+316474.9267486i | AD70: 1.93857884549027E-11+316464.317074923i | AE70: 1.93851400096835E-11+316453.731497043i | AF70: 1.93844930406589E-11+316443.170017379i | AG70: 1.93838475479766E-11+316432.632638343i | AH70: 1.93832035317842E-11+316422.119362343i | AI70: 1.93825609922289E-11+316411.630191781i | AJ70: 1.93819199294575E-11+316401.165129056i | AK70: 1.93812803436166E-11+316390.724176559i | AL70: 1.93806422348523E-11+316380.307336678i | AM70: 1.93800056033106E-11+316369.914611794i | AN70: 1.9379370449137E-11+316359.546004283i | AO70: 1.93787367724769E-11+316349.201516518i | AP70: 1.93781045734751E-11+316338.881150864i | AQ70: 1.93774738522764E-11+316328.584909682i | AR70: 1.93768446090249E-11+316318.312795328i | AS70: 1.93762168438648E-11+316308.064810153i | AT70: 1.93755905569396E-11+316297.840956502i | AU70: 1.93749657483927E-11+316287.641236716i | AV70: 1.93743424183672E-11+316277.465653128i | AW70: 1.93737205670057E-11+316267.314208069i | AX70: 1.93731001944507E-11+316257.186903863i | AY70: 1.93724813008442E-11+316247.083742829i | AZ70: 1.9371863886328E-11+316237.004727282i | BA70: 1.93712479510434E-11+316226.94985953i | BB70: 1.93706334951317E-11+316216.919141876i | BC70: 1.93700205187335E-11+316206.912576619i | BD70: 1.93694090219894E-11+316196.930166053i | BE70: 1.93687990050395E-11+316186.971912463i | BF70: 1.93681904680236E-11+316177.037818135i | BG70: 1.93675834110812E-11+316167.127885343i | BH70: 1.93669778343515E-11+316157.242116361i | BI70: 1.93663737379734E-11+316147.380513456i | BO70: -0.845881646913523-1.27538699422571i | BQ70: 2.342127746
H71: 65 | I71: 25000 | J71: -3200 | L71: 1.94025769301318E-11+316738.381416463i | M71: 1.94068202218028E-11+316807.651253174i | N71: 1.94012073796087E-11+316716.024117352i | O71: 1.94005248130644E-11+316704.881524115i | P71: 1.93998437192054E-11+316693.762971809i | Q71: 1.9399164098187E-11+316682.668462965i | R71: 1.9398485950164E-11+316671.598000111i | S71: 1.93978092752908E-11+316660.551585769i | T71: 1.93971340737217E-11+316649.529222456i | U71: 1.93964603456104E-11+316638.530912682i | V71: 1.93957880911106E-11+316627.556658956i | W71: 1.93951173103754E-11+316616.606463777i | X71: 1.93944480035578E-11+316605.680329644i | Y71: 1.93937801708103E-11+316594.778259046i | Z71: 1.93931138122854E-11+316583.900254469i | AA71: 1.93924489281348E-11+316573.046318395i | AB71: 1.93917855185104E-11+316562.216453299i | AC71: 1.93911235835634E-11+316551.410661652i | AD71: 1.93904631234448E-11+316540.62894592i | AE71: 1.93898041383054E-11+316529.871308561i | AF71: 1.93891466282955E-11+316519.137752032i | AG71: 1.93884905935653E-11+316508.428278782i | AH71: 1.93878360342644E-11+316497.742891257i | AI71: 1.93871829505424E-11+316487.081591895i | AJ71: 1.93865313425484E-11+316476.444383131i | AK71: 1.93858812104311E-11+316465.831267395i | AL71: 1.9385232554339E-11+316455.24224711i | AM71: 1.93845853744204E-11+316444.677324696i | AN71: 1.9383939670823E-11+316434.136502565i | AO71: 1.93832954436945E-11+316423.619783127i | AP71: 1.93826526931821E-11+316413.127168785i | AQ71: 1.93820114194325E-11+316402.658661936i | AR71: 1.93813716225926E-11+316392.214264975i | AS71: 1.93807333028084E-11+316381.793980288i | AT71: 1.93800964602259E-11+316371.397810259i | AU71: 1.93794610949909E-11+316361.025757264i | AV71: 1.93788272072485E-11+316350.677823675i | AW71: 1.93781947971439E-11+316340.354011861i | AX71: 1.93775638648215E-11+316330.054324181i | AY71: 1.93769344104259E-11+316319.778762994i | AZ71: 1.93763064341011E-11+316309.52733065i | BA71: 1.93756799359907E-11+316299.300029495i | BB71: 1.93750549162382E-11+316289.09686187i | BC71: 1.93744313749866E-11+316278.917830111i | BD71: 1.93738093123786E-11+316268.762936548i | BE71: 1.93731887285569E-11+316258.632183507i | BF71: 1.93725696236633E-11+316248.525573307i | BG71: 1.93719519978398E-11+316238.443108263i | BH71: 1.93713358512278E-11+316228.384790685i | BI71: 1.93707211839685E-11+316218.350622876i | BO71: -1.52756974077856-0.0707528921011424i | BQ71: 2.338475285
H72: 66 | I72: 25000 | J72: -3250 | L72: =IMPRODUCT(((SQRT(($C$7-$I72)^2+($D$7-$J72)^2))/$D$3*2*PI()+$E$7),$O$2,$F$7) -> 1.94075162456536E-11+316819.013530913i | M72: =IMPRODUCT(((SQRT(($C$8-$I72)^2+($D$8-$J73)^2))/$D$3*2*PI()+$E$8),$O$2,$F$8) -> 1.94118240887708E-11+316889.337141084i | N72: =IMPRODUCT(((SQRT(($C$9-$I72)^2+($D$9-$J72)^2))/$D$3*2*PI()+$E$9),$O$2,$F$9) -> 1.94061256692047E-11+316796.312992977i | O72: =IMPRODUCT(((SQRT(($C$10-$I72)^2+($D$10-$J72)^2))/$D$3*2*PI()+$E$10),$O$2,$F$10) -> 1.94054325880173E-11+316784.998752902i | P72: =IMPRODUCT(((SQRT(($C$11-$I72)^2+($D$11-$J72)^2))/$D$3*2*PI()+$E$11),$O$2,$F$11) -> 1.94047409783983E-11+316773.708535521i | Q72: =IMPRODUCT(((SQRT(($C$12-$I72)^2+($D$12-$J72)^2))/$D$3*2*PI()+$E$12),$O$2,$F$12) -> 1.94040508405051E-11+316762.442343403i | R72: =IMPRODUCT(((SQRT(($C$13-$I72)^2+($D$13-$J72)^2))/$D$3*2*PI()+$E$13),$O$2,$F$13) -> 1.94033621744945E-11+316751.200179113i | S72: =IMPRODUCT(((SQRT(($C$14-$I72)^2+($D$14-$J72)^2))/$D$3*2*PI()+$E$14),$O$2,$F$14) -> 1.94026749805235E-11+316739.982045208i | T72: =IMPRODUCT(((SQRT(($C$15-$I72)^2+($D$15-$J72)^2))/$D$3*2*PI()+$E$15),$O$2,$F$15) -> 1.94019892587484E-11+316728.787944242i | U72: =IMPRODUCT(((SQRT(($C$16-$I72)^2+($D$16-$J72)^2))/$D$3*2*PI()+$E$16),$O$2,$F$16) -> 1.94013050093253E-11+316717.617878763i | V72: =IMPRODUCT(((SQRT(($C$17-$I72)^2+($D$17-$J72)^2))/$D$3*2*PI()+$E$17),$O$2,$F$17) -> 1.94006222324099E-11+316706.471851314i | W72: =IMPRODUCT(((SQRT(($C$18-$I72)^2+($D$18-$J72)^2))/$D$3*2*PI()+$E$18),$O$2,$F$18) -> 1.93999409281578E-11+316695.349864434i | X72: =IMPRODUCT(((SQRT(($C$19-$I72)^2+($D$19-$J72)^2))/$D$3*2*PI()+$E$19),$O$2,$F$19) -> 1.93992610967242E-11+316684.251920655i | Y72: =IMPRODUCT(((SQRT(($C$20-$I72)^2+($D$20-$J72)^2))/$D$3*2*PI()+$E$20),$O$2,$F$20) -> 1.93985827382638E-11+316673.178022506i | Z72: =IMPRODUCT(((SQRT(($C$21-$I72)^2+($D$21-$J72)^2))/$D$3*2*PI()+$E$21),$O$2,$F$21) -> 1.93979058529312E-11+316662.128172508i | AA72: =IMPRODUCT(((SQRT(($C$22-$I72)^2+($D$22-$J72)^2))/$D$3*2*PI()+$E$22),$O$2,$F$22) -> 1.93972304408806E-11+316651.102373179i | AB72: =IMPRODUCT(((SQRT(($C$23-$I72)^2+($D$23-$J72)^2))/$D$3*2*PI()+$E$23),$O$2,$F$23) -> 1.93965565022659E-11+316640.100627032i | AC72: =IMPRODUCT(((SQRT(($C$24-$I72)^2+($D$24-$J72)^2))/$D$3*2*PI()+$E$24),$O$2,$F$24) -> 1.93958840372408E-11+316629.122936574i | AD72: =IMPRODUCT(((SQRT(($C$25-$I72)^2+($D$25-$J72)^2))/$D$3*2*PI()+$E$25),$O$2,$F$25) -> 1.93952130459584E-11+316618.169304307i | AE72: =IMPRODUCT(((SQRT(($C$26-$I72)^2+($D$26-$J72)^2))/$D$3*2*PI()+$E$26),$O$2,$F$26) -> 1.93945435285718E-11+316607.239732729i | AF72: =IMPRODUCT(((SQRT(($C$27-$I72)^2+($D$27-$J72)^2))/$D$3*2*PI()+$E$27),$O$2,$F$27) -> 1.93938754852336E-11+316596.33422433i | AG72: =IMPRODUCT(((SQRT(($C$28-$I72)^2+($D$28-$J72)^2))/$D$3*2*PI()+$E$28),$O$2,$F$28) -> 1.93932089160961E-11+316585.452781599i | AH72: =IMPRODUCT(((SQRT(($C$29-$I72)^2+($D$29-$J72)^2))/$D$3*2*PI()+$E$29),$O$2,$F$29) -> 1.93925438213113E-11+316574.595407016i | AI72: =IMPRODUCT(((SQRT(($C$30-$I72)^2+($D$30-$J72)^2))/$D$3*2*PI()+$E$30),$O$2,$F$30) -> 1.9391880201031E-11+316563.762103057i | AJ72: =IMPRODUCT(((SQRT(($C$31-$I72)^2+($D$31-$J72)^2))/$D$3*2*PI()+$E$31),$O$2,$F$31) -> 1.93912180554066E-11+316552.952872195i | AK72: =IMPRODUCT(((SQRT(($C$32-$I72)^2+($D$32-$J72)^2))/$D$3*2*PI()+$E$32),$O$2,$F$32) -> 1.9390557384589E-11+316542.167716895i | AL72: =IMPRODUCT(((SQRT(($C$33-$I72)^2+($D$33-$J72)^2))/$D$3*2*PI()+$E$33),$O$2,$F$33) -> 1.9389898188729E-11+316531.406639619i | AM72: =IMPRODUCT(((SQRT(($C$34-$I72)^2+($D$34-$J72)^2))/$D$3*2*PI()+$E$34),$O$2,$F$34) -> 1.93892404679772E-11+316520.669642821i | AN72: =IMPRODUCT(((SQRT(($C$35-$I72)^2+($D$35-$J72)^2))/$D$3*2*PI()+$E$35),$O$2,$F$35) -> 1.93885842224836E-11+316509.956728953i | AO72: =IMPRODUCT(((SQRT(($C$36-$I72)^2+($D$36-$J72)^2))/$D$3*2*PI()+$E$36),$O$2,$F$36) -> 1.93879294523979E-11+316499.26790046i | AP72: =IMPRODUCT(((SQRT(($C$37-$I72)^2+($D$37-$J72)^2))/$D$3*2*PI()+$E$37),$O$2,$F$37) -> 1.93872761578698E-11+316488.603159783i | AQ72: =IMPRODUCT(((SQRT(($C$38-$I72)^2+($D$38-$J72)^2))/$D$3*2*PI()+$E$38),$O$2,$F$38) -> 1.93866243390483E-11+316477.962509357i | AR72: =IMPRODUCT(((SQRT(($C$39-$I72)^2+($D$39-$J72)^2))/$D$3*2*PI()+$E$39),$O$2,$F$39) -> 1.93859739960824E-11+316467.345951611i | AS72: =IMPRODUCT(((SQRT(($C$40-$I72)^2+($D$40-$J72)^2))/$D$3*2*PI()+$E$40),$O$2,$F$40) -> 1.93853251291205E-11+316456.75348897i | AT72: =IMPRODUCT(((SQRT(($C$41-$I72)^2+($D$41-$J72)^2))/$D$3*2*PI()+$E$41),$O$2,$F$41) -> 1.93846777383109E-11+316446.185123855i | AU72: =IMPRODUCT(((SQRT(($C$42-$I72)^2+($D$42-$J72)^2))/$D$3*2*PI()+$E$42),$O$2,$F$42) -> 1.93840318238015E-11+316435.640858679i | AV72: =IMPRODUCT(((SQRT(($C$43-$I72)^2+($D$43-$J72)^2))/$D$3*2*PI()+$E$43),$O$2,$F$43) -> 1.93833873857398E-11+316425.120695852i | AW72: =IMPRODUCT(((SQRT(($C$44-$I72)^2+($D$44-$J72)^2))/$D$3*2*PI()+$E$44),$O$2,$F$44) -> 1.93827444242732E-11+316414.624637777i | AX72: =IMPRODUCT(((SQRT(($C$45-$I72)^2+($D$45-$J72)^2))/$D$3*2*PI()+$E$45),$O$2,$F$45) -> 1.93821029395486E-11+316404.152686855i | AY72: =IMPRODUCT(((SQRT(($C$46-$I72)^2+($D$46-$J72)^2))/$D$3*2*PI()+$E$46),$O$2,$F$46) -> 1.93814629317125E-11+316393.704845478i | AZ72: =IMPRODUCT(((SQRT(($C$47-$I72)^2+($D$47-$J72)^2))/$D$3*2*PI()+$E$47),$O$2,$F$47) -> 1.93808244009114E-11+316383.281116034i | BA72: =IMPRODUCT(((SQRT(($C$48-$I72)^2+($D$48-$J72)^2))/$D$3*2*PI()+$E$48),$O$2,$F$48) -> 1.93801873472913E-11+316372.881500908i | BB72: =IMPRODUCT(((SQRT(($C$49-$I72)^2+($D$49-$J72)^2))/$D$3*2*PI()+$E$49),$O$2,$F$49) -> 1.93795517709977E-11+316362.506002477i | BC72: =IMPRODUCT(((SQRT(($C$50-$I72)^2+($D$50-$J72)^2))/$D$3*2*PI()+$E$50),$O$2,$F$50) -> 1.93789176721761E-11+316352.154623114i | BD72: =IMPRODUCT(((SQRT(($C$51-$I72)^2+($D$51-$J72)^2))/$D$3*2*PI()+$E$51),$O$2,$F$51) -> 1.93782850509714E-11+316341.827365187i | BE72: =IMPRODUCT(((SQRT(($C$52-$I72)^2+($D$52-$J72)^2))/$D$3*2*PI()+$E$52),$O$2,$F$52) -> 1.93776539075285E-11+316331.524231058i | BF72: =IMPRODUCT(((SQRT(($C$53-$I72)^2+($D$53-$J72)^2))/$D$3*2*PI()+$E$53),$O$2,$F$53) -> 1.93770242419917E-11+316321.245223085i | BG72: =IMPRODUCT(((SQRT(($C$54-$I72)^2+($D$54-$J72)^2))/$D$3*2*PI()+$E$54),$O$2,$F$54) -> 1.93763960545051E-11+316310.99034362i | BH72: =IMPRODUCT(((SQRT(($C$55-$I72)^2+($D$55-$J72)^2))/$D$3*2*PI()+$E$55),$O$2,$F$55) -> 1.93757693452124E-11+316300.759595009i | BI72: =IMPRODUCT(((SQRT(($C$56-$I72)^2+($D$56-$J72)^2))/$D$3*2*PI()+$E$56),$O$2,$F$56) -> 1.93751441142571E-11+316290.552979594i | BO72: =IMSUM(IMEXP(L72),IMEXP(M72),IMEXP(N72),IMEXP(O72),IMEXP(P72),IMEXP(Q72),IMEXP(R72),IMEXP(S72),IMEXP(T72),IMEXP(U72),IMEXP(V72),IMEXP(W72),IMEXP(X72),IMEXP(Y72),IMEXP(Z72),IMEXP(AA72),IMEXP(AB72),IMEXP(AC72),IMEXP(AD72),IMEXP(AE72),IMEXP(AF72),IMEXP(AG72),IMEXP(AH72),IMEXP(AI72),IMEXP(AJ72),IMEXP(AK72),IMEXP(AL72),IMEXP(AM72),IMEXP(AN72),IMEXP(AO72),IMEXP(AP72),IMEXP(AQ72),IMEXP(AR72),IMEXP(AS72),IMEXP(AT72),IMEXP(AU72),IMEXP(AV72),IMEXP(AW72),IMEXP(AX72),IMEXP(AY72),IMEXP(AZ72),IMEXP(BA72),IMEXP(BB72),IMEXP(BC72),IMEXP(BD72),IMEXP(BE72),IMEXP(BF72),IMEXP(BG72),IMEXP(BH72),IMEXP(BI72)) -> -0.542692952625124+0.613149988051511i | BQ72: =(IMABS(BO72))^2 -> 0.6704685487
H73: 67 | I73: =I72 -> 25000 | J73: =J72-$J$2 -> -3300 | L73: 1.94125306169478E-11+316900.870897246i | M73: 1.94169029615539E-11+316972.247465343i | N73: 1.9411119030709E-11+316877.827383896i | O73: 1.94104154429227E-11+316866.341628296i | P73: 1.94097133255718E-11+316854.879876896i | Q73: 1.94090126788157E-11+316843.442132299i | R73: 1.94083135028139E-11+316832.028397106i | S73: 1.94076157977253E-11+316820.638673912i | T73: 1.94069195637084E-11+316809.272965307i | U73: 1.94062248009217E-11+316797.931273875i | V73: 1.94055315095232E-11+316786.613602195i | W73: 1.94048396896705E-11+316775.319952843i | X73: 1.94041493415211E-11+316764.050328388i | Y73: 1.9403460465232E-11+316752.804731394i | Z73: 1.940277306096E-11+316741.583164421i | AA73: 1.94020871288616E-11+316730.385630022i | AB73: 1.94014026690929E-11+316719.212130746i | AC73: 1.94007196818098E-11+316708.062669137i | AD73: 1.94000381671677E-11+316696.937247735i | AE73: 1.9399358125322E-11+316685.835869073i | AF73: 1.93986795564273E-11+316674.758535678i | AG73: 1.93980024606385E-11+316663.705250076i | AH73: 1.93973268381096E-11+316652.676014783i | AI73: 1.93966526889947E-11+316641.670832314i | AJ73: 1.93959800134473E-11+316630.689705176i | AK73: 1.93953088116209E-11+316619.732635872i | AL73: 1.93946390836684E-11+316608.799626899i | AM73: 1.93939708297425E-11+316597.890680751i | AN73: 1.93933040499956E-11+316587.005799915i | AO73: 1.93926387445798E-11+316576.144986874i | AP73: 1.93919749136467E-11+316565.308244103i | AQ73: 1.93913125573478E-11+316554.495574076i | AR73: 1.93906516758343E-11+316543.706979259i | AS73: 1.93899922692569E-11+316532.942462115i | AT73: 1.93893343377662E-11+316522.202025098i | AU73: 1.93886778815122E-11+316511.485670662i | AV73: 1.93880229006448E-11+316500.793401252i | AW73: 1.93873693953136E-11+316490.125219309i | AX73: 1.93867173656678E-11+316479.481127269i | AY73: 1.93860668118562E-11+316468.861127563i | AZ73: 1.93854177340275E-11+316458.265222617i | BA73: 1.938477013233E-11+316447.69341485i | BB73: 1.93841240069115E-11+316437.145706678i | BC73: 1.93834793579197E-11+316426.62210051i | BD73: 1.93828361855019E-11+316416.122598753i | BE73: 1.93821944898052E-11+316405.647203805i | BF73: 1.93815542709761E-11+316395.195918061i | BG73: 1.93809155291611E-11+316384.768743909i | BH73: 1.93802782645061E-11+316374.365683735i | BI73: 1.9379642477157E-11+316363.986739916i | BO73: -0.113201118154258-1.47100292105659i | BQ73: 2.176664087
H74: 68 | I74: 25000 | J74: -3350 | L74: 1.94176199858679E-11+316983.952566241i | M74: 1.94220567813099E-11+317056.381265379i | N74: 1.94161874062018E-11+316960.566344591i | O74: 1.94154733199741E-11+316948.909206636i | P74: 1.94147607030329E-11+316937.276054126i | Q74: 1.941404955554E-11+316925.6668897i | R74: 1.94133398776568E-11+316914.081715996i | S74: 1.94126316695446E-11+316902.520535645i | T74: 1.94119249313642E-11+316890.983351272i | U74: 1.94112196632761E-11+316879.470165499i | V74: 1.94105158654407E-11+316867.980980941i | W74: 1.94098135380178E-11+316856.515800209i | X74: 1.9409112681167E-11+316845.07462591i | Y74: 1.94084132950477E-11+316833.657460643i | Z74: 1.94077153798189E-11+316822.264307005i | AA74: 1.94070189356392E-11+316810.895167586i | AB74: 1.94063239626671E-11+316799.550044971i | AC74: 1.94056304610606E-11+316788.22894174i | AD74: 1.94049384309774E-11+316776.93186047i | AE74: 1.9404247872575E-11+316765.65880373i | AF74: 1.94035587860106E-11+316754.409774084i | AG74: 1.94028711714409E-11+316743.184774094i | AH74: 1.94021850290224E-11+316731.983806314i | AI74: 1.94015003589113E-11+316720.806873293i | AJ74: 1.94008171612636E-11+316709.653977577i | AK74: 1.94001354362347E-11+316698.525121704i | AL74: 1.939945518398E-11+316687.42030821i | AM74: 1.93987764046543E-11+316676.339539623i | AN74: 1.93980990984123E-11+316665.282818467i | AO74: 1.93974232654083E-11+316654.250147262i | AP74: 1.93967489057962E-11+316643.241528521i | AQ74: 1.93960760197299E-11+316632.256964754i | AR74: 1.93954046073625E-11+316621.296458463i | AS74: 1.93947346688472E-11+316610.360012148i | AT74: 1.93940662043368E-11+316599.447628301i | AU74: 1.93933992139836E-11+316588.559309411i | AV74: 1.93927336979397E-11+316577.695057961i | AW74: 1.93920696563569E-11+316566.854876429i | AX74: 1.93914070893868E-11+316556.038767288i | AY74: 1.93907459971804E-11+316545.246733005i | AZ74: 1.93900863798886E-11+316534.478776042i | BA74: 1.9389428237662E-11+316523.734898857i | BB74: 1.93887715706507E-11+316513.015103902i | BC74: 1.93881163790047E-11+316502.319393624i | BD74: 1.93874626628735E-11+316491.647770466i | BE74: 1.93868104224063E-11+316481.000236862i | BF74: 1.93861596577522E-11+316470.376795246i | BG74: 1.93855103690597E-11+316459.777448042i | BH74: 1.93848625564772E-11+316449.202197673i | BI74: 1.93842162201527E-11+316438.651046554i | BO74: 0.851726903622286-0.276565258722554i | BQ74: 0.8019270607
H75: 69 | I75: 25000 | J75: -3400 | L75: 1.94227842934586E-11+317068.257575484i | M75: 1.94272854883913E-11+317141.737567474i | N75: 1.9421330736954E-11+317044.528916336i | O75: 1.94206061605556E-11+317032.700531041i | P75: 1.9419883052279E-11+317020.896112178i | Q75: 1.94191614122882E-11+317009.115662422i | R75: 1.94184412407469E-11+316997.359184448i | S75: 1.94177225378185E-11+316985.626680921i | T75: 1.94170053036661E-11+316973.918154504i | U75: 1.94162895384524E-11+316962.233607854i | V75: 1.94155752423398E-11+316950.573043623i | W75: 1.94148624154907E-11+316938.936464459i | X75: 1.94141510580667E-11+316927.323873003i | Y75: 1.94134411702294E-11+316915.735271892i | Z75: 1.941273275214E-11+316904.170663758i | AA75: 1.94120258039595E-11+316892.630051227i | AB75: 1.94113203258484E-11+316881.113436922i | AC75: 1.94106163179671E-11+316869.620823459i | AD75: 1.94099137804754E-11+316858.15221345i | AE75: 1.94092127135332E-11+316846.707609501i | AF75: 1.94085131172996E-11+316835.287014214i | AG75: 1.94078149919339E-11+316823.890430184i | AH75: 1.94071183375946E-11+316812.517860004i | AI75: 1.94064231544403E-11+316801.169306258i | AJ75: 1.94057294426291E-11+316789.84477153i | AK75: 1.94050372023186E-11+316778.544258393i | AL75: 1.94043464336665E-11+316767.26776942i | AM75: 1.94036571368299E-11+316756.015307176i | AN75: 1.94029693119656E-11+316744.786874221i | AO75: 1.94022829592302E-11+316733.582473112i | AP75: 1.940159807878E-11+316722.402106398i | AQ75: 1.94009146707709E-11+316711.245776626i | AR75: 1.94002327353584E-11+316700.113486334i | AS75: 1.93995522726978E-11+316689.005238059i | AT75: 1.93988732829442E-11+316677.921034331i | AU75: 1.93981957662522E-11+316666.860877673i | AV75: 1.93975197227762E-11+316655.824770607i | AW75: 1.93968451526702E-11+316644.812715646i | AX75: 1.93961720560879E-11+316633.824715301i | AY75: 1.93955004331827E-11+316622.860772075i | AZ75: 1.93948302841078E-11+316611.920888467i | BA75: 1.93941616090159E-11+316601.005066973i | BB75: 1.93934944080595E-11+316590.11331008i | BC75: 1.93928286813907E-11+316579.245620272i | BD75: 1.93921644291613E-11+316568.402000029i | BE75: 1.9391501651523E-11+316557.582451823i | BF75: 1.93908403486268E-11+316546.786978124i | BG75: 1.93901805206237E-11+316536.015581393i | BH75: 1.93895221676643E-11+316525.26826409i | BI75: 1.93888652898988E-11+316514.545028666i | BO75: -0.548514634533022-0.725057906594242i | BQ75: 0.8265772722
H76: 70 | I76: 25000 | J76: -3450 | L76: 1.942802347996E-11+317153.784949418i | M76: 1.94325890223485E-11+317228.315384815i | N76: 1.94265489634306E-11+317129.71412725i | O76: 1.94258139052448E-11+317117.714631468i | P76: 1.94250803140004E-11+317105.739082848i | Q76: 1.94243481898635E-11+317093.787484102i | R76: 1.94236175330001E-11+317081.859837939i | S76: 1.94228883435758E-11+317069.956147061i | T76: 1.94221606217558E-11+317058.076414168i | U76: 1.94214343677052E-11+317046.220641951i | V76: 1.94207095815885E-11+317034.388833099i | W76: 1.94199862635702E-11+317022.580990296i | X76: 1.94192644138142E-11+317010.797116218i | Y76: 1.94185440324844E-11+316999.03721354i | Z76: 1.94178251197442E-11+316987.301284929i | AA76: 1.94171076757566E-11+316975.589333048i | AB76: 1.94163917006846E-11+316963.901360554i | AC76: 1.94156771946905E-11+316952.237370102i | AD76: 1.94149641579367E-11+316940.597364337i | AE76: 1.94142525905849E-11+316928.981345904i | AF76: 1.94135424927967E-11+316917.38931744i | AG76: 1.94128338647335E-11+316905.821281576i | AH76: 1.94121267065562E-11+316894.277240942i | AI76: 1.94114210184254E-11+316882.757198159i | AJ76: 1.94107168005014E-11+316871.261155844i | AK76: 1.94100140529443E-11+316859.789116611i | AL76: 1.94093127759138E-11+316848.341083065i | AM76: 1.94086129695693E-11+316836.91705781i | AN76: 1.94079146340699E-11+316825.517043442i | AO76: 1.94072177695743E-11+316814.141042553i | AP76: 1.9406522376241E-11+316802.78905773i | AQ76: 1.94058284542282E-11+316791.461091555i | AR76: 1.94051360036937E-11+316780.157146605i | AS76: 1.9404445024795E-11+316768.877225452i | AT76: 1.94037555176894E-11+316757.621330661i | AU76: 1.94030674825338E-11+316746.389464794i | AV76: 1.94023809194848E-11+316735.181630408i | AW76: 1.94016958286985E-11+316723.997830053i | AX76: 1.94010122103311E-11+316712.838066276i | AY76: 1.94003300645381E-11+316701.702341618i | AZ76: 1.9399649391475E-11+316690.590658614i | BA76: 1.93989701912966E-11+316679.503019795i | BB76: 1.93982924641578E-11+316668.439427688i | BC76: 1.93976162102129E-11+316657.399884812i | BD76: 1.9396941429616E-11+316646.384393682i | BE76: 1.93962681225209E-11+316635.392956809i | BF76: 1.93955962890811E-11+316624.425576699i | BG76: 1.93949259294496E-11+316613.48225585i | BH76: 1.93942570437794E-11+316602.562996758i | BI76: 1.93935896322228E-11+316591.667801913i | BO76: 0.63907090652402-0.719637654749927i | BQ76: 0.9262899777
H77: 71 | I77: 25000 | J77: -3500 | L77: 1.94333374848105E-11+317240.533699403i | M77: 1.94379673219334E-11+317316.113717553i | N77: 1.94318420252942E-11+317216.12099235i | O77: 1.94310964938164E-11+317203.950524766i | P77: 1.94303524280838E-11+317191.803984817i | Q77: 1.9429609828265E-11+317179.681375253i | R77: 1.94288686945279E-11+317167.582698817i | S77: 1.94281290270404E-11+317155.507958249i | T77: 1.94273908259698E-11+317143.457156282i | U77: 1.94266540914835E-11+317131.430295645i | V77: 1.94259188237482E-11+317119.427379062i | W77: 1.94251850229305E-11+317107.448409253i | X77: 1.94244526891967E-11+317095.49338893i | Y77: 1.94237218227127E-11+317083.562320804i | Z77: 1.94229924236441E-11+317071.655207577i | AA77: 1.94222644921562E-11+317059.772051949i | AB77: 1.94215380284142E-11+317047.912856614i | AC77: 1.94208130325826E-11+317036.07762426i | AD77: 1.94200895048259E-11+317024.266357571i | AE77: 1.94193674453081E-11+317012.479059226i | AF77: 1.94186468541931E-11+317000.715731899i | AG77: 1.94179277316444E-11+316988.976378258i | AH77: 1.9417210077825E-11+316977.261000967i | AI77: 1.9416493892898E-11+316965.569602684i | AJ77: 1.94157791770257E-11+316953.902186063i | AK77: 1.94150659303704E-11+316942.258753753i | AL77: 1.94143541530942E-11+316930.639308397i | AM77: 1.94136438453585E-11+316919.043852633i | AN77: 1.94129350073247E-11+316907.472389094i | AO77: 1.94122276391539E-11+316895.924920409i | AP77: 1.94115217410066E-11+316884.401449201i | AQ77: 1.94108173130433E-11+316872.901978088i | AR77: 1.9410114355424E-11+316861.426509683i | AS77: 1.94094128683085E-11+316849.975046594i | AT77: 1.94087128518562E-11+316838.547591424i | AU77: 1.94080143062263E-11+316827.14414677i | AV77: 1.94073172315776E-11+316815.764715226i | AW77: 1.94066216280686E-11+316804.409299378i | AX77: 1.94059274958575E-11+316793.07790181i | AY77: 1.94052348351021E-11+316781.770525099i | AZ77: 1.94045436459601E-11+316770.487171817i | BA77: 1.94038539285888E-11+316759.227844532i | BB77: 1.9403165683145E-11+316747.992545805i | BC77: 1.94024789097854E-11+316736.781278194i | BD77: 1.94017936086664E-11+316725.59404425i | BE77: 1.94011097799439E-11+316714.430846521i | BF77: 1.94004274237736E-11+316703.291687547i | BG77: 1.9399746540311E-11+316692.176569866i | BH77: 1.9399067129711E-11+316681.085496009i | BI77: 1.93983891921285E-11+316670.018468503i | BO77: -3.04113370062021-1.32921500995142i | BQ77: 11.01530673
H78: 72 | I78: 25000 | J78: -3550 | L78: 1.94387262466503E-11+317328.502823769i | M78: 1.94434203251025E-11+317405.131552857i | N78: 1.9437209861408E-11+317303.748513608i | O78: 1.94364538652453E-11+317291.407214729i | P78: 1.94356993336162E-11+317279.089823704i | Q78: 1.94349462666913E-11+317266.796343319i | R78: 1.94341946646407E-11+317254.526776353i | S78: 1.94334445276346E-11+317242.281125581i | T78: 1.94326958558425E-11+317230.059393773i | U78: 1.94319486494338E-11+317217.861583692i | V78: 1.94312029085776E-11+317205.687698099i | W78: 1.94304586334426E-11+317193.537739748i | X78: 1.94297158241972E-11+317181.41171139i | Y78: 1.94289744810096E-11+317169.309615768i | Z78: 1.94282346040476E-11+317157.231455622i | AA78: 1.94274961934786E-11+317145.177233688i | AB78: 1.94267592494701E-11+317133.146952694i | AC78: 1.94260237721887E-11+317121.140615365i | AD78: 1.94252897618012E-11+317109.158224422i | AE78: 1.94245572184738E-11+317097.199782578i | AF78: 1.94238261423725E-11+317085.265292544i | AG78: 1.9423096533663E-11+317073.354757023i | AH78: 1.94223683925107E-11+317061.468178716i | AI78: 1.94216417190805E-11+317049.605560317i | AJ78: 1.94209165135374E-11+317037.766904516i | AK78: 1.94201927760456E-11+317025.952213997i | AL78: 1.94194705067694E-11+317014.161491439i | AM78: 1.94187497058726E-11+317002.394739517i | AN78: 1.94180303735187E-11+316990.6519609i | AO78: 1.94173125098709E-11+316978.933158254i | AP78: 1.94165961150921E-11+316967.238334236i | AQ78: 1.94158811893449E-11+316955.567491501i | AR78: 1.94151677327916E-11+316943.920632699i | AS78: 1.94144557455941E-11+316932.297760473i | AT78: 1.94137452279142E-11+316920.698877463i | AU78: 1.94130361799131E-11+316909.123986302i | AV78: 1.9412328601752E-11+316897.57308962i | AW78: 1.94116224935915E-11+316886.046190041i | AX78: 1.94109178555921E-11+316874.543290183i | AY78: 1.94102146879139E-11+316863.06439266i | AZ78: 1.94095129907166E-11+316851.60950008i | BA78: 1.94088127641599E-11+316840.178615048i | BB78: 1.94081140084028E-11+316828.771740162i | BC78: 1.94074167236042E-11+316817.388878015i | BD78: 1.94067209099227E-11+316806.030031196i | BE78: 1.94060265675165E-11+316794.695202287i | BF78: 1.94053336965435E-11+316783.384393867i | BG78: 1.94046422971614E-11+316772.09760851i | BH78: 1.94039523695275E-11+316760.834848782i | BI78: 1.94032639137987E-11+316749.596117247i | BO78: -3.53331396011265-2.65527201223429i | BQ78: 19.534777
